{"text_format":"1","workbook":"xlsx","n_sheets":4,"sheets":["CEDULA-equidad","CEDULA- académico","CEDULA-vinculación","CEDULA -gestión"],"not_rendered":{"charts":0,"images":0,"macros":1,"external_links":0,"defined_names":5,"comments":0,"pivot_tables":0},"unopened":[],"bounds":{"document_bytes":16777216,"sheet_cells":100000,"rows_first":2000,"rows_last":500,"rows_between":2000,"halvings":0,"cell_chars":16384,"cell_head_chars":4096},"cells_cut":0,"cells_raw":0,"read":"whole","date_system":"1900"}

{"sheet":"CEDULA-equidad","index":0,"n_rows":123,"n_cols":175,"rows_kept":123,"cut":false,"hidden":false,"merged":[[57,3,59,3],[57,9,57,14],[33,1,33,26],[34,1,34,26],[37,1,37,4],[37,15,37,26],[31,1,31,2],[32,1,32,2],[70,1,70,2],[32,17,32,23],[32,24,32,26],[52,1,53,26],[54,1,54,26],[55,1,55,26],[42,1,42,26],[44,1,44,26],[46,1,46,26],[48,1,51,14],[48,15,49,22],[48,23,49,26],[50,15,51,22],[50,23,51,26],[56,4,56,8],[56,9,56,20],[71,1,71,2],[72,1,72,2],[73,1,73,2],[74,1,74,2],[112,1,112,2],[113,1,113,2],[57,1,59,1],[57,2,59,2],[0,1,0,26],[2,1,2,26],[4,1,4,26],[6,1,9,14],[6,15,7,22],[6,23,7,26],[8,15,9,22],[8,23,9,26],[24,5,24,16],[24,17,26,23],[24,24,26,26],[25,5,25,8],[25,9,25,12],[25,13,25,16],[26,5,26,6],[26,7,26,8],[31,24,31,26],[28,1,28,2],[29,1,29,2],[30,1,30,2],[27,17,27,23],[27,24,27,26],[28,17,28,23],[28,24,28,26],[29,17,29,23],[29,24,29,26],[30,17,30,23],[30,24,30,26],[31,17,31,23],[14,9,14,20],[14,21,15,26],[17,15,17,17],[17,18,17,20],[16,21,16,23],[16,24,16,26],[17,21,17,23],[17,24,17,26],[26,9,26,10],[26,11,26,12],[26,13,26,14],[26,15,26,16],[23,1,23,26],[24,3,26,3],[24,4,26,4],[24,1,26,2],[22,2,22,26],[18,21,19,26],[19,1,21,1],[19,2,21,2],[19,3,21,3],[19,4,21,8],[19,9,19,14],[19,15,19,20],[58,24,58,26],[59,9,59,11],[59,12,59,14],[59,15,59,17],[59,18,59,20],[59,21,59,23],[57,4,59,8],[57,15,57,20],[10,1,11,26],[12,1,12,26],[13,1,13,26],[15,9,15,14],[15,3,17,3],[16,9,16,11],[16,12,16,14],[17,9,17,11],[17,12,17,14],[15,15,15,20],[16,15,16,17],[16,18,16,20],[15,1,17,1],[15,2,17,2],[14,4,14,8],[15,4,17,8],[69,17,69,23],[67,13,67,16],[68,5,68,6],[68,7,68,8],[68,9,68,10],[68,11,68,12],[68,13,68,14],[68,15,68,16],[56,21,57,26],[59,24,59,26],[64,2,64,26],[65,1,65,26],[66,3,68,3],[66,4,68,4],[66,5,66,16],[66,17,68,23],[66,24,68,26],[67,5,67,8],[67,9,67,12],[66,1,68,2],[58,12,58,14],[58,15,58,17],[58,18,58,20],[58,21,58,23],[58,9,58,11],[110,5,110,6],[110,7,110,8],[110,9,110,10],[110,11,110,12],[61,1,63,1],[61,2,63,2],[111,24,111,26],[101,18,101,20],[98,21,99,26],[86,1,86,26],[88,1,88,26],[90,1,93,14],[90,15,91,22],[90,23,91,26],[92,15,93,22],[92,23,93,26],[75,1,75,26],[76,1,76,26],[79,1,79,4],[79,15,79,26],[99,9,99,14],[71,17,71,23],[72,17,72,23],[73,17,73,23],[110,13,110,14],[110,15,110,16],[116,24,116,26],[114,1,114,2],[115,1,115,2],[116,1,116,2],[111,17,111,23],[101,24,101,26],[101,12,101,14],[101,15,101,17],[99,15,99,20],[100,9,100,11],[100,12,100,14],[100,15,100,17],[100,18,100,20],[100,21,100,23],[98,4,98,8],[99,4,101,8],[98,9,98,20],[101,21,101,23],[74,17,74,23],[73,24,73,26],[112,17,112,23],[112,24,112,26],[106,2,106,26],[108,1,110,2],[107,1,107,26],[108,3,110,3],[108,4,110,4],[108,5,108,16],[108,17,110,23],[108,24,110,26],[109,5,109,8],[109,9,109,12],[109,13,109,16],[100,24,100,26],[97,1,97,26],[96,1,96,26],[94,1,95,26],[84,1,84,26],[74,24,74,26],[99,1,101,1],[99,2,101,2],[99,3,101,3],[101,9,101,11],[117,1,117,26],[118,1,118,26],[122,1,122,4],[122,15,122,26],[113,17,113,23],[113,24,113,26],[114,17,114,23],[114,24,114,26],[115,17,115,23],[115,24,115,26],[116,17,116,23],[72,24,72,26],[71,24,71,26],[70,24,70,26],[69,24,69,26],[60,4,60,8],[60,9,60,20],[60,21,61,26],[61,3,63,3],[61,4,63,8],[61,9,61,14],[61,15,61,20],[62,9,62,11],[62,12,62,14],[62,15,62,17],[62,18,62,20],[62,21,62,23],[62,24,62,26],[63,9,63,11],[63,12,63,14],[63,15,63,17],[63,18,63,20],[63,21,63,23],[63,24,63,26],[70,17,70,23],[20,9,20,11],[20,12,20,14],[20,15,20,17],[20,18,20,20],[20,21,20,23],[20,24,20,26],[21,9,21,11],[21,12,21,14],[21,15,21,17],[21,18,21,20],[21,21,21,23],[21,24,21,26],[4,171,4,172],[102,4,102,8],[102,9,102,20],[102,21,103,26],[103,1,105,1],[103,2,105,2],[103,3,105,3],[103,4,105,8],[103,9,103,14],[103,15,103,20],[104,9,104,11],[104,12,104,14],[104,15,104,17],[104,18,104,20],[104,21,104,23],[104,24,104,26],[105,9,105,11],[105,12,105,14],[105,15,105,17],[105,18,105,20],[105,21,105,23],[105,24,105,26],[18,4,18,8],[18,9,18,20]]}
[null,"PROGRAMA OPERATIVO ANUAL  2022"]
[]
[null,"FORMATO 01 \"DESARROLLO DE PROCESOS\""]
[]
[null,"UNIVERSIDAD: _____________________________________",null,null,null,null,null,null,null,null,null,null,null,null,null,null,null,null,null,null,null,null,null,null,null,null,null,null,null,null,null,null,null,null,null,null,null,null,null,null,null,null,null,null,null,null,null,null,null,null,null,null,null,null,null,null,null,null,null,null,null,null,null,null,null,null,null,null,null,null,null,null,null,null,null,null,null,null,null,null,null,null,null,null,null,null,null,null,null,null,null,null,null,null,null,null,null,null,null,null,null,null,null,null,null,null,null,null,null,null,null,null,null,null,null,null,null,null,null,null,null,null,null,null,null,null,null,null,null,null,null,null,null,null,null,null,null,null,null,null,null,null,null,null,null,null,null,null,null,null,null,null,null,null,null,null,null,null,null,null,null,null,null,null,null,null,null,null,null,null,null,"ACCESO Y PERMANENCIA DE LA EDUCACIÓN DE GRUPOS VULNERABLES"]
[null,null,null,null,null,null,null,null,null,null,null,null,null,null,null,null,null,null,null,null,null,null,null,null,null,null,null,null,null,null,null,null,null,null,null,null,null,null,null,null,null,null,null,null,null,null,null,null,null,null,null,null,null,null,null,null,null,null,null,null,null,null,null,null,null,null,null,null,null,null,null,null,null,null,null,null,null,null,null,null,null,null,null,null,null,null,null,null,null,null,null,null,null,null,null,null,null,null,null,null,null,null,null,null,null,null,null,null,null,null,null,null,null,null,null,null,null,null,null,null,null,null,null,null,null,null,null,null,null,null,null,null,null,null,null,null,null,null,null,null,null,null,null,null,null,null,null,null,null,null,null,null,null,null,null,null,null,null,null,null,null,null,null,null,null,null,null,null,null,null,null,"INDICADOR","FÓRMULA","unidad de medida","meta nacional"]
[null,"DENOMINACIÓN DEL PROCESO:\n    \nEQUIDAD + GRUPOS VULNERABLES (1)",null,null,null,null,null,null,null,null,null,null,null,null,null,"NUM. DE PROCESO",null,null,null,null,null,null,null,"TIPO DE PROCESO (3)               ",null,null,null,null,null,null,null,null,null,null,null,null,null,null,null,null,null,null,null,null,null,null,null,null,null,null,null,null,null,null,null,null,null,null,null,null,null,null,null,null,null,null,null,null,null,null,null,null,null,null,null,null,null,null,null,null,null,null,null,null,null,null,null,null,null,null,null,null,null,null,null,null,null,null,null,null,null,null,null,null,null,null,null,null,null,null,null,null,null,null,null,null,null,null,null,null,null,null,null,null,null,null,null,null,null,null,null,null,null,null,null,null,null,null,null,null,null,null,null,null,null,null,null,null,null,null,null,null,null,null,null,null,null,null,null,null,null,null,null,null,null,null,null,null,null,null,null,"Número de alumnos de origen indígena atendidos en la institución","(Número de alumnos de origen indígena en el año t/número total de alumnos en el año t)*100","Alumnos",9000]
[null,null,null,null,null,null,null,null,null,null,null,null,null,null,null,null,null,null,null,null,null,null,null,null,null,null,null,null,null,null,null,null,null,null,null,null,null,null,null,null,null,null,null,null,null,null,null,null,null,null,null,null,null,null,null,null,null,null,null,null,null,null,null,null,null,null,null,null,null,null,null,null,null,null,null,null,null,null,null,null,null,null,null,null,null,null,null,null,null,null,null,null,null,null,null,null,null,null,null,null,null,null,null,null,null,null,null,null,null,null,null,null,null,null,null,null,null,null,null,null,null,null,null,null,null,null,null,null,null,null,null,null,null,null,null,null,null,null,null,null,null,null,null,null,null,null,null,null,null,null,null,null,null,null,null,null,null,null,null,null,null,null,null,null,null,null,null,null,null,null,null,"Porcentaje de alumnos de origen indígena becados","(Número de alumnos de origen indígena becados/ número de alumnos)*100","Alumnos",56]
[null,null,null,null,null,null,null,null,null,null,null,null,null,null,null,"1      (2)",null,null,null,null,null,null,null,"Equidad de Género",null,null,null,null,null,null,null,null,null,null,null,null,null,null,null,null,null,null,null,null,null,null,null,null,null,null,null,null,null,null,null,null,null,null,null,null,null,null,null,null,null,null,null,null,null,null,null,null,null,null,null,null,null,null,null,null,null,null,null,null,null,null,null,null,null,null,null,null,null,null,null,null,null,null,null,null,null,null,null,null,null,null,null,null,null,null,null,null,null,null,null,null,null,null,null,null,null,null,null,null,null,null,null,null,null,null,null,null,null,null,null,null,null,null,null,null,null,null,null,null,null,null,null,null,null,null,null,null,null,null,null,null,null,null,null,null,null,null,null,null,null,null,null,null,null,null,null,"ATENCIÓN EDUCATIVA DE LAS PERSONAS CON DISCAPACIDAD"]
[null,null,null,null,null,null,null,null,null,null,null,null,null,null,null,null,null,null,null,null,null,null,null,null,null,null,null,null,null,null,null,null,null,null,null,null,null,null,null,null,null,null,null,null,null,null,null,null,null,null,null,null,null,null,null,null,null,null,null,null,null,null,null,null,null,null,null,null,null,null,null,null,null,null,null,null,null,null,null,null,null,null,null,null,null,null,null,null,null,null,null,null,null,null,null,null,null,null,null,null,null,null,null,null,null,null,null,null,null,null,null,null,null,null,null,null,null,null,null,null,null,null,null,null,null,null,null,null,null,null,null,null,null,null,null,null,null,null,null,null,null,null,null,null,null,null,null,null,null,null,null,null,null,null,null,null,null,null,null,null,null,null,null,null,null,null,null,null,null,null,null,"INDICADOR","FÓRMULA","unidad de medida","meta nacional"]
[null,"ÁREA RESPONSABLE ( 4 )",null,null,null,null,null,null,null,null,null,null,null,null,null,null,null,null,null,null,null,null,null,null,null,null,null,null,null,null,null,null,null,null,null,null,null,null,null,null,null,null,null,null,null,null,null,null,null,null,null,null,null,null,null,null,null,null,null,null,null,null,null,null,null,null,null,null,null,null,null,null,null,null,null,null,null,null,null,null,null,null,null,null,null,null,null,null,null,null,null,null,null,null,null,null,null,null,null,null,null,null,null,null,null,null,null,null,null,null,null,null,null,null,null,null,null,null,null,null,null,null,null,null,null,null,null,null,null,null,null,null,null,null,null,null,null,null,null,null,null,null,null,null,null,null,null,null,null,null,null,null,null,null,null,null,null,null,null,null,null,null,null,null,null,null,null,null,null,null,null,"Número de alumnos atendidos  con algun tipo de dicapacidad","(Número de alumnos con algun tipo de  discapacidad en el año t/número total de estudiantes en el año t)*100","Alumnos",1745]
[null,null,null,null,null,null,null,null,null,null,null,null,null,null,null,null,null,null,null,null,null,null,null,null,null,null,null,null,null,null,null,null,null,null,null,null,null,null,null,null,null,null,null,null,null,null,null,null,null,null,null,null,null,null,null,null,null,null,null,null,null,null,null,null,null,null,null,null,null,null,null,null,null,null,null,null,null,null,null,null,null,null,null,null,null,null,null,null,null,null,null,null,null,null,null,null,null,null,null,null,null,null,null,null,null,null,null,null,null,null,null,null,null,null,null,null,null,null,null,null,null,null,null,null,null,null,null,null,null,null,null,null,null,null,null,null,null,null,null,null,null,null,null,null,null,null,null,null,null,null,null,null,null,null,null,null,null,null,null,null,null,null,null,null,null,null,null,null,null,null,null,"Acondicionamiento de espacios para personas con discapacidad","(Número de Espacios para personas con discapacidad acondicionados/número de espacios para personas con discapacidad programados para acondicionar)*100","Espacios",101]
[null,null,null,null,null,null,null,null,null,null,null,null,null,null,null,null,null,null,null,null,null,null,null,null,null,null,null,null,null,null,null,null,null,null,null,null,null,null,null,null,null,null,null,null,null,null,null,null,null,null,null,null,null,null,null,null,null,null,null,null,null,null,null,null,null,null,null,null,null,null,null,null,null,null,null,null,null,null,null,null,null,null,null,null,null,null,null,null,null,null,null,null,null,null,null,null,null,null,null,null,null,null,null,null,null,null,null,null,null,null,null,null,null,null,null,null,null,null,null,null,null,null,null,null,null,null,null,null,null,null,null,null,null,null,null,null,null,null,null,null,null,null,null,null,null,null,null,null,null,null,null,null,null,null,null,null,null,null,null,null,null,null,null,null,null,null,null,null,null,null,null,"La Institución forma parte de la Red Nacional Incluyente para personas con discapacidad","NOTA: Poner sí o no únicamente\n","certificación",30]
[null,"INDICADORES  ( 5 )",null,null,null,null,null,null,null,null,null,null,null,null,null,null,null,null,null,null,null,null,null,null,null,null,null,null,null,null,null,null,null,null,null,null,null,null,null,null,null,null,null,null,null,null,null,null,null,null,null,null,null,null,null,null,null,null,null,null,null,null,null,null,null,null,null,null,null,null,null,null,null,null,null,null,null,null,null,null,null,null,null,null,null,null,null,null,null,null,null,null,null,null,null,null,null,null,null,null,null,null,null,null,null,null,null,null,null,null,null,null,null,null,null,null,null,null,null,null,null,null,null,null,null,null,null,null,null,null,null,null,null,null,null,null,null,null,null,null,null,null,null,null,null,null,null,null,null,null,null,null,null,null,null,null,null,null,null,null,null,null,null,null,null,null,null,null,null,null,null,"INDICADOR","FÓRMULA","unidad de medida","meta nacional"]
[null,"NOMBRE DEL INDICADOR (5.1)","FORMULA","UNIDAD DE MEDIDA","META INSTITUCIONAL A 2024 \nPROGRAMA INSTITUCIONAL DE DESARROLLO DE LA UNIVERSIDAD",null,null,null,null,"CONTEXTO ACTUAL Y A FUTURO DEL INDICADOR (5.2)",null,null,null,null,null,null,null,null,null,null,null,"Total alcanzado (Se reporta en el tercer cuatrimestre) (5.3)",null,null,null,null,null,null,null,null,null,null,null,null,null,null,null,null,null,null,null,null,null,null,null,null,null,null,null,null,null,null,null,null,null,null,null,null,null,null,null,null,null,null,null,null,null,null,null,null,null,null,null,null,null,null,null,null,null,null,null,null,null,null,null,null,null,null,null,null,null,null,null,null,null,null,null,null,null,null,null,null,null,null,null,null,null,null,null,null,null,null,null,null,null,null,null,null,null,null,null,null,null,null,null,null,null,null,null,null,null,null,null,null,null,null,null,null,null,null,null,null,null,null,null,null,null,null,null,null,null,null,null,null,null,null,null,null,null,null,null,null,null,null,null,null,null,null,null,null,null,"Cursos impartidos sobre equidad de género","Cursos de género impartidos en el año/Total de cursos impartidos por la institución*100","Cursos",586]
[null,"Cursos impartidos sobre equidad de género",{"$f":"(IF(B16=\"Cursos impartidos sobre equidad de género\",FQ15,IF(B16=\"Indicador: Porcentaje de estudiantes mujeres atendidas en la institución\",FQ16,IF(B16=\"Indicador: Porcentaje de estudiantes mujeres becadas\",FQ17,IF(B16=\"Certificación en el  Modelo de Equidad de Género (MEG)\",FQ18)))))","v":"Cursos de género impartidos en el año/Total de cursos impartidos por la institución*100"},{"$f":"(IF(B16=\"Cursos impartidos sobre equidad de género\",FR15,IF(B16=\"Indicador: Porcentaje de estudiantes mujeres atendidas en la institución\",FR16,IF(B16=\"Indicador: Porcentaje de estudiantes mujeres becadas\",FR17,IF(B16=\"Certificación en el  Modelo de Equidad de Género (MEG)\",FR18)))))","v":"Cursos"},null,null,null,null,null,2021,null,null,null,null,null,2022,null,null,null,null,null,null,null,null,null,null,null,null,null,null,null,null,null,null,null,null,null,null,null,null,null,null,null,null,null,null,null,null,null,null,null,null,null,null,null,null,null,null,null,null,null,null,null,null,null,null,null,null,null,null,null,null,null,null,null,null,null,null,null,null,null,null,null,null,null,null,null,null,null,null,null,null,null,null,null,null,null,null,null,null,null,null,null,null,null,null,null,null,null,null,null,null,null,null,null,null,null,null,null,null,null,null,null,null,null,null,null,null,null,null,null,null,null,null,null,null,null,null,null,null,null,null,null,null,null,null,null,null,null,null,null,null,null,null,null,null,null,null,null,null,null,null,null,null,null,null,null,null,null,null,null,"Indicador: Porcentaje de estudiantes mujeres atendidas en la institución","(Número de estudiantes mujeres atendidas en la institución/ número total de estudiantes en la institución)*100","Mujeres atendidas",45]
[null,null,null,null,null,null,null,null,null,"Número actual",null,null,"Porcentaje actual",null,null,"Número a lograr",null,null,"Porcentaje a lograr",null,null,"Número alcanzado ",null,null,"Porcentaje alcanzado",null,null,null,null,null,null,null,null,null,null,null,null,null,null,null,null,null,null,null,null,null,null,null,null,null,null,null,null,null,null,null,null,null,null,null,null,null,null,null,null,null,null,null,null,null,null,null,null,null,null,null,null,null,null,null,null,null,null,null,null,null,null,null,null,null,null,null,null,null,null,null,null,null,null,null,null,null,null,null,null,null,null,null,null,null,null,null,null,null,null,null,null,null,null,null,null,null,null,null,null,null,null,null,null,null,null,null,null,null,null,null,null,null,null,null,null,null,null,null,null,null,null,null,null,null,null,null,null,null,null,null,null,null,null,null,null,null,null,null,null,null,null,null,null,null,null,"Indicador: Porcentaje de estudiantes mujeres becadas","(Número de estudiantes mujeres becadas/ número total de estudiantes mujeres en la institución)*100","Mujeres becadas",54]
[null,null,null,null,null,null,null,null,null,null,null,null,null,null,null,null,null,null,null,null,null,null,null,null,null,null,null,null,null,null,null,null,null,null,null,null,null,null,null,null,null,null,null,null,null,null,null,null,null,null,null,null,null,null,null,null,null,null,null,null,null,null,null,null,null,null,null,null,null,null,null,null,null,null,null,null,null,null,null,null,null,null,null,null,null,null,null,null,null,null,null,null,null,null,null,null,null,null,null,null,null,null,null,null,null,null,null,null,null,null,null,null,null,null,null,null,null,null,null,null,null,null,null,null,null,null,null,null,null,null,null,null,null,null,null,null,null,null,null,null,null,null,null,null,null,null,null,null,null,null,null,null,null,null,null,null,null,null,null,null,null,null,null,null,null,null,null,null,null,null,null,"Certificación en el  Modelo de Equidad de Género (MEG)","Certificación en el  Modelo de Equidad de Género (MEG) (NOTA: Poner sí o no únicamente)","certificación",90]
[null,"NOMBRE DEL INDICADOR (5.1)","FORMULA","UNIDAD DE MEDIDA","META INSTITUCIONAL A 2024 \nPROGRAMA INSTITUCIONAL DE DESARROLLO DE LA UNIVERSIDAD",null,null,null,null,"CONTEXTO ACTUAL Y A FUTURO DEL INDICADOR (5.2)",null,null,null,null,null,null,null,null,null,null,null,"Total alcanzado (Se reporta en el tercer cuatrimestre) (5.3)",null,null,null,null,null,null,null,null,null,null,null,null,null,null,null,null,null,null,null,null,null,null,null,null,null,null,null,null,null,null,null,null,null,null,null,null,null,null,null,null,null,null,null,null,null,null,null,null,null,null,null,null,null,null,null,null,null,null,null,null,null,null,null,null,null,null,null,null,null,null,null,null,null,null,null,null,null,null,null,null,null,null,null,null,null,null,null,null,null,null,null,null,null,null,null,null,null,null,null,null,null,null,null,null,null,null,null,null,null,null,null,null,null,null,null,null,null,null,null,null,null,null,null,null,null,null,null,null,null,null,null,null,null,null,null,null,null,null,null,null,null,null,null,null,null,null,null,null,null,"TIPO DE  PROCESO"]
[null,"Indicador: Porcentaje de estudiantes mujeres becadas",{"$f":"(IF(B20=\"Cursos impartidos sobre equidad de género\",FQ15,IF(B20=\"Indicador: Porcentaje de estudiantes mujeres atendidas en la institución\",FQ16,IF(B20=\"Indicador: Porcentaje de estudiantes mujeres becadas\",FQ17,IF(B20=\"Certificación en el  Modelo de Equidad de Género (MEG)\",FQ18)))))","v":"(Número de estudiantes mujeres becadas/ número total de estudiantes mujeres en la institución)*100"},{"$f":"(IF(B20=\"Cursos impartidos sobre equidad de género\",FR15,IF(B20=\"Indicador: Porcentaje de estudiantes mujeres atendidas en la institución\",FR16,IF(B20=\"Indicador: Porcentaje de estudiantes mujeres becadas\",FR17,IF(B20=\"Certificación en el  Modelo de Equidad de Género (MEG)\",FR18)))))","v":"Mujeres becadas"},null,null,null,null,null,2021,null,null,null,null,null,2022,null,null,null,null,null,null,null,null,null,null,null,null,null,null,null,null,null,null,null,null,null,null,null,null,null,null,null,null,null,null,null,null,null,null,null,null,null,null,null,null,null,null,null,null,null,null,null,null,null,null,null,null,null,null,null,null,null,null,null,null,null,null,null,null,null,null,null,null,null,null,null,null,null,null,null,null,null,null,null,null,null,null,null,null,null,null,null,null,null,null,null,null,null,null,null,null,null,null,null,null,null,null,null,null,null,null,null,null,null,null,null,null,null,null,null,null,null,null,null,null,null,null,null,null,null,null,null,null,null,null,null,null,null,null,null,null,null,null,null,null,null,null,null,null,null,null,null,null,null,null,null,null,null,null,null,"Eficiencia"]
[null,null,null,null,null,null,null,null,null,"Número actual",null,null,"Porcentaje actual",null,null,"Número a lograr",null,null,"Porcentaje a lograr",null,null,"Número alcanzado ",null,null,"Porcentaje alcanzado",null,null,null,null,null,null,null,null,null,null,null,null,null,null,null,null,null,null,null,null,null,null,null,null,null,null,null,null,null,null,null,null,null,null,null,null,null,null,null,null,null,null,null,null,null,null,null,null,null,null,null,null,null,null,null,null,null,null,null,null,null,null,null,null,null,null,null,null,null,null,null,null,null,null,null,null,null,null,null,null,null,null,null,null,null,null,null,null,null,null,null,null,null,null,null,null,null,null,null,null,null,null,null,null,null,null,null,null,null,null,null,null,null,null,null,null,null,null,null,null,null,null,null,null,null,null,null,null,null,null,null,null,null,null,null,null,null,null,null,null,null,null,null,null,null,null,"Eficacia"]
[null,null,null,null,null,null,null,null,null,null,null,null,null,null,null,null,null,null,null,null,null,null,null,null,null,null,null,null,null,null,null,null,null,null,null,null,null,null,null,null,null,null,null,null,null,null,null,null,null,null,null,null,null,null,null,null,null,null,null,null,null,null,null,null,null,null,null,null,null,null,null,null,null,null,null,null,null,null,null,null,null,null,null,null,null,null,null,null,null,null,null,null,null,null,null,null,null,null,null,null,null,null,null,null,null,null,null,null,null,null,null,null,null,null,null,null,null,null,null,null,null,null,null,null,null,null,null,null,null,null,null,null,null,null,null,null,null,null,null,null,null,null,null,null,null,null,null,null,null,null,null,null,null,null,null,null,null,null,null,null,null,null,null,null,null,null,null,null,null,null,null,"Pertinencia"]
[null,"OBJETIVO AL QUE ATIENDE DE ACUERDO AL PSE 2020-2024    (6)",null,null,null,null,null,null,null,null,null,null,null,null,null,null,null,null,null,null,null,null,null,null,null,null,null,null,null,null,null,null,null,null,null,null,null,null,null,null,null,null,null,null,null,null,null,null,null,null,null,null,null,null,null,null,null,null,null,null,null,null,null,null,null,null,null,null,null,null,null,null,null,null,null,null,null,null,null,null,null,null,null,null,null,null,null,null,null,null,null,null,null,null,null,null,null,null,null,null,null,null,null,null,null,null,null,null,null,null,null,null,null,null,null,null,null,null,null,null,null,null,null,null,null,null,null,null,null,null,null,null,null,null,null,null,null,null,null,null,null,null,null,null,null,null,null,null,null,null,null,null,null,null,null,null,null,null,null,null,null,null,null,null,null,null,null,null,null,null,null,"Vinculación"]
[null,"CALENDARIZACIÓN Y SEGUIMIENTO DE LAS PRINCIPALES ACTIVIDADES  (7)",null,null,null,null,null,null,null,null,null,null,null,null,null,null,null,null,null,null,null,null,null,null,null,null,null,null,null,null,null,null,null,null,null,null,null,null,null,null,null,null,null,null,null,null,null,null,null,null,null,null,null,null,null,null,null,null,null,null,null,null,null,null,null,null,null,null,null,null,null,null,null,null,null,null,null,null,null,null,null,null,null,null,null,null,null,null,null,null,null,null,null,null,null,null,null,null,null,null,null,null,null,null,null,null,null,null,null,null,null,null,null,null,null,null,null,null,null,null,null,null,null,null,null,null,null,null,null,null,null,null,null,null,null,null,null,null,null,null,null,null,null,null,null,null,null,null,null,null,null,null,null,null,null,null,null,null,null,null,null,null,null,null,null,null,null,null,null,null,null,"Equidad de Género"]
[null,"ACTIVIDADES",null,"UNIDAD DE MEDIDA","META  ANUAL","CALENDARIO 2022                                 CUATRIMESTRAL",null,null,null,null,null,null,null,null,null,null,null,"JUSTIFICACIÓN DE LAS DESVIACIONES POSITIVAS O NEGATIVAS (8)",null,null,null,null,null,null,"AREA\nEJECUTORA (9)"]
[null,null,null,null,null,1,null,null,null,2,null,null,null,3]
[null,null,null,null,null,"PROG",null,"ALC",null,"PROG",null,"ALC",null,"PROG",null,"ALC"]
[null,null,null,null,null,"#","%","#","%","#","%","#","%","#","%","#","%"]
[]
[]
[]
[]
[]
[null,"DESCRIPCIÓN DEL ALCANCE DEL INDICADOR Y EFECTO SOCIOECONOMICO    (10)"]
[]
[]
[]
[null,"NOBRE Y FIRMA DEL RECTOR",null,null,null,null,null,null,null,null,null,null,null,null,null,"NOMBRE Y FIRMA DEL RESPONSABLE O COORDINADOR DEL PROCESO"]
[]
[]
[]
[]
[null,"PROGRAMA OPERATIVO ANUAL  2022"]
[]
[null,"FORMATO 01 \"DESARROLLO DE PROCESOS\""]
[]
[null,"UNIVERSIDAD: _____________________________________"]
[]
[null,"DENOMINACIÓN DEL PROCESO:\n    \nEQUIDAD + GRUPOS VULNERABLES  (1)",null,null,null,null,null,null,null,null,null,null,null,null,null,"NUM. DE PROCESO",null,null,null,null,null,null,null,"TIPO DE PROCESO (3)                "]
[]
[null,null,null,null,null,null,null,null,null,null,null,null,null,null,null,"1      (2)",null,null,null,null,null,null,null,"Eficiencia"]
[]
[null,"ÁREA RESPONSABLE( 4 )"]
[]
[]
[null,"INDICADORES  ( 5 )"]
[null,"NOMBRE DEL INDICADOR (5.1)","FORMULA","UNIDAD DE MEDIDA","META INSTITUCIONAL A 2024 \nPROGRAMA INSTITUCIONAL DE DESARROLLO DE LA UNIVERSIDAD",null,null,null,null,"CONTEXTO ACTUAL Y A FUTURO DEL INDICADOR (5.2)",null,null,null,null,null,null,null,null,null,null,null,"Total alcanzado (Se reporta en el tercer cuatrimestre) (5.3)"]
[null,"La Institución forma parte de la Red Nacional Incluyente para personas con discapacidad",{"$f":"(IF(B58=\"Número de alumnos atendidos  con algun tipo de dicapacidad\",FQ11,IF(B58=\"Acondicionamiento de espacios para personas con discapacidad\",FQ12,IF(B58=\"La Institución forma parte de la Red Nacional Incluyente para personas con discapacidad\",FQ13,IF(B58=\"Personal de la UT con alguna discapacidad\",#REF!)))))","v":"NOTA: Poner sí o no únicamente\n"},{"$f":"(IF(B58=\"Número de alumnos atendidos  con algun tipo de dicapacidad\",FR11,IF(B58=\"Acondicionamiento de espacios para personas con discapacidad\",FR12,IF(B58=\"La Institución forma parte de la Red Nacional Incluyente para personas con discapacidad\",FR13,IF(B58=\"Personal de la UT con alguna discapacidad\",#REF!)))))","v":"certificación"},null,null,null,null,null,2021,null,null,null,null,null,2022]
[null,null,null,null,null,null,null,null,null,"Número actual",null,null,"Porcentaje actual",null,null,"Número a lograr",null,null,"Porcentaje a lograr",null,null,"Número alcanzado ",null,null,"Porcentaje alcanzado"]
[]
[null,"NOMBRE DEL INDICADOR (5.1)","FORMULA","UNIDAD DE MEDIDA","META INSTITUCIONAL A 2024 \nPROGRAMA INSTITUCIONAL DE DESARROLLO DE LA UNIVERSIDAD",null,null,null,null,"CONTEXTO ACTUAL Y A FUTURO DEL INDICADOR (5.2)",null,null,null,null,null,null,null,null,null,null,null,"Total alcanzado (Se reporta en el tercer cuatrimestre) (5.3)"]
[null,"La Institución forma parte de la Red Nacional Incluyente para personas con discapacidad",{"$f":"(IF(B62=\"Número de alumnos atendidos  con algun tipo de dicapacidad\",FQ11,IF(B62=\"Acondicionamiento de espacios para personas con discapacidad\",FQ12,IF(B62=\"La Institución forma parte de la Red Nacional Incluyente para personas con discapacidad\",FQ13,IF(B62=\"Personal de la UT con alguna discapacidad\",#REF!)))))","v":"NOTA: Poner sí o no únicamente\n"},{"$f":"(IF(B62=\"Número de alumnos atendidos  con algun tipo de dicapacidad\",FR11,IF(B62=\"Acondicionamiento de espacios para personas con discapacidad\",FR12,IF(B62=\"La Institución forma parte de la Red Nacional Incluyente para personas con discapacidad\",FR13,IF(B62=\"Personal de la UT con alguna discapacidad\",#REF!)))))","v":"certificación"},null,null,null,null,null,2021,null,null,null,null,null,2022]
[null,null,null,null,null,null,null,null,null,"Número actual",null,null,"Porcentaje actual",null,null,"Número a lograr",null,null,"Porcentaje a lograr",null,null,"Número alcanzado ",null,null,"Porcentaje alcanzado"]
[]
[null,"OBJETIVO AL QUE ATIENDE DE ACUERDO AL PSE 2020-2024    (6)"]
[null,"CALENDARIZACIÓN Y SEGUIMIENTO DE LAS PRINCIPALES ACTIVIDADES  (7)"]
[null,"ACTIVIDADES",null,"UNIDAD DE MEDIDA","META  ANUAL","CALENDARIO 2022                                 CUATRIMESTRAL",null,null,null,null,null,null,null,null,null,null,null,"JUSTIFICACIÓN DE LAS DESVIACIONES POSITIVAS O NEGATIVAS (8)",null,null,null,null,null,null,"AREA\nEJECUTORA (9)"]
[null,null,null,null,null,1,null,null,null,2,null,null,null,3]
[null,null,null,null,null,"PROG",null,"ALC",null,"PROG",null,"ALC",null,"PROG",null,"ALC"]
[null,null,null,null,null,"#","%","#","%","#","%","#","%","#","%","#","%"]
[]
[]
[]
[]
[]
[null,"DESCRIPCIÓN DEL ALCANCE DEL INDICADOR Y EFECTO SOCIOECONOMICO    (10)"]
[]
[]
[]
[null,"NOBRE Y FIRMA DEL RECTOR",null,null,null,null,null,null,null,null,null,null,null,null,null,"NOMBRE Y FIRMA DEL RESPONSABLE O COORDINADOR DEL PROCESO"]
[]
[]
[]
[]
[null,"PROGRAMA OPERATIVO ANUAL  2022"]
[]
[null,"FORMATO 01 \"DESARROLLO DE PROCESOS\""]
[]
[null,"UNIVERSIDAD: _____________________________________"]
[]
[null,"DENOMINACIÓN DEL PROCESO:\n    \nEQUIDAD + GRUPOS VULNERABLES   (1)",null,null,null,null,null,null,null,null,null,null,null,null,null,"NUM. DE PRCESO",null,null,null,null,null,null,null,"TIPO DE PROCESO (3)               "]
[]
[null,null,null,null,null,null,null,null,null,null,null,null,null,null,null,"1      (2)",null,null,null,null,null,null,null,"Eficiencia"]
[]
[null,"ÁREA RESPONSABLE( 4 )"]
[]
[]
[null,"INDICADORES  ( 5 )"]
[null,"NOMBRE DEL INDICADOR (5.1)","FORMULA","UNIDAD DE MEDIDA","META INSTITUCIONAL A 2024 \nPROGRAMA INSTITUCIONAL DE DESARROLLO DE LA UNIVERSIDAD",null,null,null,null,"CONTEXTO ACTUAL Y A FUTURO DEL INDICADOR (5.2)",null,null,null,null,null,null,null,null,null,null,null,"Total alcanzado (Se reporta en el tercer cuatrimestre) (5.3)"]
[null,"Número de alumnos de origen indígena atendidos en la institución",{"$f":"(IF(B100=\"Número de alumnos de origen indígena atendidos en la institución\",FQ7,IF(B100=\"Porcentaje de alumnos de origen indígena becados\",FQ8)))","v":"(Número de alumnos de origen indígena en el año t/número total de alumnos en el año t)*100"},{"$f":"(IF(B100=\"Número de alumnos de origen indígena atendidos en la institución\",FR7,IF(B100=\"Porcentaje de alumnos de origen indígena becados\",FR8)))","v":"Alumnos"},null,null,null,null,null,2021,null,null,null,null,null,2022]
[null,null,null,null,null,null,null,null,null,"Número actual",null,null,"Porcentaje actual",null,null,"Número a lograr",null,null,"Porcentaje a lograr",null,null,"Número alcanzado ",null,null,"Porcentaje alcanzado"]
[]
[null,"NOMBRE DEL INDICADOR (5.1)","FORMULA","UNIDAD DE MEDIDA","META INSTITUCIONAL A 2024 \nPROGRAMA INSTITUCIONAL DE DESARROLLO DE LA UNIVERSIDAD",null,null,null,null,"CONTEXTO ACTUAL Y A FUTURO DEL INDICADOR (5.2)",null,null,null,null,null,null,null,null,null,null,null,"Total alcanzado (Se reporta en el tercer cuatrimestre) (5.3)"]
[null,"Número de alumnos de origen indígena atendidos en la institución",{"$f":"(IF(B104=\"Número de alumnos de origen indígena atendidos en la institución\",FQ7,IF(B104=\"Porcentaje de alumnos de origen indígena becados\",FQ8)))","v":"(Número de alumnos de origen indígena en el año t/número total de alumnos en el año t)*100"},{"$f":"(IF(B104=\"Número de alumnos de origen indígena atendidos en la institución\",FR7,IF(B104=\"Porcentaje de alumnos de origen indígena becados\",FR8)))","v":"Alumnos"},null,null,null,null,null,2021,null,null,null,null,null,2022]
[null,null,null,null,null,null,null,null,null,"Número actual",null,null,"Porcentaje actual",null,null,"Número a lograr",null,null,"Porcentaje a lograr",null,null,"Número alcanzado ",null,null,"Porcentaje alcanzado"]
[]
[null,"OBJETIVO AL QUE ATIENDE DE ACUERDO AL PSE 2020-2024    (6)"]
[null,"CALENDARIZACIÓN Y SEGUIMIENTO DE LAS PRINCIPALES ACTIVIDADES  (7)"]
[null,"ACTIVIDADES",null,"UNIDAD DE MEDIDA","META  ANUAL","CALENDARIO 2022                                    CUATRIMESTRAL",null,null,null,null,null,null,null,null,null,null,null,"JUSTIFICACIÓN DE LAS DESVIACIONES POSITIVAS O NEGATIVAS (8)",null,null,null,null,null,null,"AREA\nEJECUTORA (9)"]
[null,null,null,null,null,1,null,null,null,2,null,null,null,3]
[null,null,null,null,null,"PROG",null,"ALC",null,"PROG",null,"ALC",null,"PROG",null,"ALC"]
[null,null,null,null,null,"#","%","#","%","#","%","#","%","#","%","#","%"]
[]
[]
[]
[]
[]
[null,"DESCRIPCIÓN DEL ALCANCE DEL INDICADOR Y EFECTO SOCIOECONOMICO    (10)"]
[]
[]
[]
[]
[null,"NOBRE Y FIRMA DEL RECTOR",null,null,null,null,null,null,null,null,null,null,null,null,null,"NOMBRE Y FIRMA DEL RESPONSABLE O COORDINADOR DEL PROCESO"]

{"sheet":"CEDULA- académico","index":1,"n_rows":174,"n_cols":174,"rows_kept":174,"cut":false,"hidden":false,"merged":[[98,1,99,26],[100,1,100,26],[101,1,101,26],[89,1,89,26],[69,1,69,2],[69,3,69,26],[102,4,102,8],[103,4,106,8],[102,9,102,20],[102,21,103,26],[74,1,74,2],[74,4,74,5],[74,18,74,24],[74,25,74,26],[75,1,75,2],[75,4,75,5],[75,18,75,24],[75,25,75,26],[79,1,79,2],[79,4,79,5],[80,1,80,26],[81,1,81,26],[84,1,84,4],[84,16,84,26],[147,4,147,8],[147,9,147,20],[147,21,148,26],[104,9,104,11],[104,12,104,14],[104,15,104,17],[104,18,104,20],[104,21,104,23],[104,24,104,26],[113,1,113,26],[114,1,116,2],[114,3,116,3],[114,4,116,5],[114,6,114,17],[114,18,116,24],[114,25,116,26],[115,6,115,9],[115,10,115,13],[117,18,117,24],[117,25,117,26],[118,1,118,2],[118,4,118,5],[115,14,115,17],[116,6,116,7],[61,21,62,26],[16,21,16,23],[32,1,32,2],[32,4,32,5],[32,18,32,24],[14,4,14,8],[15,4,19,8],[14,9,14,20],[14,21,15,26],[26,1,27,2],[26,3,27,26],[32,25,32,26],[28,1,28,26],[29,1,31,2],[29,3,31,3],[29,4,31,5],[29,6,29,17],[29,18,31,24],[29,25,31,26],[30,6,30,9],[30,10,30,13],[17,9,19,11],[17,18,19,20],[30,14,30,17],[31,6,31,7],[31,8,31,9],[31,10,31,11],[31,12,31,13],[31,14,31,15],[31,16,31,17],[61,4,61,8],[61,9,61,20],[17,21,19,23],[33,18,33,24],[21,9,21,14],[21,15,21,20],[22,9,22,11],[22,12,22,14],[22,15,22,17],[22,18,22,20],[22,21,22,23],[51,1,51,26],[53,1,56,15],[53,16,54,23],[53,24,54,26],[55,16,56,23],[55,24,56,26],[21,3,25,3],[17,24,19,26],[0,1,0,26],[2,1,2,26],[4,1,4,26],[6,1,9,15],[6,16,7,23],[6,24,7,26],[8,16,9,23],[8,24,9,26],[15,3,19,3],[16,24,16,26],[15,1,19,1],[15,2,19,2],[15,15,15,20],[16,9,16,11],[16,12,16,14],[16,15,16,17],[16,18,16,20],[15,9,15,14],[10,1,11,26],[12,1,12,26],[17,12,19,14],[17,15,19,17],[13,1,13,26],[33,25,33,26],[37,1,37,2],[37,4,37,5],[38,1,38,26],[39,1,39,26],[42,1,42,4],[42,16,42,26],[34,1,34,2],[34,4,34,5],[35,1,35,2],[35,4,35,5],[36,1,36,2],[36,4,36,5],[34,18,34,24],[34,25,34,26],[35,18,35,24],[35,25,35,26],[36,18,36,24],[36,25,36,26],[37,18,37,24],[37,25,37,26],[33,1,33,2],[63,21,63,23],[63,24,63,26],[64,21,64,26],[72,14,72,17],[73,6,73,7],[73,8,73,9],[73,10,73,11],[73,12,73,13],[73,14,73,15],[73,16,73,17],[67,12,67,14],[67,15,67,17],[67,18,67,20],[70,1,70,26],[71,1,73,2],[71,3,73,3],[71,4,73,5],[71,6,71,17],[71,18,73,24],[71,25,73,26],[72,6,72,9],[72,10,72,13],[62,2,64,2],[62,1,64,1],[76,1,76,2],[76,4,76,5],[77,1,77,2],[77,4,77,5],[78,1,78,2],[78,4,78,5],[76,18,76,24],[76,25,76,26],[77,18,77,24],[77,25,77,26],[78,18,78,24],[78,25,78,26],[79,18,79,24],[79,25,79,26],[90,1,90,26],[92,1,92,26],[94,1,97,15],[94,16,95,23],[94,24,95,26],[96,16,97,23],[96,24,97,26],[112,1,112,2],[112,3,112,26],[103,1,106,1],[103,2,106,2],[103,3,106,3],[105,9,106,11],[105,12,106,14],[105,15,106,17],[105,18,106,20],[103,9,103,14],[103,15,103,20],[105,21,106,23],[105,24,106,26],[108,1,111,1],[108,2,111,2],[108,3,111,3],[110,24,111,26],[110,21,111,23],[116,8,116,9],[116,10,116,11],[116,12,116,13],[116,14,116,15],[116,16,116,17],[122,1,122,2],[122,4,122,5],[123,1,123,26],[124,1,124,26],[117,1,117,2],[117,4,117,5],[128,1,128,4],[128,16,128,26],[119,1,119,2],[119,4,119,5],[120,1,120,2],[120,4,120,5],[121,1,121,2],[121,4,121,5],[157,1,157,2],[157,3,157,26],[148,3,151,3],[143,1,144,26],[145,1,145,26],[146,1,146,26],[148,4,151,8],[148,1,151,1],[148,2,151,2],[148,9,148,14],[148,15,148,20],[149,9,149,11],[149,12,149,14],[149,15,149,17],[149,18,149,20],[149,21,149,23],[149,24,149,26],[150,9,151,11],[150,12,151,14],[150,15,151,17],[150,18,151,20],[150,21,151,23],[153,1,156,1],[153,2,156,2],[167,1,167,2],[167,4,167,5],[163,18,163,24],[163,25,163,26],[159,6,159,17],[159,18,161,24],[159,25,161,26],[160,6,160,9],[160,10,160,13],[155,15,156,17],[155,18,156,20],[155,21,156,23],[168,1,168,26],[169,1,169,26],[173,1,173,4],[173,16,173,26],[164,1,164,2],[164,4,164,5],[165,1,165,2],[165,4,165,5],[166,1,166,2],[166,4,166,5],[164,18,164,24],[164,25,164,26],[165,18,165,24],[165,25,165,26],[166,18,166,24],[166,25,166,26],[167,18,167,24],[167,25,167,26],[6,170,6,171],[162,1,162,2],[162,4,162,5],[162,18,162,24],[162,25,162,26],[163,1,163,2],[163,4,163,5],[160,14,160,17],[161,6,161,7],[161,8,161,9],[161,10,161,11],[161,12,161,13],[161,14,161,15],[161,16,161,17],[158,1,158,26],[150,24,151,26],[20,4,20,8],[20,9,20,20],[20,21,21,26],[21,1,25,1],[21,2,25,2],[159,1,161,2],[159,3,161,3],[159,4,161,5],[141,16,142,23],[141,24,142,26],[152,4,152,8],[152,9,152,20],[152,21,153,26],[154,24,154,26],[155,24,156,26],[133,1,133,26],[135,1,135,26],[137,1,137,26],[139,1,142,15],[139,16,140,23],[139,24,140,26],[153,3,156,3],[153,4,156,8],[153,9,153,14],[153,15,153,20],[154,9,154,11],[154,12,154,14],[154,15,154,17],[154,18,154,20],[154,21,154,23],[155,9,156,11],[155,12,156,14],[22,24,22,26],[23,9,25,11],[23,12,25,14],[23,15,25,17],[23,18,25,20],[23,21,25,23],[23,24,25,26],[65,4,65,8],[65,9,65,20],[65,21,66,26],[33,4,33,5],[57,1,58,26],[59,1,59,26],[60,1,60,26],[47,1,47,26],[49,1,49,26],[21,4,25,8],[66,1,68,1],[66,2,68,2],[66,3,68,3],[66,4,68,8],[66,9,66,14],[66,15,66,20],[67,9,67,11],[64,9,64,11],[64,12,64,14],[64,15,64,17],[64,18,64,20],[62,9,62,14],[62,15,62,20],[62,4,64,8],[63,9,63,11],[63,12,63,14],[63,15,63,17],[63,18,63,20],[62,3,64,3],[67,21,67,23],[67,24,67,26],[68,9,68,11],[68,12,68,14],[68,15,68,17],[68,18,68,20],[68,21,68,26],[107,4,107,8],[107,9,107,20],[107,21,108,26],[108,4,111,8],[108,9,108,14],[108,15,108,20],[109,9,109,11],[109,12,109,14],[109,15,109,17],[109,18,109,20],[109,21,109,23],[109,24,109,26],[110,9,111,11],[110,12,111,14],[110,15,111,17],[110,18,111,20]]}
[null,"PROGRAMA OPERATIVO ANUAL  2022"]
[]
[null,"FORMATO 01 \"DESARROLLO DE PROCESOS\""]
[]
[null,"UNIVERSIDAD: _____________________________________"]
[]
[null,"DENOMINACIÓN DEL PROCESO:\n    \nACADÉMICO    (1)",null,null,null,null,null,null,null,null,null,null,null,null,null,null,"NUM. DE PROCESO",null,null,null,null,null,null,null,"TIPO DE PROCESO  (3)              ",null,null,null,null,null,null,null,null,null,null,null,null,null,null,null,null,null,null,null,null,null,null,null,null,null,null,null,null,null,null,null,null,null,null,null,null,null,null,null,null,null,null,null,null,null,null,null,null,null,null,null,null,null,null,null,null,null,null,null,null,null,null,null,null,null,null,null,null,null,null,null,null,null,null,null,null,null,null,null,null,null,null,null,null,null,null,null,null,null,null,null,null,null,null,null,null,null,null,null,null,null,null,null,null,null,null,null,null,null,null,null,null,null,null,null,null,null,null,null,null,null,null,null,null,null,null,null,null,null,null,null,null,null,null,null,null,null,null,null,null,null,null,null,null,null,"ASEGURAMIENTO DE LA CALIDAD DE LOS PROGRAMAS EDUCATIVOS"]
[null,null,null,null,null,null,null,null,null,null,null,null,null,null,null,null,null,null,null,null,null,null,null,null,null,null,null,null,null,null,null,null,null,null,null,null,null,null,null,null,null,null,null,null,null,null,null,null,null,null,null,null,null,null,null,null,null,null,null,null,null,null,null,null,null,null,null,null,null,null,null,null,null,null,null,null,null,null,null,null,null,null,null,null,null,null,null,null,null,null,null,null,null,null,null,null,null,null,null,null,null,null,null,null,null,null,null,null,null,null,null,null,null,null,null,null,null,null,null,null,null,null,null,null,null,null,null,null,null,null,null,null,null,null,null,null,null,null,null,null,null,null,null,null,null,null,null,null,null,null,null,null,null,null,null,null,null,null,null,null,null,null,null,null,null,null,null,null,null,null,"INDICADOR","FÓRMULA","Unidad de Medida","Media Nacional"]
[null,null,null,null,null,null,null,null,null,null,null,null,null,null,null,null,"1      (2)",null,null,null,null,null,null,null,"Eficiencia",null,null,null,null,null,null,null,null,null,null,null,null,null,null,null,null,null,null,null,null,null,null,null,null,null,null,null,null,null,null,null,null,null,null,null,null,null,null,null,null,null,null,null,null,null,null,null,null,null,null,null,null,null,null,null,null,null,null,null,null,null,null,null,null,null,null,null,null,null,null,null,null,null,null,null,null,null,null,null,null,null,null,null,null,null,null,null,null,null,null,null,null,null,null,null,null,null,null,null,null,null,null,null,null,null,null,null,null,null,null,null,null,null,null,null,null,null,null,null,null,null,null,null,null,null,null,null,null,null,null,null,null,null,null,null,null,null,null,null,null,null,null,null,null,null,"Porcentaje de programas evaluables de TSU certificados en el nivel 1 de CIEES y/o acreditados por algún organismo reconocido por el COPAES","(Número de programas evaluables de TSU certificados en el nivel 1 de CIEES y/o acreditados por organismos reconocidos por el COPAES/ Total de programas de TSU evaluables)*100 \n","PE",87]
[null,null,null,null,null,null,null,null,null,null,null,null,null,null,null,null,null,null,null,null,null,null,null,null,null,null,null,null,null,null,null,null,null,null,null,null,null,null,null,null,null,null,null,null,null,null,null,null,null,null,null,null,null,null,null,null,null,null,null,null,null,null,null,null,null,null,null,null,null,null,null,null,null,null,null,null,null,null,null,null,null,null,null,null,null,null,null,null,null,null,null,null,null,null,null,null,null,null,null,null,null,null,null,null,null,null,null,null,null,null,null,null,null,null,null,null,null,null,null,null,null,null,null,null,null,null,null,null,null,null,null,null,null,null,null,null,null,null,null,null,null,null,null,null,null,null,null,null,null,null,null,null,null,null,null,null,null,null,null,null,null,null,null,null,null,null,null,null,null,null,"Porcentaje de programas evaluables de licenciatura certificados en el nivel 1 de CIEES y/o acreditados por algún organismo reconocido por el COPAES","(Número de programas evaluables de licenciatura certificados en el nivel 1 de CIEES y/o acreditados por organismos reconocidos por el COPAES/ Total de programas de Licenciatura evaluables)*100 \n","PE",64]
[null,"ÁREA RESPONSABLE ( 4 )",null,null,null,null,null,null,null,null,null,null,null,null,null,null,null,null,null,null,null,null,null,null,null,null,null,null,null,null,null,null,null,null,null,null,null,null,null,null,null,null,null,null,null,null,null,null,null,null,null,null,null,null,null,null,null,null,null,null,null,null,null,null,null,null,null,null,null,null,null,null,null,null,null,null,null,null,null,null,null,null,null,null,null,null,null,null,null,null,null,null,null,null,null,null,null,null,null,null,null,null,null,null,null,null,null,null,null,null,null,null,null,null,null,null,null,null,null,null,null,null,null,null,null,null,null,null,null,null,null,null,null,null,null,null,null,null,null,null,null,null,null,null,null,null,null,null,null,null,null,null,null,null,null,null,null,null,null,null,null,null,null,null,null,null,null,null,null,null,"Porcentaje de estudiantes que realiza estudios en programas de TSU certificados  en el nivel 1 de CIEES y/o acreditados por el COPAES","(Número de estudiantes que realizan sus estudios en programas de TSU certificados en el nivel 1 de CIEES y/o acreditados por el COPAES/ Número de estudiantes que realizan sus estudios de TSU en programas evaluables)*100\n","Estudiantes",91]
[null,null,null,null,null,null,null,null,null,null,null,null,null,null,null,null,null,null,null,null,null,null,null,null,null,null,null,null,null,null,null,null,null,null,null,null,null,null,null,null,null,null,null,null,null,null,null,null,null,null,null,null,null,null,null,null,null,null,null,null,null,null,null,null,null,null,null,null,null,null,null,null,null,null,null,null,null,null,null,null,null,null,null,null,null,null,null,null,null,null,null,null,null,null,null,null,null,null,null,null,null,null,null,null,null,null,null,null,null,null,null,null,null,null,null,null,null,null,null,null,null,null,null,null,null,null,null,null,null,null,null,null,null,null,null,null,null,null,null,null,null,null,null,null,null,null,null,null,null,null,null,null,null,null,null,null,null,null,null,null,null,null,null,null,null,null,null,null,null,null,"Porcentaje de estudiantes que realiza estudios en programas de Licenciatura certificados en el nivel 1 de CIEES y/o acreditados por el COPAES","(Número de estudiantes que realizan sus estudios en programas de licenciatura certificados en el nivel 1 de CIEES y/o acreditados por el COPAES/ Número de estudiantes que realizan sus estudios de Licenciatura en programas evaluables)*100\n","Estudiantes",65]
[null,null,null,null,null,null,null,null,null,null,null,null,null,null,null,null,null,null,null,null,null,null,null,null,null,null,null,null,null,null,null,null,null,null,null,null,null,null,null,null,null,null,null,null,null,null,null,null,null,null,null,null,null,null,null,null,null,null,null,null,null,null,null,null,null,null,null,null,null,null,null,null,null,null,null,null,null,null,null,null,null,null,null,null,null,null,null,null,null,null,null,null,null,null,null,null,null,null,null,null,null,null,null,null,null,null,null,null,null,null,null,null,null,null,null,null,null,null,null,null,null,null,null,null,null,null,null,null,null,null,null,null,null,null,null,null,null,null,null,null,null,null,null,null,null,null,null,null,null,null,null,null,null,null,null,null,null,null,null,null,null,null,null,null,null,null,null,null,null,null,"Porcentaje de Avance en la Obtención de la Certificación en los tres procesos básicos en la norma ISO aplicables","(Número de certificaciones obtenidas en el año t/número de certificaciones programadas en el año t)*100","Certificaciones",93]
[null,"INDICADORES  ( 5 )",null,null,null,null,null,null,null,null,null,null,null,null,null,null,null,null,null,null,null,null,null,null,null,null,null,null,null,null,null,null,null,null,null,null,null,null,null,null,null,null,null,null,null,null,null,null,null,null,null,null,null,null,null,null,null,null,null,null,null,null,null,null,null,null,null,null,null,null,null,null,null,null,null,null,null,null,null,null,null,null,null,null,null,null,null,null,null,null,null,null,null,null,null,null,null,null,null,null,null,null,null,null,null,null,null,null,null,null,null,null,null,null,null,null,null,null,null,null,null,null,null,null,null,null,null,null,null,null,null,null,null,null,null,null,null,null,null,null,null,null,null,null,null,null,null,null,null,null,null,null,null,null,null,null,null,null,null,null,null,null,null,null,null,null,null,null,null,null,"Número de estudios de trayectoria y de egresados llevados a cabo en el Año","Número de estudios de trayectoria y de egresados llevados a cabo en el año\n","Estudios",447]
[null,"NOMBRE DEL INDICADOR (5.1)","FÓRMULA","UNIDAD DE MEDIDA","META INSTITUCIONAL A 2024 \nPROGRAMA INSTITUCIONAL DE DESARROLLO DE LA UNIVERSIDAD",null,null,null,null,"CONTEXTO ACTUAL Y A FUTURO DEL INDICADOR (5.2)",null,null,null,null,null,null,null,null,null,null,null,"Total alcanzado (Se reporta en el tercer cuatrimestre) (5.3)",null,null,null,null,null,null,null,null,null,null,null,null,null,null,null,null,null,null,null,null,null,null,null,null,null,null,null,null,null,null,null,null,null,null,null,null,null,null,null,null,null,null,null,null,null,null,null,null,null,null,null,null,null,null,null,null,null,null,null,null,null,null,null,null,null,null,null,null,null,null,null,null,null,null,null,null,null,null,null,null,null,null,null,null,null,null,null,null,null,null,null,null,null,null,null,null,null,null,null,null,null,null,null,null,null,null,null,null,null,null,null,null,null,null,null,null,null,null,null,null,null,null,null,null,null,null,null,null,null,null,null,null,null,null,null,null,null,null,null,null,null,null,null,null,null,null,null,null,"Porcentaje de programas educativos con Análisis Situacional del Trabajo (AST)","(Programas educativos en la institución con AST vigentes/ total de programas educativos en la institución)*100","Análisis",96]
[null,"Porcentaje de estudiantes que realiza estudios en programas de Licenciatura certificados en el nivel 1 de CIEES y/o acreditados por el COPAES",{"$f":"(IF(B16=\"Porcentaje de programas evaluables de TSU certificados en el nivel 1 de CIEES y/o acreditados por algún organismo reconocido por el COPAES\",FP9,IF(B16=\"Porcentaje de programas evaluables de licenciatura certificados en el nivel 1 de CIEES y/o acreditados por algún organismo reconocido por el COPAES\",FP10,IF(B16=\"Porcentaje de estudiantes que realiza estudios en programas de TSU certificados  en el nivel 1 de CIEES y/o acreditados por el COPAES\",FP11,IF(B16=\"Porcentaje de estudiantes que realiza estudios en programas de Licenciatura certificados en el nivel 1 de CIEES y/o acreditados por el COPAES\",FP12,IF(B16=\"Porcentaje de Avance en la Obtención de la Certificación en los tres procesos básicos en la norma ISO aplicables\",FP13))))))","v":"(Número de estudiantes que realizan sus estudios en programas de licenciatura certificados en el nivel 1 de CIEES y/o acreditados por el COPAES/ Número de estudiantes que realizan sus estudios de Licenciatura en programas evaluables)*100\n"},{"$f":"(IF(B16=\"Porcentaje de programas evaluables de TSU certificados en el nivel 1 de CIEES y/o acreditados por algún organismo reconocido por el COPAES\",FQ9,IF(B16=\"Porcentaje de programas evaluables de licenciatura certificados en el nivel 1 de CIEES y/o acreditados por algún organismo reconocido por el COPAES\",FQ10,IF(B16=\"Porcentaje de estudiantes que realiza estudios en programas de TSU certificados  en el nivel 1 de CIEES y/o acreditados por el COPAES\",FQ11,IF(B16=\"Porcentaje de estudiantes que realiza estudios en programas de Licenciatura certificados en el nivel 1 de CIEES y/o acreditados por el COPAES\",FQ12,IF(B16=\"Porcentaje de Avance en la Obtención de la Certificación en los tres procesos básicos en la norma ISO aplicables\",FQ13))))))","v":"Estudiantes"},null,null,null,null,null,2021,null,null,null,null,null,2022,null,null,null,null,null,null,null,null,null,null,null,null,null,null,null,null,null,null,null,null,null,null,null,null,null,null,null,null,null,null,null,null,null,null,null,null,null,null,null,null,null,null,null,null,null,null,null,null,null,null,null,null,null,null,null,null,null,null,null,null,null,null,null,null,null,null,null,null,null,null,null,null,null,null,null,null,null,null,null,null,null,null,null,null,null,null,null,null,null,null,null,null,null,null,null,null,null,null,null,null,null,null,null,null,null,null,null,null,null,null,null,null,null,null,null,null,null,null,null,null,null,null,null,null,null,null,null,null,null,null,null,null,null,null,null,null,null,null,null,null,null,null,null,null,null,null,null,null,null,null,null,null,null,null,"Número de estudios de factibilidad elaborados","Número de estudios de factibilidad elaborados","Estudios",243]
[null,null,null,null,null,null,null,null,null,"Número actual",null,null,"Porcentaje actual",null,null,"Número a lograr",null,null,"Porcentaje a lograr",null,null,"Número alcanzado ",null,null,"Porcentaje alcanzado",null,null,null,null,null,null,null,null,null,null,null,null,null,null,null,null,null,null,null,null,null,null,null,null,null,null,null,null,null,null,null,null,null,null,null,null,null,null,null,null,null,null,null,null,null,null,null,null,null,null,null,null,null,null,null,null,null,null,null,null,null,null,null,null,null,null,null,null,null,null,null,null,null,null,null,null,null,null,null,null,null,null,null,null,null,null,null,null,null,null,null,null,null,null,null,null,null,null,null,null,null,null,null,null,null,null,null,null,null,null,null,null,null,null,null,null,null,null,null,null,null,null,null,null,null,null,null,null,null,null,null,null,null,null,null,null,null,null,null,null,null,null,null,null,null,"AUMENTO CON EFICACIA DE LA COBERTURA"]
[null,null,null,null,null,null,null,null,null,null,null,null,null,null,null,null,null,null,null,null,null,null,null,null,null,null,null,null,null,null,null,null,null,null,null,null,null,null,null,null,null,null,null,null,null,null,null,null,null,null,null,null,null,null,null,null,null,null,null,null,null,null,null,null,null,null,null,null,null,null,null,null,null,null,null,null,null,null,null,null,null,null,null,null,null,null,null,null,null,null,null,null,null,null,null,null,null,null,null,null,null,null,null,null,null,null,null,null,null,null,null,null,null,null,null,null,null,null,null,null,null,null,null,null,null,null,null,null,null,null,null,null,null,null,null,null,null,null,null,null,null,null,null,null,null,null,null,null,null,null,null,null,null,null,null,null,null,null,null,null,null,null,null,null,null,null,null,null,null,null,"INDICADOR","FÓRMULA","Unidad de Medida","Media Nacional"]
[null,null,null,null,null,null,null,null,null,null,null,null,null,null,null,null,null,null,null,null,null,null,null,null,null,null,null,null,null,null,null,null,null,null,null,null,null,null,null,null,null,null,null,null,null,null,null,null,null,null,null,null,null,null,null,null,null,null,null,null,null,null,null,null,null,null,null,null,null,null,null,null,null,null,null,null,null,null,null,null,null,null,null,null,null,null,null,null,null,null,null,null,null,null,null,null,null,null,null,null,null,null,null,null,null,null,null,null,null,null,null,null,null,null,null,null,null,null,null,null,null,null,null,null,null,null,null,null,null,null,null,null,null,null,null,null,null,null,null,null,null,null,null,null,null,null,null,null,null,null,null,null,null,null,null,null,null,null,null,null,null,null,null,null,null,null,null,null,null,null,"Número de estudiantes inscritos en TSU","Número de estudiantes inscritos en TSU","Estudiantes",199180]
[null,null,null,null,null,null,null,null,null,null,null,null,null,null,null,null,null,null,null,null,null,null,null,null,null,null,null,null,null,null,null,null,null,null,null,null,null,null,null,null,null,null,null,null,null,null,null,null,null,null,null,null,null,null,null,null,null,null,null,null,null,null,null,null,null,null,null,null,null,null,null,null,null,null,null,null,null,null,null,null,null,null,null,null,null,null,null,null,null,null,null,null,null,null,null,null,null,null,null,null,null,null,null,null,null,null,null,null,null,null,null,null,null,null,null,null,null,null,null,null,null,null,null,null,null,null,null,null,null,null,null,null,null,null,null,null,null,null,null,null,null,null,null,null,null,null,null,null,null,null,null,null,null,null,null,null,null,null,null,null,null,null,null,null,null,null,null,null,null,null,"Número de estudiantes inscritos en Licenciatura","Número de estudiantes inscritos en Licenciatura","Estudiantes",87053]
[null,"NOMBRE DEL INDICADOR (5.1)","FÓRMULA","UNIDAD DE MEDIDA","META INSTITUCIONAL A 2024 \nPROGRAMA INSTITUCIONAL DE DESARROLLO DE LA UNIVERSIDAD",null,null,null,null,"CONTEXTO ACTUAL Y A FUTURO DEL INDICADOR (5.2)",null,null,null,null,null,null,null,null,null,null,null,"Total alcanzado (Se reporta en el tercer cuatrimestre) (5.3)",null,null,null,null,null,null,null,null,null,null,null,null,null,null,null,null,null,null,null,null,null,null,null,null,null,null,null,null,null,null,null,null,null,null,null,null,null,null,null,null,null,null,null,null,null,null,null,null,null,null,null,null,null,null,null,null,null,null,null,null,null,null,null,null,null,null,null,null,null,null,null,null,null,null,null,null,null,null,null,null,null,null,null,null,null,null,null,null,null,null,null,null,null,null,null,null,null,null,null,null,null,null,null,null,null,null,null,null,null,null,null,null,null,null,null,null,null,null,null,null,null,null,null,null,null,null,null,null,null,null,null,null,null,null,null,null,null,null,null,null,null,null,null,null,null,null,null,null,"Tasa de egreso por cohorte generacional de TSU","(Número de estudiantes de TSU por cohorte que egresan/ Total de estudiantes de TSU de la cohorte)*100","Estudiantes",66]
[null,"Porcentaje de estudiantes que realiza estudios en programas de TSU certificados  en el nivel 1 de CIEES y/o acreditados por el COPAES",{"$f":"(IF(B22=\"Porcentaje de programas evaluables de TSU certificados en el nivel 1 de CIEES y/o acreditados por algún organismo reconocido por el COPAES\",FP9,IF(B22=\"Porcentaje de programas evaluables de licenciatura certificados en el nivel 1 de CIEES y/o acreditados por algún organismo reconocido por el COPAES\",FP10,IF(B22=\"Porcentaje de estudiantes que realiza estudios en programas de TSU certificados  en el nivel 1 de CIEES y/o acreditados por el COPAES\",FP11,IF(B22=\"Porcentaje de estudiantes que realiza estudios en programas de Licenciatura certificados en el nivel 1 de CIEES y/o acreditados por el COPAES\",FP12,IF(B22=\"Porcentaje de Avance en la Obtención de la Certificación en los tres procesos básicos en la norma ISO aplicables\",FP13))))))","v":"(Número de estudiantes que realizan sus estudios en programas de TSU certificados en el nivel 1 de CIEES y/o acreditados por el COPAES/ Número de estudiantes que realizan sus estudios de TSU en programas evaluables)*100\n"},{"$f":"(IF(B22=\"Porcentaje de programas evaluables de TSU certificados en el nivel 1 de CIEES y/o acreditados por algún organismo reconocido por el COPAES\",FQ9,IF(B22=\"Porcentaje de programas evaluables de licenciatura certificados en el nivel 1 de CIEES y/o acreditados por algún organismo reconocido por el COPAES\",FQ10,IF(B22=\"Porcentaje de estudiantes que realiza estudios en programas de TSU certificados  en el nivel 1 de CIEES y/o acreditados por el COPAES\",FQ11,IF(B22=\"Porcentaje de estudiantes que realiza estudios en programas de Licenciatura certificados en el nivel 1 de CIEES y/o acreditados por el COPAES\",FQ12,IF(B22=\"Porcentaje de Avance en la Obtención de la Certificación en los tres procesos básicos en la norma ISO aplicables\",FQ13))))))","v":"Estudiantes"},null,null,null,null,null,2021,null,null,null,null,null,2022,null,null,null,null,null,null,null,null,null,null,null,null,null,null,null,null,null,null,null,null,null,null,null,null,null,null,null,null,null,null,null,null,null,null,null,null,null,null,null,null,null,null,null,null,null,null,null,null,null,null,null,null,null,null,null,null,null,null,null,null,null,null,null,null,null,null,null,null,null,null,null,null,null,null,null,null,null,null,null,null,null,null,null,null,null,null,null,null,null,null,null,null,null,null,null,null,null,null,null,null,null,null,null,null,null,null,null,null,null,null,null,null,null,null,null,null,null,null,null,null,null,null,null,null,null,null,null,null,null,null,null,null,null,null,null,null,null,null,null,null,null,null,null,null,null,null,null,null,null,null,null,null,null,null,"Tasa de egreso por cohorte generacional de Licenciatura","(Número de estudiantes de Licenciatura por cohorte que egresan/ Total de estudiantes de Licenciatura de la cohorte)*100","Estudiantes",73]
[null,null,null,null,null,null,null,null,null,"Número actual",null,null,"Porcentaje actual",null,null,"Número a lograr",null,null,"Porcentaje a lograr",null,null,"Número alcanzado ",null,null,"Porcentaje alcanzado",null,null,null,null,null,null,null,null,null,null,null,null,null,null,null,null,null,null,null,null,null,null,null,null,null,null,null,null,null,null,null,null,null,null,null,null,null,null,null,null,null,null,null,null,null,null,null,null,null,null,null,null,null,null,null,null,null,null,null,null,null,null,null,null,null,null,null,null,null,null,null,null,null,null,null,null,null,null,null,null,null,null,null,null,null,null,null,null,null,null,null,null,null,null,null,null,null,null,null,null,null,null,null,null,null,null,null,null,null,null,null,null,null,null,null,null,null,null,null,null,null,null,null,null,null,null,null,null,null,null,null,null,null,null,null,null,null,null,null,null,null,null,null,null,null,"Retención escolar","(Número de estudiantes que finalizaron el ciclo de formación/Número de estudiantes que iniciaron el ciclo de formación)*100","Estudiantes",78]
[null,null,null,null,null,null,null,null,null,null,null,null,null,null,null,null,null,null,null,null,null,null,null,null,null,null,null,null,null,null,null,null,null,null,null,null,null,null,null,null,null,null,null,null,null,null,null,null,null,null,null,null,null,null,null,null,null,null,null,null,null,null,null,null,null,null,null,null,null,null,null,null,null,null,null,null,null,null,null,null,null,null,null,null,null,null,null,null,null,null,null,null,null,null,null,null,null,null,null,null,null,null,null,null,null,null,null,null,null,null,null,null,null,null,null,null,null,null,null,null,null,null,null,null,null,null,null,null,null,null,null,null,null,null,null,null,null,null,null,null,null,null,null,null,null,null,null,null,null,null,null,null,null,null,null,null,null,null,null,null,null,null,null,null,null,null,null,null,null,null,"PREVENCIÓN Y DISMINUCIÓN DEL ABANDONO ESCOLAR"]
[null,null,null,null,null,null,null,null,null,null,null,null,null,null,null,null,null,null,null,null,null,null,null,null,null,null,null,null,null,null,null,null,null,null,null,null,null,null,null,null,null,null,null,null,null,null,null,null,null,null,null,null,null,null,null,null,null,null,null,null,null,null,null,null,null,null,null,null,null,null,null,null,null,null,null,null,null,null,null,null,null,null,null,null,null,null,null,null,null,null,null,null,null,null,null,null,null,null,null,null,null,null,null,null,null,null,null,null,null,null,null,null,null,null,null,null,null,null,null,null,null,null,null,null,null,null,null,null,null,null,null,null,null,null,null,null,null,null,null,null,null,null,null,null,null,null,null,null,null,null,null,null,null,null,null,null,null,null,null,null,null,null,null,null,null,null,null,null,null,null,"INDICADOR","FÓRMULA","Unidad de Medida","Media Nacional"]
[null,null,null,null,null,null,null,null,null,null,null,null,null,null,null,null,null,null,null,null,null,null,null,null,null,null,null,null,null,null,null,null,null,null,null,null,null,null,null,null,null,null,null,null,null,null,null,null,null,null,null,null,null,null,null,null,null,null,null,null,null,null,null,null,null,null,null,null,null,null,null,null,null,null,null,null,null,null,null,null,null,null,null,null,null,null,null,null,null,null,null,null,null,null,null,null,null,null,null,null,null,null,null,null,null,null,null,null,null,null,null,null,null,null,null,null,null,null,null,null,null,null,null,null,null,null,null,null,null,null,null,null,null,null,null,null,null,null,null,null,null,null,null,null,null,null,null,null,null,null,null,null,null,null,null,null,null,null,null,null,null,null,null,null,null,null,null,null,null,null,"Porcentaje de profesores de tiempo completo que imparten tutorías","(Número de profesores de tiempo completo que imparten tutorías/ número de profesores de tiempo completo)*100","Profesores",96]
[null,"OBJETIVO AL QUE ATIENDE DE ACUERDO AL PSE 2020-2024    (6)",null,null,null,null,null,null,null,null,null,null,null,null,null,null,null,null,null,null,null,null,null,null,null,null,null,null,null,null,null,null,null,null,null,null,null,null,null,null,null,null,null,null,null,null,null,null,null,null,null,null,null,null,null,null,null,null,null,null,null,null,null,null,null,null,null,null,null,null,null,null,null,null,null,null,null,null,null,null,null,null,null,null,null,null,null,null,null,null,null,null,null,null,null,null,null,null,null,null,null,null,null,null,null,null,null,null,null,null,null,null,null,null,null,null,null,null,null,null,null,null,null,null,null,null,null,null,null,null,null,null,null,null,null,null,null,null,null,null,null,null,null,null,null,null,null,null,null,null,null,null,null,null,null,null,null,null,null,null,null,null,null,null,null,null,null,null,null,null,"Porcentaje de estudiantes de nuevo ingreso que reciben programas de inducción","(Número de estudiantes de nuevo ingreso participantes en programas de inducción/número total de estudiantes de nuevo igreso)*100","Estudiantes",99]
[null,null,null,null,null,null,null,null,null,null,null,null,null,null,null,null,null,null,null,null,null,null,null,null,null,null,null,null,null,null,null,null,null,null,null,null,null,null,null,null,null,null,null,null,null,null,null,null,null,null,null,null,null,null,null,null,null,null,null,null,null,null,null,null,null,null,null,null,null,null,null,null,null,null,null,null,null,null,null,null,null,null,null,null,null,null,null,null,null,null,null,null,null,null,null,null,null,null,null,null,null,null,null,null,null,null,null,null,null,null,null,null,null,null,null,null,null,null,null,null,null,null,null,null,null,null,null,null,null,null,null,null,null,null,null,null,null,null,null,null,null,null,null,null,null,null,null,null,null,null,null,null,null,null,null,null,null,null,null,null,null,null,null,null,null,null,null,null,null,null,"Programas de Tutorías","Número de programas de tutorías que tiene la institución","Programas de Tutorías",109]
[null,"CALENDARIZACIÓN Y SEGUIMIENTO DE LAS PRINCIPALES ACTIVIDADES  (7)",null,null,null,null,null,null,null,null,null,null,null,null,null,null,null,null,null,null,null,null,null,null,null,null,null,null,null,null,null,null,null,null,null,null,null,null,null,null,null,null,null,null,null,null,null,null,null,null,null,null,null,null,null,null,null,null,null,null,null,null,null,null,null,null,null,null,null,null,null,null,null,null,null,null,null,null,null,null,null,null,null,null,null,null,null,null,null,null,null,null,null,null,null,null,null,null,null,null,null,null,null,null,null,null,null,null,null,null,null,null,null,null,null,null,null,null,null,null,null,null,null,null,null,null,null,null,null,null,null,null,null,null,null,null,null,null,null,null,null,null,null,null,null,null,null,null,null,null,null,null,null,null,null,null,null,null,null,null,null,null,null,null,null,null,null,null,null,null,"Atención Psicopedagógica","Número de programas de atención psicopedagógica que tiene la institución","Programas de Atención Psicopedagógica",106]
[null,"ACTIVIDADES",null,"UNIDAD DE MEDIDA","META  ANUAL",null,"CALENDARIO 2022                                 CUATRIMESTRAL",null,null,null,null,null,null,null,null,null,null,null,"JUSTIFICACIÓN DE LAS DESVIACIONES POSITIVAS O NEGATIVAS (8)",null,null,null,null,null,null,"ÁREA\nEJECUTORA (9)",null,null,null,null,null,null,null,null,null,null,null,null,null,null,null,null,null,null,null,null,null,null,null,null,null,null,null,null,null,null,null,null,null,null,null,null,null,null,null,null,null,null,null,null,null,null,null,null,null,null,null,null,null,null,null,null,null,null,null,null,null,null,null,null,null,null,null,null,null,null,null,null,null,null,null,null,null,null,null,null,null,null,null,null,null,null,null,null,null,null,null,null,null,null,null,null,null,null,null,null,null,null,null,null,null,null,null,null,null,null,null,null,null,null,null,null,null,null,null,null,null,null,null,null,null,null,null,null,null,null,null,null,null,null,null,null,null,null,null,null,null,null,null,null,"Porcentaje de alumnos que participan en programa de tutorÍas","(Número de alumnos en programas de tutorías/ \nTotal de alumnos)*100","Estudiantes",98]
[null,null,null,null,null,null,1,null,null,null,2,null,null,null,3]
[null,null,null,null,null,null,"PROG",null,"ALC",null,"PROG",null,"ALC",null,"PROG",null,"ALC",null,null,null,null,null,null,null,null,null,null,null,null,null,null,null,null,null,null,null,null,null,null,null,null,null,null,null,null,null,null,null,null,null,null,null,null,null,null,null,null,null,null,null,null,null,null,null,null,null,null,null,null,null,null,null,null,null,null,null,null,null,null,null,null,null,null,null,null,null,null,null,null,null,null,null,null,null,null,null,null,null,null,null,null,null,null,null,null,null,null,null,null,null,null,null,null,null,null,null,null,null,null,null,null,null,null,null,null,null,null,null,null,null,null,null,null,null,null,null,null,null,null,null,null,null,null,null,null,null,null,null,null,null,null,null,null,null,null,null,null,null,null,null,null,null,null,null,null,null,null,null,null,null,"TIPO DE  PROCESO"]
[null,null,null,null,null,null,"#","%","#","%","#","%","#","%","#","%","#","%",null,null,null,null,null,null,null,null,null,null,null,null,null,null,null,null,null,null,null,null,null,null,null,null,null,null,null,null,null,null,null,null,null,null,null,null,null,null,null,null,null,null,null,null,null,null,null,null,null,null,null,null,null,null,null,null,null,null,null,null,null,null,null,null,null,null,null,null,null,null,null,null,null,null,null,null,null,null,null,null,null,null,null,null,null,null,null,null,null,null,null,null,null,null,null,null,null,null,null,null,null,null,null,null,null,null,null,null,null,null,null,null,null,null,null,null,null,null,null,null,null,null,null,null,null,null,null,null,null,null,null,null,null,null,null,null,null,null,null,null,null,null,null,null,null,null,null,null,null,null,null,null,"Eficiencia"]
[null,null,null,null,null,null,null,null,null,null,null,null,null,null,null,null,null,null,null,null,null,null,null,null,null,null,null,null,null,null,null,null,null,null,null,null,null,null,null,null,null,null,null,null,null,null,null,null,null,null,null,null,null,null,null,null,null,null,null,null,null,null,null,null,null,null,null,null,null,null,null,null,null,null,null,null,null,null,null,null,null,null,null,null,null,null,null,null,null,null,null,null,null,null,null,null,null,null,null,null,null,null,null,null,null,null,null,null,null,null,null,null,null,null,null,null,null,null,null,null,null,null,null,null,null,null,null,null,null,null,null,null,null,null,null,null,null,null,null,null,null,null,null,null,null,null,null,null,null,null,null,null,null,null,null,null,null,null,null,null,null,null,null,null,null,null,null,null,null,null,"Eficacia"]
[null,null,null,null,null,null,null,null,null,null,null,null,null,null,null,null,null,null,null,null,null,null,null,null,null,null,null,null,null,null,null,null,null,null,null,null,null,null,null,null,null,null,null,null,null,null,null,null,null,null,null,null,null,null,null,null,null,null,null,null,null,null,null,null,null,null,null,null,null,null,null,null,null,null,null,null,null,null,null,null,null,null,null,null,null,null,null,null,null,null,null,null,null,null,null,null,null,null,null,null,null,null,null,null,null,null,null,null,null,null,null,null,null,null,null,null,null,null,null,null,null,null,null,null,null,null,null,null,null,null,null,null,null,null,null,null,null,null,null,null,null,null,null,null,null,null,null,null,null,null,null,null,null,null,null,null,null,null,null,null,null,null,null,null,null,null,null,null,null,null,"Pertinencia"]
[null,null,null,null,null,null,null,null,null,null,null,null,null,null,null,null,null,null,null,null,null,null,null,null,null,null,null,null,null,null,null,null,null,null,null,null,null,null,null,null,null,null,null,null,null,null,null,null,null,null,null,null,null,null,null,null,null,null,null,null,null,null,null,null,null,null,null,null,null,null,null,null,null,null,null,null,null,null,null,null,null,null,null,null,null,null,null,null,null,null,null,null,null,null,null,null,null,null,null,null,null,null,null,null,null,null,null,null,null,null,null,null,null,null,null,null,null,null,null,null,null,null,null,null,null,null,null,null,null,null,null,null,null,null,null,null,null,null,null,null,null,null,null,null,null,null,null,null,null,null,null,null,null,null,null,null,null,null,null,null,null,null,null,null,null,null,null,null,null,null,"Vinculación"]
[null,null,null,null,null,null,null,null,null,null,null,null,null,null,null,null,null,null,null,null,null,null,null,null,null,null,null,null,null,null,null,null,null,null,null,null,null,null,null,null,null,null,null,null,null,null,null,null,null,null,null,null,null,null,null,null,null,null,null,null,null,null,null,null,null,null,null,null,null,null,null,null,null,null,null,null,null,null,null,null,null,null,null,null,null,null,null,null,null,null,null,null,null,null,null,null,null,null,null,null,null,null,null,null,null,null,null,null,null,null,null,null,null,null,null,null,null,null,null,null,null,null,null,null,null,null,null,null,null,null,null,null,null,null,null,null,null,null,null,null,null,null,null,null,null,null,null,null,null,null,null,null,null,null,null,null,null,null,null,null,null,null,null,null,null,null,null,null,null,null,"Equidad de Género"]
[]
[null,"DESCRIPCIÓN DEL ALCANCE DEL INDICADOR Y EFECTO SOCIOECONOMICO    (10)"]
[]
[]
[]
[null,"NOBRE Y FIRMA DEL/LA RECTOR(A)",null,null,null,null,null,null,null,null,null,null,null,null,null,null,"NOMBRE Y FIRMA DE LA PERSONA RESPONSABLE  DEL PROCESO"]
[]
[]
[]
[]
[null,"PROGRAMA OPERATIVO ANUAL  2022 "]
[]
[null,"FORMATO 01 \"DESARROLLO DE PROCESOS\""]
[]
[null,"UNIVERSIDAD: _____________________________________"]
[]
[null,"DENOMINACIÓN DEL PROCESO:\n    \nACADÉMICO    (1)",null,null,null,null,null,null,null,null,null,null,null,null,null,null,"NUM. DE PROCESO",null,null,null,null,null,null,null,"TIPO DE PROCESO (3)                "]
[]
[null,null,null,null,null,null,null,null,null,null,null,null,null,null,null,null,"1      (2)",null,null,null,null,null,null,null,"Eficacia"]
[]
[null,"ÁREA RESPONSABLE( 4 )"]
[]
[]
[null,"INDICADORES  ( 5 )"]
[null,"NOMBRE DEL INDICADOR (5.1)","FÓRMULA","UNIDAD DE MEDIDA","META INSTITUCIONAL A 2024 \nPROGRAMA INSTITUCIONAL DE DESARROLLO DE LA UNIVERSIDAD",null,null,null,null,"CONTEXTO ACTUAL Y A FUTURO DEL INDICADOR (5.2)",null,null,null,null,null,null,null,null,null,null,null,"Total alcanzado (Se reporta en el tercer cuatrimestre) (5.3)"]
[null,"Número de estudios de factibilidad elaborados",{"$f":"(IF(B63=\"Número de estudios de trayectoria y de egresados llevados a cabo en el Año\",FP14,IF(B63=\"Porcentaje de programas educativos con Análisis Situacional del Trabajo (AST)\",FP15,IF(B63=\"Número de estudios de factibilidad elaborados\",FP16))))","v":"Número de estudios de factibilidad elaborados"},{"$f":"(IF(B63=\"Número de estudios de trayectoria y de egresados llevados a cabo en el Año\",FQ14,IF(B63=\"Porcentaje de programas educativos con Análisis Situacional del Trabajo (AST)\",FQ15,IF(B63=\"Número de estudios de factibilidad elaborados\",FQ16))))","v":"Estudios"},null,null,null,null,null,2021,null,null,null,null,null,2022]
[null,null,null,null,null,null,null,null,null,"Número actual",null,null,"Porcentaje actual",null,null,"Número a lograr",null,null,"Porcentaje a lograr",null,null,"Número alcanzado ",null,null,"Porcentaje alcanzado"]
[]
[null,"NOMBRE DEL INDICADOR (5.1)","FÓRMULA","UNIDAD DE MEDIDA","META INSTITUCIONAL A 2024 \nPROGRAMA INSTITUCIONAL DE DESARROLLO DE LA UNIVERSIDAD",null,null,null,null,"CONTEXTO ACTUAL Y A FUTURO DEL INDICADOR (5.2)",null,null,null,null,null,null,null,null,null,null,null,"Total alcanzado (Se reporta en el tercer cuatrimestre) (5.3)"]
[null,"Porcentaje de programas educativos con Análisis Situacional del Trabajo (AST)",{"$f":"(IF(B67=\"Número de estudios de trayectoria y de egresados llevados a cabo en el Año\",FP14,IF(B67=\"Porcentaje de programas educativos con Análisis Situacional del Trabajo (AST)\",FP15,IF(B67=\"Número de estudios de factibilidad elaborados\",FP16))))","v":"(Programas educativos en la institución con AST vigentes/ total de programas educativos en la institución)*100"},{"$f":"(IF(B67=\"Número de estudios de trayectoria y de egresados llevados a cabo en el Año\",FQ14,IF(B67=\"Porcentaje de programas educativos con Análisis Situacional del Trabajo (AST)\",FQ15,IF(B67=\"Número de estudios de factibilidad elaborados\",FQ16))))","v":"Análisis"},null,null,null,null,null,2021,null,null,null,null,null,2022]
[null,null,null,null,null,null,null,null,null,"Número actual",null,null,"Porcentaje actual",null,null,"Número a lograr",null,null,"Porcentaje a lograr",null,null,"Número alcanzado ",null,null,"Porcentaje alcanzado"]
[]
[null,"OBJETIVO AL QUE ATIENDE DE ACUERDO AL PSE 2020-2024    (6)"]
[null,"CALENDARIZACIÓN Y SEGUIMIENTO DE LAS PRINCIPALES ACTIVIDADES  (7)"]
[null,"ACTIVIDADES",null,"UNIDAD DE MEDIDA","META  ANUAL",null,"CALENDARIO 2022                                      CUATRIMESTRAL",null,null,null,null,null,null,null,null,null,null,null,"JUSTIFICACIÓN DE LAS DESVIACIONES POSITIVAS O NEGATIVAS (8)",null,null,null,null,null,null,"ÁREA\nEJECUTORA (9)"]
[null,null,null,null,null,null,1,null,null,null,2,null,null,null,3]
[null,null,null,null,null,null,"PROG",null,"ALC",null,"PROG",null,"ALC",null,"PROG",null,"ALC"]
[null,null,null,null,null,null,"#","%","#","%","#","%","#","%","#","%","#","%"]
[]
[]
[]
[]
[]
[null,"DESCRIPCIÓN DEL ALCANCE DEL INDICADOR Y EFECTO SOCIOECONOMICO    (10)"]
[]
[]
[]
[null,"NOMBRE Y FIRMA DEL/LA RECTOR(A)",null,null,null,null,null,null,null,null,null,null,null,null,null,null,"NOMBRE Y FIRMA DE LA PERSONA RESPONSABLE DEL PROCESO"]
[]
[]
[]
[]
[null,"PROGRAMA OPERATIVO ANUAL  2022"]
[null,"FORMATO 01 \"DESARROLLO DE PROCESOS\""]
[]
[null,"UNIVERSIDAD: _____________________________________"]
[]
[null,"DENOMINACIÓN DEL PROCESO:\n    \nACADÉMICO    (1)",null,null,null,null,null,null,null,null,null,null,null,null,null,null,"NUM. DE PRCESO",null,null,null,null,null,null,null,"TIPO DE PROCESO (3)               "]
[]
[null,null,null,null,null,null,null,null,null,null,null,null,null,null,null,null,"1      (2)",null,null,null,null,null,null,null,"Eficacia"]
[]
[null,"ÁREA RESPONSABLE ( 4 )"]
[]
[]
[null,"INDICADORES  ( 5 )"]
[null,"NOMBRE DEL INDICADOR (5.1)","FÓRMULA","UNIDAD DE MEDIDA","META INSTITUCIONAL A 2024 \nPROGRAMA INSTITUCIONAL DE DESARROLLO DE LA UNIVERSIDAD",null,null,null,null,"CONTEXTO ACTUAL Y A FUTURO DEL INDICADOR (5.2)",null,null,null,null,null,null,null,null,null,null,null,"Total alcanzado (Se reporta en el tercer cuatrimestre) (5.3)"]
[null,"Número de estudiantes inscritos en TSU",{"$f":"(IF(B104=\"Número de estudiantes inscritos en TSU\",FP19,IF(B104=\"Número de estudiantes inscritos en Licenciatura\",FP20,IF(B104=\"Tasa de egreso por cohorte generacional de TSU\",FP21,IF(B104=\"Tasa de egreso por cohorte generacional de Licenciatura\",FP22,IF(B104=\"Retención escolar\",FP23))))))","v":"Número de estudiantes inscritos en TSU"},{"$f":"(IF(B104=\"Número de estudiantes inscritos en TSU\",FQ19,IF(B104=\"Número de estudiantes inscritos en Licenciatura\",FQ20,IF(B104=\"Tasa de egreso por cohorte generacional de TSU\",FQ21,IF(B104=\"Tasa de egreso por cohorte generacional de Licenciatura\",FQ22,IF(B104=\"Retención escolar\",FQ23))))))","v":"Estudiantes"},null,null,null,null,null,2021,null,null,null,null,null,2022]
[null,null,null,null,null,null,null,null,null,"Número actual",null,null,"Porcentaje actual",null,null,"Número a lograr",null,null,"Porcentaje a lograr",null,null,"Número alcanzado ",null,null,"Porcentaje alcanzado"]
[]
[]
[null,"NOMBRE DEL INDICADOR (5.1)","FÓRMULA","UNIDAD DE MEDIDA","META INSTITUCIONAL A 2024 \nPROGRAMA INSTITUCIONAL DE DESARROLLO DE LA UNIVERSIDAD",null,null,null,null,"CONTEXTO ACTUAL Y A FUTURO DEL INDICADOR (5.2)",null,null,null,null,null,null,null,null,null,null,null,"Total alcanzado (Se reporta en el tercer cuatrimestre) (5.3)"]
[null,"Tasa de egreso por cohorte generacional de TSU",{"$f":"(IF(B109=\"Número de estudiantes inscritos en TSU\",FP19,IF(B109=\"Número de estudiantes inscritos en Licenciatura\",FP20,IF(B109=\"Tasa de egreso por cohorte generacional de TSU\",FP21,IF(B109=\"Tasa de egreso por cohorte generacional de Licenciatura\",FP22,IF(B109=\"Retención escolar\",FP23))))))","v":"(Número de estudiantes de TSU por cohorte que egresan/ Total de estudiantes de TSU de la cohorte)*100"},{"$f":"(IF(B109=\"Número de estudiantes inscritos en TSU\",FQ19,IF(B109=\"Número de estudiantes inscritos en Licenciatura\",FQ20,IF(B109=\"Tasa de egreso por cohorte generacional de TSU\",FQ21,IF(B109=\"Tasa de egreso por cohorte generacional de Licenciatura\",FQ22,IF(B109=\"Retención escolar\",FQ23))))))","v":"Estudiantes"},null,null,null,null,null,2021,null,null,null,null,null,2022]
[null,null,null,null,null,null,null,null,null,"Número actual",null,null,"Porcentaje actual",null,null,"Número a lograr",null,null,"Porcentaje a lograr",null,null,"Número alcanzado ",null,null,"Porcentaje alcanzado"]
[]
[]
[null,"OBJETIVO AL QUE ATIENDE DE ACUERDO AL PSE 2020-2024    (6)"]
[null,"CALENDARIZACIÓN Y SEGUIMIENTO DE LAS PRINCIPALES ACTIVIDADES  (7)"]
[null,"ACTIVIDADES",null,"UNIDAD DE MEDIDA","META  ANUAL",null,"CALENDARIO 2022                                    CUATRIMESTRAL",null,null,null,null,null,null,null,null,null,null,null,"JUSTIFICACIÓN DE LAS DESVIACIONES POSITIVAS O NEGATIVAS (8)",null,null,null,null,null,null,"ÁREA\nEJECUTORA (9)"]
[null,null,null,null,null,null,1,null,null,null,2,null,null,null,3]
[null,null,null,null,null,null,"PROG",null,"ALC",null,"PROG",null,"ALC",null,"PROG",null,"ALC"]
[null,null,null,null,null,null,"#","%","#","%","#","%","#","%","#","%","#","%"]
[]
[]
[]
[]
[]
[null,"DESCRIPCIÓN DEL ALCANCE DEL INDICADOR Y EFECTO SOCIOECONOMICO    (10)"]
[]
[]
[]
[]
[null,"NOBRE Y FIRMA DEL/LA RECTOR(A)",null,null,null,null,null,null,null,null,null,null,null,null,null,null,"NOMBRE Y FIRMA DE LA PERSONA RESPONSABLE DEL PROCESO"]
[]
[]
[]
[]
[null,"PROGRAMA OPERATIVO ANUAL  2022"]
[]
[null,"FORMATO 01 \"DESARROLLO DE PROCESOS\""]
[]
[null,"UNIVERSIDAD: _____________________________________"]
[]
[null,"DENOMINACIÓN DEL PROCESO:\n    \nACADÉMICO    (1)",null,null,null,null,null,null,null,null,null,null,null,null,null,null,"NUM. DE PROCESO",null,null,null,null,null,null,null,"TIPO DE PROCESO (3)              "]
[]
[null,null,null,null,null,null,null,null,null,null,null,null,null,null,null,null,"1      (2)",null,null,null,null,null,null,null,"Eficacia"]
[]
[null,"ÁREA RESPONSABLE ( 4 )"]
[]
[]
[null,"INDICADORES  ( 5 )"]
[null,"NOMBRE DEL INDICADOR (5.1)","FÓRMULA","UNIDAD DE MEDIDA","META INSTITUCIONAL A 2024 \nPROGRAMA INSTITUCIONAL DE DESARROLLO DE LA UNIVERSIDAD",null,null,null,null,"CONTEXTO ACTUAL Y A FUTURO DEL INDICADOR (5.2)",null,null,null,null,null,null,null,null,null,null,null,"Total alcanzado (Se reporta en el tercer cuatrimestre) (5.3)"]
[null,"Porcentaje de estudiantes de nuevo ingreso que reciben programas de inducción",{"$f":"(IF(B149=\"Porcentaje de profesores de tiempo completo que imparten tutorías\",FP26,IF(B149=\"Porcentaje de estudiantes de nuevo ingreso que reciben programas de inducción\",FP27,IF(B149=\"Programas de Tutorías\",FP28,IF(B149=\"Atención Psicopedagógica\",FP29,IF(B149=\"Porcentaje de alumnos que participan en programa de tutorÍas\",FP30))))))","v":"(Número de estudiantes de nuevo ingreso participantes en programas de inducción/número total de estudiantes de nuevo igreso)*100"},{"$f":"(IF(B149=\"Porcentaje de profesores de tiempo completo que imparten tutorías\",FQ26,IF(B149=\"Porcentaje de estudiantes de nuevo ingreso que reciben programas de inducción\",FQ27,IF(B149=\"Programas de Tutorías\",FQ28,IF(B149=\"Atención Psicopedagógica\",FQ29,IF(B149=\"Porcentaje de alumnos que participan en programa de tutorÍas\",FQ30))))))","v":"Estudiantes"},null,null,null,null,null,2021,null,null,null,null,null,2022]
[null,null,null,null,null,null,null,null,null,"Número actual",null,null,"Porcentaje actual",null,null,"Número a lograr",null,null,"Porcentaje a lograr",null,null,"Número alcanzado ",null,null,"Porcentaje alcanzado"]
[]
[]
[null,"NOMBRE DEL INDICADOR (5.1)","FÓRMULA","UNIDAD DE MEDIDA","META INSTITUCIONAL A 2024 \nPROGRAMA INSTITUCIONAL DE DESARROLLO DE LA UNIVERSIDAD",null,null,null,null,"CONTEXTO ACTUAL Y A FUTURO DEL INDICADOR (5.2)",null,null,null,null,null,null,null,null,null,null,null,"Total alcanzado (Se reporta en el tercer cuatrimestre) (5.3)"]
[null,"Programas de Tutorías",{"$f":"(IF(B154=\"Porcentaje de profesores de tiempo completo que imparten tutorías\",FP26,IF(B154=\"Porcentaje de estudiantes de nuevo ingreso que reciben programas de inducción\",FP27,IF(B154=\"Programas de Tutorías\",FP28,IF(B154=\"Atención Psicopedagógica\",FP29,IF(B154=\"Porcentaje de alumnos que participan en programa de tutorÍas\",FP30))))))","v":"Número de programas de tutorías que tiene la institución"},{"$f":"(IF(B154=\"Porcentaje de profesores de tiempo completo que imparten tutorías\",FQ26,IF(B154=\"Porcentaje de estudiantes de nuevo ingreso que reciben programas de inducción\",FQ27,IF(B154=\"Programas de Tutorías\",FQ28,IF(B154=\"Atención Psicopedagógica\",FQ29,IF(B154=\"Porcentaje de alumnos que participan en programa de tutorÍas\",FQ30))))))","v":"Programas de Tutorías"},null,null,null,null,null,2021,null,null,null,null,null,2022]
[null,null,null,null,null,null,null,null,null,"Número actual",null,null,"Porcentaje actual",null,null,"Número a lograr",null,null,"Porcentaje a lograr",null,null,"Número alcanzado ",null,null,"Porcentaje alcanzado"]
[]
[]
[null,"OBJETIVO AL QUE ATIENDE DE ACUERDO AL PSE 2020-2024    (6)"]
[null,"CALENDARIZACIÓN Y SEGUIMIENTO DE LAS PRINCIPALES ACTIVIDADES  (7)"]
[null,"ACTIVIDADES",null,"UNIDAD DE MEDIDA","META  ANUAL",null,"CALENDARIO 2022                                 CUATRIMESTRAL",null,null,null,null,null,null,null,null,null,null,null,"JUSTIFICACIÓN DE LAS DESVIACIONES POSITIVAS O NEGATIVAS (8)",null,null,null,null,null,null,"ÁREA\nEJECUTORA (9)"]
[null,null,null,null,null,null,1,null,null,null,2,null,null,null,3]
[null,null,null,null,null,null,"PROG",null,"ALC",null,"PROG",null,"ALC",null,"PROG",null,"ALC"]
[null,null,null,null,null,null,"#","%","#","%","#","%","#","%","#","%","#","%"]
[]
[]
[]
[]
[]
[null,"DESCRIPCIÓN DEL ALCANCE DEL INDICADOR Y EFECTO SOCIOECONOMICO    (10)"]
[]
[]
[]
[]
[null,"NOBRE Y FIRMA DEL/LA RECTOR(A)",null,null,null,null,null,null,null,null,null,null,null,null,null,null,"NOMBRE Y FIRMA DE LA PERSONA RESPONSABLE DEL PROCESO"]

{"sheet":"CEDULA-vinculación","index":2,"n_rows":167,"n_cols":276,"rows_kept":167,"cut":false,"hidden":false,"merged":[[57,9,57,20],[57,21,58,26],[99,4,99,8],[100,4,102,8],[99,9,99,20],[99,21,100,26],[24,1,24,26],[25,1,27,2],[25,3,27,3],[25,4,27,5],[25,6,25,17],[25,18,27,24],[25,25,27,26],[26,6,26,9],[26,10,26,13],[28,1,28,2],[28,4,28,5],[28,18,28,24],[28,25,28,26],[26,14,26,17],[27,6,27,7],[27,8,27,9],[27,10,27,11],[27,12,27,13],[17,12,17,14],[17,15,17,17],[17,18,17,20],[17,21,17,23],[17,24,17,26],[15,4,17,8],[0,1,0,26],[2,1,2,26],[4,1,4,26],[6,1,9,15],[6,16,7,23],[6,24,7,26],[8,16,9,23],[8,24,9,26],[14,4,14,8],[14,9,14,20],[14,21,15,26],[10,1,11,26],[12,1,12,26],[13,1,13,26],[27,14,27,15],[27,16,27,17],[15,1,17,1],[15,2,17,2],[29,18,29,24],[29,25,29,26],[30,1,30,2],[30,4,30,5],[29,1,29,2],[29,4,29,5],[22,1,23,2],[22,3,23,26],[15,3,17,3],[15,9,15,14],[15,15,15,20],[16,9,16,11],[16,12,16,14],[16,15,16,17],[16,18,16,20],[16,21,16,23],[16,24,16,26],[17,9,17,11],[18,4,18,8],[18,9,18,20],[31,1,31,2],[31,4,31,5],[32,1,32,2],[32,4,32,5],[30,18,30,24],[30,25,30,26],[31,18,31,24],[31,25,31,26],[32,18,32,24],[32,25,32,26],[49,1,52,15],[49,16,50,23],[49,24,50,26],[51,16,52,23],[51,24,52,26],[33,1,33,2],[33,4,33,5],[34,1,34,26],[35,1,35,26],[38,1,38,4],[38,16,38,26],[33,18,33,24],[33,25,33,26],[43,1,43,26],[45,1,45,26],[47,1,47,26],[65,1,65,2],[65,3,65,26],[58,1,60,1],[58,2,60,2],[53,1,54,26],[55,1,55,26],[56,1,56,26],[58,3,60,3],[58,9,58,14],[58,15,58,20],[59,9,59,11],[59,12,59,14],[59,15,59,17],[59,18,59,20],[59,21,59,23],[59,24,59,26],[60,9,60,11],[60,12,60,14],[60,15,60,17],[60,18,60,20],[60,21,60,23],[60,24,60,26],[57,4,57,8],[58,4,60,8],[66,1,66,26],[67,1,69,2],[67,3,69,3],[67,4,69,5],[67,6,67,17],[67,18,69,24],[67,25,69,26],[68,6,68,9],[68,10,68,13],[70,1,70,2],[70,4,70,5],[70,18,70,24],[70,25,70,26],[71,1,71,2],[71,4,71,5],[68,14,68,17],[69,6,69,7],[69,8,69,9],[69,10,69,11],[69,12,69,13],[69,14,69,15],[69,16,69,17],[71,18,71,24],[71,25,71,26],[75,1,75,2],[75,4,75,5],[76,1,76,26],[77,1,77,26],[80,1,80,4],[80,16,80,26],[72,1,72,2],[72,4,72,5],[73,1,73,2],[73,4,73,5],[74,1,74,2],[74,4,74,5],[72,18,72,24],[72,25,72,26],[73,18,73,24],[73,25,73,26],[74,18,74,24],[74,25,74,26],[75,18,75,24],[75,25,75,26],[85,1,85,26],[87,1,87,26],[89,1,89,26],[91,1,94,15],[91,16,92,23],[91,24,92,26],[93,16,94,23],[93,24,94,26],[107,1,107,2],[107,3,107,26],[100,1,102,1],[100,2,102,2],[95,1,96,26],[97,1,97,26],[98,1,98,26],[100,3,102,3],[100,9,100,14],[100,15,100,20],[101,9,101,11],[101,12,101,14],[101,15,101,17],[101,18,101,20],[101,21,101,23],[101,24,101,26],[102,9,102,11],[102,12,102,14],[102,15,102,17],[108,1,108,26],[109,1,111,2],[109,3,111,3],[109,4,111,5],[109,6,109,17],[109,18,111,24],[109,25,111,26],[110,6,110,9],[110,10,110,13],[102,18,102,20],[102,21,102,23],[102,24,102,26],[103,4,103,8],[103,9,103,20],[103,21,104,26],[104,1,106,1],[104,2,106,2],[104,3,106,3],[104,4,106,8],[104,9,104,14],[104,15,104,20],[112,1,112,2],[112,4,112,5],[112,18,112,24],[112,25,112,26],[113,1,113,2],[113,4,113,5],[110,14,110,17],[111,6,111,7],[111,8,111,9],[111,10,111,11],[111,12,111,13],[111,14,111,15],[111,16,111,17],[113,18,113,24],[113,25,113,26],[117,4,117,5],[118,1,118,26],[119,1,119,26],[123,1,123,4],[123,16,123,26],[114,1,114,2],[114,4,114,5],[115,1,115,2],[115,4,115,5],[116,1,116,2],[116,4,116,5],[114,18,114,24],[114,25,114,26],[115,18,115,24],[115,25,115,26],[116,18,116,24],[116,25,116,26],[117,18,117,24],[117,25,117,26],[117,1,117,2],[150,1,150,2],[150,3,150,26],[138,1,139,26],[140,1,140,26],[141,1,141,26],[128,1,128,26],[130,1,130,26],[132,1,132,26],[134,1,137,15],[134,16,135,23],[134,24,135,26],[136,16,137,23],[136,24,137,26],[142,4,142,8],[143,4,145,8],[142,9,142,20],[142,21,143,26],[143,1,145,1],[143,2,145,2],[143,3,145,3],[143,9,143,14],[143,15,143,20],[144,9,144,11],[144,12,144,14],[151,1,151,26],[152,1,154,2],[152,3,154,3],[152,4,154,5],[152,6,152,17],[152,18,154,24],[152,25,154,26],[153,6,153,9],[153,10,153,13],[155,1,155,2],[155,4,155,5],[155,18,155,24],[155,25,155,26],[156,1,156,2],[156,4,156,5],[153,14,153,17],[154,6,154,7],[154,8,154,9],[154,10,154,11],[154,12,154,13],[154,14,154,15],[154,16,154,17],[156,18,156,24],[156,25,156,26],[160,1,160,2],[160,4,160,5],[161,1,161,26],[162,1,162,26],[166,1,166,4],[166,16,166,26],[157,1,157,2],[157,4,157,5],[158,1,158,2],[158,4,158,5],[159,1,159,2],[159,4,159,5],[157,18,157,24],[157,25,157,26],[158,18,158,24],[158,25,158,26],[159,18,159,24],[159,25,159,26],[160,18,160,24],[160,25,160,26],[144,15,144,17],[144,18,144,20],[144,21,144,23],[144,24,144,26],[145,9,145,11],[145,12,145,14],[145,15,145,17],[145,18,145,20],[145,21,145,23],[145,24,145,26],[18,21,19,26],[19,1,21,1],[19,2,21,2],[19,3,21,3],[19,4,21,8],[19,9,19,14],[19,15,19,20],[20,9,20,11],[20,12,20,14],[20,15,20,17],[20,18,20,20],[20,21,20,23],[20,24,20,26],[21,9,21,11],[21,12,21,14],[21,15,21,17],[21,18,21,20],[21,21,21,23],[21,24,21,26],[61,4,61,8],[61,9,61,20],[61,21,62,26],[62,1,64,1],[62,2,64,2],[62,3,64,3],[62,4,64,8],[62,9,62,14],[62,15,62,20],[63,9,63,11],[63,12,63,14],[63,15,63,17],[63,18,63,20],[63,21,63,23],[63,24,63,26],[64,9,64,11],[64,12,64,14],[64,15,64,17],[64,18,64,20],[64,21,64,23],[64,24,64,26],[105,9,105,11],[105,12,105,14],[105,15,105,17],[105,18,105,20],[105,21,105,23],[105,24,105,26],[106,9,106,11],[106,12,106,14],[106,15,106,17],[106,18,106,20],[106,21,106,23],[106,24,106,26],[146,4,146,8],[146,9,146,20],[146,21,147,26],[147,1,149,1],[147,2,149,2],[147,3,149,3],[147,4,149,8],[147,9,147,14],[147,15,147,20],[148,9,148,11],[148,12,148,14],[148,15,148,17],[148,18,148,20],[148,21,148,23],[148,24,148,26],[149,9,149,11],[149,12,149,14],[149,15,149,17],[149,18,149,20],[149,21,149,23],[149,24,149,26]]}
[null,"PROGRAMA OPERATIVO ANUAL 2022"]
[]
[null,"FORMATO 01 \"DESARROLLO DE PROCESOS\""]
[]
[null,"UNIVERSIDAD: _____________________________________"]
[]
[null,"DENOMINACIÓN DEL PROCESO:\n    \nVINCULACIÓN   (1)",null,null,null,null,null,null,null,null,null,null,null,null,null,null,"NUM. DE PROCESO",null,null,null,null,null,null,null,"TIPO DE PROCESO (3)               ",null,null,null,null,null,null,null,null,null,null,null,null,null,null,null,null,null,null,null,null,null,null,null,null,null,null,null,null,null,null,null,null,null,null,null,null,null,null,null,null,null,null,null,null,null,null,null,null,null,null,null,null,null,null,null,null,null,null,null,null,null,null,null,null,null,null,null,null,null,null,null,null,null,null,null,null,null,null,null,null,null,null,null,null,null,null,null,null,null,null,null,null,null,null,null,null,null,null,null,null,null,null,null,null,null,null,null,null,null,null,null,null,null,null,null,null,null,null,null,null,null,null,null,null,null,null,null,null,null,null,null,null,null,null,null,null,null,null,null,null,null,null,null,null,null,null,null,null,null,null,null,null,null,null,null,null,null,null,null,null,null,null,null,null,null,null,null,null,null,null,null,null,null,null,null,null,null,null,null,null,null,null,null,null,null,null,null,null,null,null,null,null,null,null,null,null,null,null,null,null,null,null,null,null,null,null,null,null,null,null,null,null,null,null,null,null,null,null,null,null,null,null,null,null,null,null,null,null,null,null,null,null,null,null,null,null,null,null,null,null,null,null,null,null,null,null,null,"VINCULACIÓN, EMPLEABILIDAD Y EMPRENDEDURISMO",null,"UNIDAD DE MEDIDA","MEDIA NACIONAL"]
[null,null,null,null,null,null,null,null,null,null,null,null,null,null,null,null,null,null,null,null,null,null,null,null,null,null,null,null,null,null,null,null,null,null,null,null,null,null,null,null,null,null,null,null,null,null,null,null,null,null,null,null,null,null,null,null,null,null,null,null,null,null,null,null,null,null,null,null,null,null,null,null,null,null,null,null,null,null,null,null,null,null,null,null,null,null,null,null,null,null,null,null,null,null,null,null,null,null,null,null,null,null,null,null,null,null,null,null,null,null,null,null,null,null,null,null,null,null,null,null,null,null,null,null,null,null,null,null,null,null,null,null,null,null,null,null,null,null,null,null,null,null,null,null,null,null,null,null,null,null,null,null,null,null,null,null,null,null,null,null,null,null,null,null,null,null,null,null,null,null,null,null,null,null,null,null,null,null,null,null,null,null,null,null,null,null,null,null,null,null,null,null,null,null,null,null,null,null,null,null,null,null,null,null,null,null,null,null,null,null,null,null,null,null,null,null,null,null,null,null,null,null,null,null,null,null,null,null,null,null,null,null,null,null,null,null,null,null,null,null,null,null,null,null,null,null,null,null,null,null,null,null,null,null,null,null,null,null,null,null,null,null,null,null,null,null,null,null,null,null,null,null,"Transferencia  del modelo de incubación de la CGUTyP","Número de Modelos de incubación transferidos. \n","Transferencias",95]
[null,null,null,null,null,null,null,null,null,null,null,null,null,null,null,null,"1      (2)",null,null,null,null,null,null,null,"Pertinencia",null,null,null,null,null,null,null,null,null,null,null,null,null,null,null,null,null,null,null,null,null,null,null,null,null,null,null,null,null,null,null,null,null,null,null,null,null,null,null,null,null,null,null,null,null,null,null,null,null,null,null,null,null,null,null,null,null,null,null,null,null,null,null,null,null,null,null,null,null,null,null,null,null,null,null,null,null,null,null,null,null,null,null,null,null,null,null,null,null,null,null,null,null,null,null,null,null,null,null,null,null,null,null,null,null,null,null,null,null,null,null,null,null,null,null,null,null,null,null,null,null,null,null,null,null,null,null,null,null,null,null,null,null,null,null,null,null,null,null,null,null,null,null,null,null,null,null,null,null,null,null,null,null,null,null,null,null,null,null,null,null,null,null,null,null,null,null,null,null,null,null,null,null,null,null,null,null,null,null,null,null,null,null,null,null,null,null,null,null,null,null,null,null,null,null,null,null,null,null,null,null,null,null,null,null,null,null,null,null,null,null,null,null,null,null,null,null,null,null,null,null,null,null,null,null,null,null,null,null,null,null,null,null,null,null,null,null,null,null,null,null,null,null,null,null,null,null,"Número de empresas generadas anualmente, derivadas de los proyectos incubados en la Universidad sin importar cuántos se hayan incubado en total","Número total de empresas generadas anualmente, sin importar cuántos proyectos se hayan incubado en total","Empresas",1382]
[null,null,null,null,null,null,null,null,null,null,null,null,null,null,null,null,null,null,null,null,null,null,null,null,null,null,null,null,null,null,null,null,null,null,null,null,null,null,null,null,null,null,null,null,null,null,null,null,null,null,null,null,null,null,null,null,null,null,null,null,null,null,null,null,null,null,null,null,null,null,null,null,null,null,null,null,null,null,null,null,null,null,null,null,null,null,null,null,null,null,null,null,null,null,null,null,null,null,null,null,null,null,null,null,null,null,null,null,null,null,null,null,null,null,null,null,null,null,null,null,null,null,null,null,null,null,null,null,null,null,null,null,null,null,null,null,null,null,null,null,null,null,null,null,null,null,null,null,null,null,null,null,null,null,null,null,null,null,null,null,null,null,null,null,null,null,null,null,null,null,null,null,null,null,null,null,null,null,null,null,null,null,null,null,null,null,null,null,null,null,null,null,null,null,null,null,null,null,null,null,null,null,null,null,null,null,null,null,null,null,null,null,null,null,null,null,null,null,null,null,null,null,null,null,null,null,null,null,null,null,null,null,null,null,null,null,null,null,null,null,null,null,null,null,null,null,null,null,null,null,null,null,null,null,null,null,null,null,null,null,null,null,null,null,null,null,null,null,null,null,null,null,"Número de convenios firmados anualmente con el sector productivo ","Número de convenios firmados anualmente con el sector productivo ","Convenios",10560]
[null,"ÁREA RESPONSABLE( 4 )",null,null,null,null,null,null,null,null,null,null,null,null,null,null,null,null,null,null,null,null,null,null,null,null,null,null,null,null,null,null,null,null,null,null,null,null,null,null,null,null,null,null,null,null,null,null,null,null,null,null,null,null,null,null,null,null,null,null,null,null,null,null,null,null,null,null,null,null,null,null,null,null,null,null,null,null,null,null,null,null,null,null,null,null,null,null,null,null,null,null,null,null,null,null,null,null,null,null,null,null,null,null,null,null,null,null,null,null,null,null,null,null,null,null,null,null,null,null,null,null,null,null,null,null,null,null,null,null,null,null,null,null,null,null,null,null,null,null,null,null,null,null,null,null,null,null,null,null,null,null,null,null,null,null,null,null,null,null,null,null,null,null,null,null,null,null,null,null,null,null,null,null,null,null,null,null,null,null,null,null,null,null,null,null,null,null,null,null,null,null,null,null,null,null,null,null,null,null,null,null,null,null,null,null,null,null,null,null,null,null,null,null,null,null,null,null,null,null,null,null,null,null,null,null,null,null,null,null,null,null,null,null,null,null,null,null,null,null,null,null,null,null,null,null,null,null,null,null,null,null,null,null,null,null,null,null,null,null,null,null,null,null,null,null,null,null,null,null,null,null,"Número de Consejos de Vinculación instalados en la Institución  ","Número de Consejos de Vinculación en la Institución instalados","Consejos",109]
[null,null,null,null,null,null,null,null,null,null,null,null,null,null,null,null,null,null,null,null,null,null,null,null,null,null,null,null,null,null,null,null,null,null,null,null,null,null,null,null,null,null,null,null,null,null,null,null,null,null,null,null,null,null,null,null,null,null,null,null,null,null,null,null,null,null,null,null,null,null,null,null,null,null,null,null,null,null,null,null,null,null,null,null,null,null,null,null,null,null,null,null,null,null,null,null,null,null,null,null,null,null,null,null,null,null,null,null,null,null,null,null,null,null,null,null,null,null,null,null,null,null,null,null,null,null,null,null,null,null,null,null,null,null,null,null,null,null,null,null,null,null,null,null,null,null,null,null,null,null,null,null,null,null,null,null,null,null,null,null,null,null,null,null,null,null,null,null,null,null,null,null,null,null,null,null,null,null,null,null,null,null,null,null,null,null,null,null,null,null,null,null,null,null,null,null,null,null,null,null,null,null,null,null,null,null,null,null,null,null,null,null,null,null,null,null,null,null,null,null,null,null,null,null,null,null,null,null,null,null,null,null,null,null,null,null,null,null,null,null,null,null,null,null,null,null,null,null,null,null,null,null,null,null,null,null,null,null,null,null,null,null,null,null,null,null,null,null,null,null,null,null,"Número de Entidades de Evaluación y Certificación","Número de Entidades de evaluación y certificación","Entidades",85]
[null,null,null,null,null,null,null,null,null,null,null,null,null,null,null,null,null,null,null,null,null,null,null,null,null,null,null,null,null,null,null,null,null,null,null,null,null,null,null,null,null,null,null,null,null,null,null,null,null,null,null,null,null,null,null,null,null,null,null,null,null,null,null,null,null,null,null,null,null,null,null,null,null,null,null,null,null,null,null,null,null,null,null,null,null,null,null,null,null,null,null,null,null,null,null,null,null,null,null,null,null,null,null,null,null,null,null,null,null,null,null,null,null,null,null,null,null,null,null,null,null,null,null,null,null,null,null,null,null,null,null,null,null,null,null,null,null,null,null,null,null,null,null,null,null,null,null,null,null,null,null,null,null,null,null,null,null,null,null,null,null,null,null,null,null,null,null,null,null,null,null,null,null,null,null,null,null,null,null,null,null,null,null,null,null,null,null,null,null,null,null,null,null,null,null,null,null,null,null,null,null,null,null,null,null,null,null,null,null,null,null,null,null,null,null,null,null,null,null,null,null,null,null,null,null,null,null,null,null,null,null,null,null,null,null,null,null,null,null,null,null,null,null,null,null,null,null,null,null,null,null,null,null,null,null,null,null,null,null,null,null,null,null,null,null,null,null,null,null,null,null,null,"Número de certificados expedidos anualmente por el Centro de Certificación iCarnegie","Número de certificados expedidos anualmente por el Centro de Certificación iCarnegie","Certificados",3858]
[null,"INDICADORES  ( 5 )",null,null,null,null,null,null,null,null,null,null,null,null,null,null,null,null,null,null,null,null,null,null,null,null,null,null,null,null,null,null,null,null,null,null,null,null,null,null,null,null,null,null,null,null,null,null,null,null,null,null,null,null,null,null,null,null,null,null,null,null,null,null,null,null,null,null,null,null,null,null,null,null,null,null,null,null,null,null,null,null,null,null,null,null,null,null,null,null,null,null,null,null,null,null,null,null,null,null,null,null,null,null,null,null,null,null,null,null,null,null,null,null,null,null,null,null,null,null,null,null,null,null,null,null,null,null,null,null,null,null,null,null,null,null,null,null,null,null,null,null,null,null,null,null,null,null,null,null,null,null,null,null,null,null,null,null,null,null,null,null,null,null,null,null,null,null,null,null,null,null,null,null,null,null,null,null,null,null,null,null,null,null,null,null,null,null,null,null,null,null,null,null,null,null,null,null,null,null,null,null,null,null,null,null,null,null,null,null,null,null,null,null,null,null,null,null,null,null,null,null,null,null,null,null,null,null,null,null,null,null,null,null,null,null,null,null,null,null,null,null,null,null,null,null,null,null,null,null,null,null,null,null,null,null,null,null,null,null,null,null,null,null,null,null,null,null,null,null,null,null,"Número de Centros de Certificación National Instruments","Número de centros de Certificación National Instruments","Centros",45]
[null,"NOMBRE DEL INDICADOR (5.1)","FÓRMULA","UNIDAD DE MEDIDA","META INSTITUCIONAL A 2024 \nPROGRAMA INSTITUCIONAL DE DESARROLLO DE LA UNIVERSIDAD",null,null,null,null,"CONTEXTO ACTUAL Y A FUTURO DEL INDICADOR (5.2)",null,null,null,null,null,null,null,null,null,null,null,"Total alcanzado (Se reporta en el tercer cuatrimestre) (5.3)",null,null,null,null,null,null,null,null,null,null,null,null,null,null,null,null,null,null,null,null,null,null,null,null,null,null,null,null,null,null,null,null,null,null,null,null,null,null,null,null,null,null,null,null,null,null,null,null,null,null,null,null,null,null,null,null,null,null,null,null,null,null,null,null,null,null,null,null,null,null,null,null,null,null,null,null,null,null,null,null,null,null,null,null,null,null,null,null,null,null,null,null,null,null,null,null,null,null,null,null,null,null,null,null,null,null,null,null,null,null,null,null,null,null,null,null,null,null,null,null,null,null,null,null,null,null,null,null,null,null,null,null,null,null,null,null,null,null,null,null,null,null,null,null,null,null,null,null,null,null,null,null,null,null,null,null,null,null,null,null,null,null,null,null,null,null,null,null,null,null,null,null,null,null,null,null,null,null,null,null,null,null,null,null,null,null,null,null,null,null,null,null,null,null,null,null,null,null,null,null,null,null,null,null,null,null,null,null,null,null,null,null,null,null,null,null,null,null,null,null,null,null,null,null,null,null,null,null,null,null,null,null,null,null,null,null,null,null,null,null,null,null,null,null,null,null,null,null,null,null,"Número de certificados expedidos anualmente por algún centro certificador.","Número de certificados expedidos anualmente por algún centro certificador.","Certificados",3136]
[null,"Número de certificados expedidos anualmente por algún centro certificador.",{"$f":"(IF(B16=\"Transferencia  del modelo de incubación de la CGUTyP\",JN8,\nIF(B16=\"Número de empresas generadas anualmente, derivadas de los proyectos incubados en la Universidad sin importar cuántos se hayan incubado en total\",JN9,\nIF(B16=\"Número total de empleos generados anualmente por las empresas incubadas\",#REF!,\nIF(B16=\"Número de convenios firmados anualmente con el sector productivo \",JN10,\nIF(B16=\"Número de Consejos de Vinculación instalados en la Institución  \",JN11,\nIF(B16=\"Número de Entidades de Evaluación y Certificación\",JN12,\nIF(B16=\"Número de certificados expedidos anualmente por la Entidad de Evaluación y Certificación (EEC)\",#REF!,IF(B16=\"Número de Centros de Certificación iCarnegie\",#REF!,\nIF(B16=\"Número de certificados expedidos anualmente por el Centro de Certificación iCarnegie\",JN13,\nIF(B16=\"Número de Centros de Certificación National Instruments\",JN14,\nIF(B16=\"Número de certificados expedidos anualmente por algún Centro Certificador.\",JN15,\nIF(B16=\"Porcentaje de egresados de TSU que optan por la continuidad de estudios\",JN16,\nIF(B16=\"Porcentaje de egresados de TSU que obtienen empleo en 6 meses o menos\",JN17,\nIF(B16=\"Porcentaje de egresados de TSU que optaron por la continuidad y que tienen empleo\",JN18,\nIF(B16=\"Porcentaje de colocación, en 6 meses o menos, de los egresados de Ingeniería\",JN19,\nIF(B16=\"Porcentaje de colocación de los egresados en su área de competencia\",JN20)))))))))))))))))","v":"Número de certificados expedidos anualmente por algún centro certificador."},{"$f":"(IF(B16=\"Transferencia  del modelo de incubación de la CGUTyP\",JO8,\nIF(B16=\"Número de empresas generadas anualmente, derivadas de los proyectos incubados en la Universidad sin importar cuántos se hayan incubado en total\",JO9,\nIF(B16=\"Número total de empleos generados anualmente por las empresas incubadas\",#REF!,\nIF(B16=\"Número de convenios firmados anualmente con el sector productivo \",JO10,\nIF(B16=\"Número de Consejos de Vinculación instalados en la Institución  \",JO11,\nIF(B16=\"Número de Entidades de Evaluación y Certificación\",JO12,\nIF(B16=\"Número de certificados expedidos anualmente por la Entidad de Evaluación y Certificación (EEC)\",#REF!,IF(B16=\"Número de Centros de Certificación iCarnegie\",#REF!,\nIF(B16=\"Número de certificados expedidos anualmente por el Centro de Certificación iCarnegie\",JO13,\nIF(B16=\"Número de Centros de Certificación National Instruments\",JO14,\nIF(B16=\"Número de certificados expedidos anualmente por algún centro certificador.\",JO15,\nIF(B16=\"Porcentaje de egresados de TSU que optan por la continuidad de estudios\",JO16,\nIF(B16=\"Porcentaje de egresados de TSU que obtienen empleo en 6 meses o menos\",JO17,\nIF(B16=\"Porcentaje de egresados de TSU que optaron por la continuidad y que tienen empleo\",JO18,\nIF(B16=\"Porcentaje de colocación, en 6 meses o menos, de los egresados de Ingeniería\",JO19,\nIF(B16=\"Porcentaje de colocación de los egresados en su área de competencia\",JO20)))))))))))))))))","v":"Certificados"},null,null,null,null,null,2021,null,null,null,null,null,2022,null,null,null,null,null,null,null,null,null,null,null,null,null,null,null,null,null,null,null,null,null,null,null,null,null,null,null,null,null,null,null,null,null,null,null,null,null,null,null,null,null,null,null,null,null,null,null,null,null,null,null,null,null,null,null,null,null,null,null,null,null,null,null,null,null,null,null,null,null,null,null,null,null,null,null,null,null,null,null,null,null,null,null,null,null,null,null,null,null,null,null,null,null,null,null,null,null,null,null,null,null,null,null,null,null,null,null,null,null,null,null,null,null,null,null,null,null,null,null,null,null,null,null,null,null,null,null,null,null,null,null,null,null,null,null,null,null,null,null,null,null,null,null,null,null,null,null,null,null,null,null,null,null,null,null,null,null,null,null,null,null,null,null,null,null,null,null,null,null,null,null,null,null,null,null,null,null,null,null,null,null,null,null,null,null,null,null,null,null,null,null,null,null,null,null,null,null,null,null,null,null,null,null,null,null,null,null,null,null,null,null,null,null,null,null,null,null,null,null,null,null,null,null,null,null,null,null,null,null,null,null,null,null,null,null,null,null,null,null,null,null,null,null,null,null,null,null,null,null,null,null,null,null,null,null,null,"Porcentaje de egresados de TSU que optan por la continuidad de estudios","(Número de egresados de TSU que optan por la continuidad de estudios/número de egresados de TSU en el año t)*100","Alumnos",48]
[null,null,null,null,null,null,null,null,null,"Número actual",null,null,"Porcentaje actual",null,null,"Número a lograr",null,null,"Porcentaje a lograr",null,null,"Número alcanzado ",null,null,"Porcentaje alcanzado",null,null,null,null,null,null,null,null,null,null,null,null,null,null,null,null,null,null,null,null,null,null,null,null,null,null,null,null,null,null,null,null,null,null,null,null,null,null,null,null,null,null,null,null,null,null,null,null,null,null,null,null,null,null,null,null,null,null,null,null,null,null,null,null,null,null,null,null,null,null,null,null,null,null,null,null,null,null,null,null,null,null,null,null,null,null,null,null,null,null,null,null,null,null,null,null,null,null,null,null,null,null,null,null,null,null,null,null,null,null,null,null,null,null,null,null,null,null,null,null,null,null,null,null,null,null,null,null,null,null,null,null,null,null,null,null,null,null,null,null,null,null,null,null,null,null,null,null,null,null,null,null,null,null,null,null,null,null,null,null,null,null,null,null,null,null,null,null,null,null,null,null,null,null,null,null,null,null,null,null,null,null,null,null,null,null,null,null,null,null,null,null,null,null,null,null,null,null,null,null,null,null,null,null,null,null,null,null,null,null,null,null,null,null,null,null,null,null,null,null,null,null,null,null,null,null,null,null,null,null,null,null,null,null,null,null,null,null,null,null,null,null,null,null,null,null,null,"Porcentaje de egresados de TSU que obtienen empleo en 6 meses o menos","(Número de egresados de TSU que obtienen trabajo en 6 meses o menos/número de estudiantes egresados de TSU en el año t)*100","Alumnos",89]
[null,null,null,null,null,null,null,null,null,null,null,null,null,null,null,null,null,null,null,null,null,null,null,null,null,null,null,null,null,null,null,null,null,null,null,null,null,null,null,null,null,null,null,null,null,null,null,null,null,null,null,null,null,null,null,null,null,null,null,null,null,null,null,null,null,null,null,null,null,null,null,null,null,null,null,null,null,null,null,null,null,null,null,null,null,null,null,null,null,null,null,null,null,null,null,null,null,null,null,null,null,null,null,null,null,null,null,null,null,null,null,null,null,null,null,null,null,null,null,null,null,null,null,null,null,null,null,null,null,null,null,null,null,null,null,null,null,null,null,null,null,null,null,null,null,null,null,null,null,null,null,null,null,null,null,null,null,null,null,null,null,null,null,null,null,null,null,null,null,null,null,null,null,null,null,null,null,null,null,null,null,null,null,null,null,null,null,null,null,null,null,null,null,null,null,null,null,null,null,null,null,null,null,null,null,null,null,null,null,null,null,null,null,null,null,null,null,null,null,null,null,null,null,null,null,null,null,null,null,null,null,null,null,null,null,null,null,null,null,null,null,null,null,null,null,null,null,null,null,null,null,null,null,null,null,null,null,null,null,null,null,null,null,null,null,null,null,null,null,null,null,null,"Porcentaje de egresados de TSU que optaron por la continuidad y que tienen empleo","(Número de egresados de TSU que optaron por la continuidad y que tienen empleo/número de egresados de TSU) *100 ","Alumnos",25]
[null,"NOMBRE DEL INDICADOR (5.1)","FÓRMULA","UNIDAD DE MEDIDA","META INSTITUCIONAL A 2024 \nPROGRAMA INSTITUCIONAL DE DESARROLLO DE LA UNIVERSIDAD",null,null,null,null,"CONTEXTO ACTUAL Y A FUTURO DEL INDICADOR (5.2)",null,null,null,null,null,null,null,null,null,null,null,"Total alcanzado (Se reporta en el tercer cuatrimestre) (5.3)",null,null,null,null,null,null,null,null,null,null,null,null,null,null,null,null,null,null,null,null,null,null,null,null,null,null,null,null,null,null,null,null,null,null,null,null,null,null,null,null,null,null,null,null,null,null,null,null,null,null,null,null,null,null,null,null,null,null,null,null,null,null,null,null,null,null,null,null,null,null,null,null,null,null,null,null,null,null,null,null,null,null,null,null,null,null,null,null,null,null,null,null,null,null,null,null,null,null,null,null,null,null,null,null,null,null,null,null,null,null,null,null,null,null,null,null,null,null,null,null,null,null,null,null,null,null,null,null,null,null,null,null,null,null,null,null,null,null,null,null,null,null,null,null,null,null,null,null,null,null,null,null,null,null,null,null,null,null,null,null,null,null,null,null,null,null,null,null,null,null,null,null,null,null,null,null,null,null,null,null,null,null,null,null,null,null,null,null,null,null,null,null,null,null,null,null,null,null,null,null,null,null,null,null,null,null,null,null,null,null,null,null,null,null,null,null,null,null,null,null,null,null,null,null,null,null,null,null,null,null,null,null,null,null,null,null,null,null,null,null,null,null,null,null,null,null,null,null,null,null,"Porcentaje de colocación, en 6 meses o menos, de los egresados de Ingeniería","(Número de egresados de Ingeniería que encontraron colocación en el sector productivo, en 6 meses o menos/número de egresados de Ingeniería)*100","Alumnos",86]
[null,"Número de certificados expedidos anualmente por algún centro certificador.",{"$f":"(IF(B20=\"Transferencia  del modelo de incubación de la CGUTyP\",JN8,\nIF(B20=\"Número de empresas generadas anualmente, derivadas de los proyectos incubados en la Universidad sin importar cuántos se hayan incubado en total\",JN9,\nIF(B20=\"Número total de empleos generados anualmente por las empresas incubadas\",#REF!,\nIF(B20=\"Número de convenios firmados anualmente con el sector productivo \",JN10,\nIF(B20=\"Número de Consejos de Vinculación instalados en la Institución  \",JN11,\nIF(B20=\"Número de Entidades de Evaluación y Certificación\",JN12,\nIF(B20=\"Número de certificados expedidos anualmente por la Entidad de Evaluación y Certificación (EEC)\",#REF!,IF(B20=\"Número de Centros de Certificación iCarnegie\",#REF!,\nIF(B20=\"Número de certificados expedidos anualmente por el Centro de Certificación iCarnegie\",JN13,\nIF(B20=\"Número de Centros de Certificación National Instruments\",JN14,\nIF(B20=\"Número de certificados expedidos anualmente por algún Centro Certificador.\",JN15,\nIF(B20=\"Porcentaje de egresados de TSU que optan por la continuidad de estudios\",JN16,\nIF(B20=\"Porcentaje de egresados de TSU que obtienen empleo en 6 meses o menos\",JN17,\nIF(B20=\"Porcentaje de egresados de TSU que optaron por la continuidad y que tienen empleo\",JN18,\nIF(B20=\"Porcentaje de colocación, en 6 meses o menos, de los egresados de Ingeniería\",JN19,\nIF(B20=\"Porcentaje de colocación de los egresados en su área de competencia\",JN20)))))))))))))))))","v":"Número de certificados expedidos anualmente por algún centro certificador."},{"$f":"(IF(B20=\"Transferencia  del modelo de incubación de la CGUTyP\",JO8,\nIF(B20=\"Número de empresas generadas anualmente, derivadas de los proyectos incubados en la Universidad sin importar cuántos se hayan incubado en total\",JO9,\nIF(B20=\"Número total de empleos generados anualmente por las empresas incubadas\",#REF!,\nIF(B20=\"Número de convenios firmados anualmente con el sector productivo \",JO10,\nIF(B20=\"Número de Consejos de Vinculación instalados en la Institución  \",JO11,\nIF(B20=\"Número de Entidades de Evaluación y Certificación\",JO12,\nIF(B20=\"Número de certificados expedidos anualmente por la Entidad de Evaluación y Certificación (EEC)\",#REF!,IF(B20=\"Número de Centros de Certificación iCarnegie\",#REF!,\nIF(B20=\"Número de certificados expedidos anualmente por el Centro de Certificación iCarnegie\",JO13,\nIF(B20=\"Número de Centros de Certificación National Instruments\",JO14,\nIF(B20=\"Número de certificados expedidos anualmente por algún centro certificador.\",JO15,\nIF(B20=\"Porcentaje de egresados de TSU que optan por la continuidad de estudios\",JO16,\nIF(B20=\"Porcentaje de egresados de TSU que obtienen empleo en 6 meses o menos\",JO17,\nIF(B20=\"Porcentaje de egresados de TSU que optaron por la continuidad y que tienen empleo\",JO18,\nIF(B20=\"Porcentaje de colocación, en 6 meses o menos, de los egresados de Ingeniería\",JO19,\nIF(B20=\"Porcentaje de colocación de los egresados en su área de competencia\",JO20)))))))))))))))))","v":"Certificados"},null,null,null,null,null,2021,null,null,null,null,null,2022,null,null,null,null,null,null,null,null,null,null,null,null,null,null,null,null,null,null,null,null,null,null,null,null,null,null,null,null,null,null,null,null,null,null,null,null,null,null,null,null,null,null,null,null,null,null,null,null,null,null,null,null,null,null,null,null,null,null,null,null,null,null,null,null,null,null,null,null,null,null,null,null,null,null,null,null,null,null,null,null,null,null,null,null,null,null,null,null,null,null,null,null,null,null,null,null,null,null,null,null,null,null,null,null,null,null,null,null,null,null,null,null,null,null,null,null,null,null,null,null,null,null,null,null,null,null,null,null,null,null,null,null,null,null,null,null,null,null,null,null,null,null,null,null,null,null,null,null,null,null,null,null,null,null,null,null,null,null,null,null,null,null,null,null,null,null,null,null,null,null,null,null,null,null,null,null,null,null,null,null,null,null,null,null,null,null,null,null,null,null,null,null,null,null,null,null,null,null,null,null,null,null,null,null,null,null,null,null,null,null,null,null,null,null,null,null,null,null,null,null,null,null,null,null,null,null,null,null,null,null,null,null,null,null,null,null,null,null,null,null,null,null,null,null,null,null,null,null,null,null,null,null,null,null,null,null,"Porcentaje de colocación de los egresados en su área de competencia","(Número de egresados que tienen trabajo en su área de competencia / número de egresados que tienen empleo) *100 ","Alumnos",69]
[null,null,null,null,null,null,null,null,null,"Número actual",null,null,"Porcentaje actual",null,null,"Número a lograr",null,null,"Porcentaje a lograr",null,null,"Número alcanzado ",null,null,"Porcentaje alcanzado",null,null,null,null,null,null,null,null,null,null,null,null,null,null,null,null,null,null,null,null,null,null,null,null,null,null,null,null,null,null,null,null,null,null,null,null,null,null,null,null,null,null,null,null,null,null,null,null,null,null,null,null,null,null,null,null,null,null,null,null,null,null,null,null,null,null,null,null,null,null,null,null,null,null,null,null,null,null,null,null,null,null,null,null,null,null,null,null,null,null,null,null,null,null,null,null,null,null,null,null,null,null,null,null,null,null,null,null,null,null,null,null,null,null,null,null,null,null,null,null,null,null,null,null,null,null,null,null,null,null,null,null,null,null,null,null,null,null,null,null,null,null,null,null,null,null,null,null,null,null,null,null,null,null,null,null,null,null,null,null,null,null,null,null,null,null,null,null,null,null,null,null,null,null,null,null,null,null,null,null,null,null,null,null,null,null,null,null,null,null,null,null,null,null,null,null,null,null,null,null,null,null,null,null,null,null,null,null,null,null,null,null,null,null,null,null,null,null,null,null,null,null,null,null,null,null,null,null,null,null,null,null,null,null,null,null,null,null,null,null,null,null,null,null,null,null,null,"NUEVOS MODELOS DE COOPERACIÓN PARA LA INTERNACIONALIZACIÓN DE LA EDUCACIÓN SUPERIORINDICADOR","FÓRMULA","UNIDAD DE MEDIDA","MEDIA NACIONAL"]
[null,null,null,null,null,null,null,null,null,null,null,null,null,null,null,null,null,null,null,null,null,null,null,null,null,null,null,null,null,null,null,null,null,null,null,null,null,null,null,null,null,null,null,null,null,null,null,null,null,null,null,null,null,null,null,null,null,null,null,null,null,null,null,null,null,null,null,null,null,null,null,null,null,null,null,null,null,null,null,null,null,null,null,null,null,null,null,null,null,null,null,null,null,null,null,null,null,null,null,null,null,null,null,null,null,null,null,null,null,null,null,null,null,null,null,null,null,null,null,null,null,null,null,null,null,null,null,null,null,null,null,null,null,null,null,null,null,null,null,null,null,null,null,null,null,null,null,null,null,null,null,null,null,null,null,null,null,null,null,null,null,null,null,null,null,null,null,null,null,null,null,null,null,null,null,null,null,null,null,null,null,null,null,null,null,null,null,null,null,null,null,null,null,null,null,null,null,null,null,null,null,null,null,null,null,null,null,null,null,null,null,null,null,null,null,null,null,null,null,null,null,null,null,null,null,null,null,null,null,null,null,null,null,null,null,null,null,null,null,null,null,null,null,null,null,null,null,null,null,null,null,null,null,null,null,null,null,null,null,null,null,null,null,null,null,null,null,null,null,null,null,null,"Número de estudiantes inscritos en programas de intercambio o movilidad  en instituciones extranjeras","Número de estudiantes inscritos en programas de intercambio o movilidad  en instituciones extranjeras","Estudiantes",3441]
[null,"OBJETIVO AL QUE ATIENDE DE ACUERDO AL PSE 2020-2024    (6)",null,null,null,null,null,null,null,null,null,null,null,null,null,null,null,null,null,null,null,null,null,null,null,null,null,null,null,null,null,null,null,null,null,null,null,null,null,null,null,null,null,null,null,null,null,null,null,null,null,null,null,null,null,null,null,null,null,null,null,null,null,null,null,null,null,null,null,null,null,null,null,null,null,null,null,null,null,null,null,null,null,null,null,null,null,null,null,null,null,null,null,null,null,null,null,null,null,null,null,null,null,null,null,null,null,null,null,null,null,null,null,null,null,null,null,null,null,null,null,null,null,null,null,null,null,null,null,null,null,null,null,null,null,null,null,null,null,null,null,null,null,null,null,null,null,null,null,null,null,null,null,null,null,null,null,null,null,null,null,null,null,null,null,null,null,null,null,null,null,null,null,null,null,null,null,null,null,null,null,null,null,null,null,null,null,null,null,null,null,null,null,null,null,null,null,null,null,null,null,null,null,null,null,null,null,null,null,null,null,null,null,null,null,null,null,null,null,null,null,null,null,null,null,null,null,null,null,null,null,null,null,null,null,null,null,null,null,null,null,null,null,null,null,null,null,null,null,null,null,null,null,null,null,null,null,null,null,null,null,null,null,null,null,null,null,null,null,null,null,null,"Número de estudiantes extranjeros inscritos en programas de intercambio en nuestras instituciones","Número de estudiantes extranjeros inscritos en programas de intercambio en nuestras instituciones.","Estudiantes",588]
[null,null,null,null,null,null,null,null,null,null,null,null,null,null,null,null,null,null,null,null,null,null,null,null,null,null,null,null,null,null,null,null,null,null,null,null,null,null,null,null,null,null,null,null,null,null,null,null,null,null,null,null,null,null,null,null,null,null,null,null,null,null,null,null,null,null,null,null,null,null,null,null,null,null,null,null,null,null,null,null,null,null,null,null,null,null,null,null,null,null,null,null,null,null,null,null,null,null,null,null,null,null,null,null,null,null,null,null,null,null,null,null,null,null,null,null,null,null,null,null,null,null,null,null,null,null,null,null,null,null,null,null,null,null,null,null,null,null,null,null,null,null,null,null,null,null,null,null,null,null,null,null,null,null,null,null,null,null,null,null,null,null,null,null,null,null,null,null,null,null,null,null,null,null,null,null,null,null,null,null,null,null,null,null,null,null,null,null,null,null,null,null,null,null,null,null,null,null,null,null,null,null,null,null,null,null,null,null,null,null,null,null,null,null,null,null,null,null,null,null,null,null,null,null,null,null,null,null,null,null,null,null,null,null,null,null,null,null,null,null,null,null,null,null,null,null,null,null,null,null,null,null,null,null,null,null,null,null,null,null,null,null,null,null,null,null,null,null,null,null,null,null,"Número de profesores extranjeros en programas de intercambio en instituciones nacionales","Número de profesores extranjeros en programas de intercambio en instituciones nacionales","Profesores",270]
[null,"CALENDARIZACIÓN Y SEGUIMIENTO DE LAS PRINCIPALES ACTIVIDADES  (7)",null,null,null,null,null,null,null,null,null,null,null,null,null,null,null,null,null,null,null,null,null,null,null,null,null,null,null,null,null,null,null,null,null,null,null,null,null,null,null,null,null,null,null,null,null,null,null,null,null,null,null,null,null,null,null,null,null,null,null,null,null,null,null,null,null,null,null,null,null,null,null,null,null,null,null,null,null,null,null,null,null,null,null,null,null,null,null,null,null,null,null,null,null,null,null,null,null,null,null,null,null,null,null,null,null,null,null,null,null,null,null,null,null,null,null,null,null,null,null,null,null,null,null,null,null,null,null,null,null,null,null,null,null,null,null,null,null,null,null,null,null,null,null,null,null,null,null,null,null,null,null,null,null,null,null,null,null,null,null,null,null,null,null,null,null,null,null,null,null,null,null,null,null,null,null,null,null,null,null,null,null,null,null,null,null,null,null,null,null,null,null,null,null,null,null,null,null,null,null,null,null,null,null,null,null,null,null,null,null,null,null,null,null,null,null,null,null,null,null,null,null,null,null,null,null,null,null,null,null,null,null,null,null,null,null,null,null,null,null,null,null,null,null,null,null,null,null,null,null,null,null,null,null,null,null,null,null,null,null,null,null,null,null,null,null,null,null,null,null,null,"Número de profesores en programas de intercambio en instituciones internacionales","Número de profesores en programas de intercambio en instituciones internacionales","Profesores",713]
[null,"ACTIVIDADES",null,"UNIDAD DE MEDIDA","META  ANUAL",null,"CALENDARIO 2022                                      CUATRIMESTRAL",null,null,null,null,null,null,null,null,null,null,null,"JUSTIFICACIÓN DE LAS DESVIACIONES POSITIVAS O NEGATIVAS (8)",null,null,null,null,null,null,"ÁREA\nEJECUTORA (9)",null,null,null,null,null,null,null,null,null,null,null,null,null,null,null,null,null,null,null,null,null,null,null,null,null,null,null,null,null,null,null,null,null,null,null,null,null,null,null,null,null,null,null,null,null,null,null,null,null,null,null,null,null,null,null,null,null,null,null,null,null,null,null,null,null,null,null,null,null,null,null,null,null,null,null,null,null,null,null,null,null,null,null,null,null,null,null,null,null,null,null,null,null,null,null,null,null,null,null,null,null,null,null,null,null,null,null,null,null,null,null,null,null,null,null,null,null,null,null,null,null,null,null,null,null,null,null,null,null,null,null,null,null,null,null,null,null,null,null,null,null,null,null,null,null,null,null,null,null,null,null,null,null,null,null,null,null,null,null,null,null,null,null,null,null,null,null,null,null,null,null,null,null,null,null,null,null,null,null,null,null,null,null,null,null,null,null,null,null,null,null,null,null,null,null,null,null,null,null,null,null,null,null,null,null,null,null,null,null,null,null,null,null,null,null,null,null,null,null,null,null,null,null,null,null,null,null,null,null,null,null,null,null,null,null,null,null,null,null,null,null,null,null,null,null,null,"Número de programas de lengua extranjera que se imparten en la institución","Número de programas de lengua extranjera que se imparten en la institución","Programas",72]
[null,null,null,null,null,null,1,null,null,null,2,null,null,null,3,null,null,null,null,null,null,null,null,null,null,null,null,null,null,null,null,null,null,null,null,null,null,null,null,null,null,null,null,null,null,null,null,null,null,null,null,null,null,null,null,null,null,null,null,null,null,null,null,null,null,null,null,null,null,null,null,null,null,null,null,null,null,null,null,null,null,null,null,null,null,null,null,null,null,null,null,null,null,null,null,null,null,null,null,null,null,null,null,null,null,null,null,null,null,null,null,null,null,null,null,null,null,null,null,null,null,null,null,null,null,null,null,null,null,null,null,null,null,null,null,null,null,null,null,null,null,null,null,null,null,null,null,null,null,null,null,null,null,null,null,null,null,null,null,null,null,null,null,null,null,null,null,null,null,null,null,null,null,null,null,null,null,null,null,null,null,null,null,null,null,null,null,null,null,null,null,null,null,null,null,null,null,null,null,null,null,null,null,null,null,null,null,null,null,null,null,null,null,null,null,null,null,null,null,null,null,null,null,null,null,null,null,null,null,null,null,null,null,null,null,null,null,null,null,null,null,null,null,null,null,null,null,null,null,null,null,null,null,null,null,null,null,null,null,null,null,null,null,null,null,null,null,null,null,null,null,null,"Porcentaje de profesores que imparten una lengua extranjera y que están certificados","(Número de profesores que imparte una lengua extranjera y que están certificados/ número de profesores que imparte una lengua extranjera)*100","Profesores",79]
[null,null,null,null,null,null,"PROG",null,"ALC",null,"PROG",null,"ALC",null,"PROG",null,"ALC",null,null,null,null,null,null,null,null,null,null,null,null,null,null,null,null,null,null,null,null,null,null,null,null,null,null,null,null,null,null,null,null,null,null,null,null,null,null,null,null,null,null,null,null,null,null,null,null,null,null,null,null,null,null,null,null,null,null,null,null,null,null,null,null,null,null,null,null,null,null,null,null,null,null,null,null,null,null,null,null,null,null,null,null,null,null,null,null,null,null,null,null,null,null,null,null,null,null,null,null,null,null,null,null,null,null,null,null,null,null,null,null,null,null,null,null,null,null,null,null,null,null,null,null,null,null,null,null,null,null,null,null,null,null,null,null,null,null,null,null,null,null,null,null,null,null,null,null,null,null,null,null,null,null,null,null,null,null,null,null,null,null,null,null,null,null,null,null,null,null,null,null,null,null,null,null,null,null,null,null,null,null,null,null,null,null,null,null,null,null,null,null,null,null,null,null,null,null,null,null,null,null,null,null,null,null,null,null,null,null,null,null,null,null,null,null,null,null,null,null,null,null,null,null,null,null,null,null,null,null,null,null,null,null,null,null,null,null,null,null,null,null,null,null,null,null,null,null,null,null,null,null,null,null,null,"Número de convenios firmados con Universidades extranjeras para la movilidad estudiantil","Número de convenios firmados con Universidades extranjeras para la movilidad estudiantil.","Convenios",506]
[null,null,null,null,null,null,"#","%","#","%","#","%","#","%","#","%","#","%"]
[null,null,null,null,null,null,null,null,null,null,null,null,null,null,null,null,null,null,null,null,null,null,null,null,null,null,null,null,null,null,null,null,null,null,null,null,null,null,null,null,null,null,null,null,null,null,null,null,null,null,null,null,null,null,null,null,null,null,null,null,null,null,null,null,null,null,null,null,null,null,null,null,null,null,null,null,null,null,null,null,null,null,null,null,null,null,null,null,null,null,null,null,null,null,null,null,null,null,null,null,null,null,null,null,null,null,null,null,null,null,null,null,null,null,null,null,null,null,null,null,null,null,null,null,null,null,null,null,null,null,null,null,null,null,null,null,null,null,null,null,null,null,null,null,null,null,null,null,null,null,null,null,null,null,null,null,null,null,null,null,null,null,null,null,null,null,null,null,null,null,null,null,null,null,null,null,null,null,null,null,null,null,null,null,null,null,null,null,null,null,null,null,null,null,null,null,null,null,null,null,null,null,null,null,null,null,null,null,null,null,null,null,null,null,null,null,null,null,null,null,null,null,null,null,null,null,null,null,null,null,null,null,null,null,null,null,null,null,null,null,null,null,null,null,null,null,null,null,null,null,null,null,null,null,null,null,null,null,null,null,null,null,null,null,null,null,null,null,null,null,null,null,"PROMOCIÓN Y DIFUSIÓN DEL ARTE Y LA CULTURA"]
[null,null,null,null,null,null,null,null,null,null,null,null,null,null,null,null,null,null,null,null,null,null,null,null,null,null,null,null,null,null,null,null,null,null,null,null,null,null,null,null,null,null,null,null,null,null,null,null,null,null,null,null,null,null,null,null,null,null,null,null,null,null,null,null,null,null,null,null,null,null,null,null,null,null,null,null,null,null,null,null,null,null,null,null,null,null,null,null,null,null,null,null,null,null,null,null,null,null,null,null,null,null,null,null,null,null,null,null,null,null,null,null,null,null,null,null,null,null,null,null,null,null,null,null,null,null,null,null,null,null,null,null,null,null,null,null,null,null,null,null,null,null,null,null,null,null,null,null,null,null,null,null,null,null,null,null,null,null,null,null,null,null,null,null,null,null,null,null,null,null,null,null,null,null,null,null,null,null,null,null,null,null,null,null,null,null,null,null,null,null,null,null,null,null,null,null,null,null,null,null,null,null,null,null,null,null,null,null,null,null,null,null,null,null,null,null,null,null,null,null,null,null,null,null,null,null,null,null,null,null,null,null,null,null,null,null,null,null,null,null,null,null,null,null,null,null,null,null,null,null,null,null,null,null,null,null,null,null,null,null,null,null,null,null,null,null,null,null,null,null,null,null,"Presentaciones artísticas y culturales","Número de presentaciones anuales de danza, múscia, teatro, festivales, entre otros","Presentaciones",2789]
[null,null,null,null,null,null,null,null,null,null,null,null,null,null,null,null,null,null,null,null,null,null,null,null,null,null,null,null,null,null,null,null,null,null,null,null,null,null,null,null,null,null,null,null,null,null,null,null,null,null,null,null,null,null,null,null,null,null,null,null,null,null,null,null,null,null,null,null,null,null,null,null,null,null,null,null,null,null,null,null,null,null,null,null,null,null,null,null,null,null,null,null,null,null,null,null,null,null,null,null,null,null,null,null,null,null,null,null,null,null,null,null,null,null,null,null,null,null,null,null,null,null,null,null,null,null,null,null,null,null,null,null,null,null,null,null,null,null,null,null,null,null,null,null,null,null,null,null,null,null,null,null,null,null,null,null,null,null,null,null,null,null,null,null,null,null,null,null,null,null,null,null,null,null,null,null,null,null,null,null,null,null,null,null,null,null,null,null,null,null,null,null,null,null,null,null,null,null,null,null,null,null,null,null,null,null,null,null,null,null,null,null,null,null,null,null,null,null,null,null,null,null,null,null,null,null,null,null,null,null,null,null,null,null,null,null,null,null,null,null,null,null,null,null,null,null,null,null,null,null,null,null,null,null,null,null,null,null,null,null,null,null,null,null,null,null,null,null,null,null,null,null,"Alumnos que participan en actividades culturales y artísticas","Número de alumnos que participan en actividades culturales y artísticas/ total de alumnos*100","Alumnos",70842]
[null,null,null,null,null,null,null,null,null,null,null,null,null,null,null,null,null,null,null,null,null,null,null,null,null,null,null,null,null,null,null,null,null,null,null,null,null,null,null,null,null,null,null,null,null,null,null,null,null,null,null,null,null,null,null,null,null,null,null,null,null,null,null,null,null,null,null,null,null,null,null,null,null,null,null,null,null,null,null,null,null,null,null,null,null,null,null,null,null,null,null,null,null,null,null,null,null,null,null,null,null,null,null,null,null,null,null,null,null,null,null,null,null,null,null,null,null,null,null,null,null,null,null,null,null,null,null,null,null,null,null,null,null,null,null,null,null,null,null,null,null,null,null,null,null,null,null,null,null,null,null,null,null,null,null,null,null,null,null,null,null,null,null,null,null,null,null,null,null,null,null,null,null,null,null,null,null,null,null,null,null,null,null,null,null,null,null,null,null,null,null,null,null,null,null,null,null,null,null,null,null,null,null,null,null,null,null,null,null,null,null,null,null,null,null,null,null,null,null,null,null,null,null,null,null,null,null,null,null,null,null,null,null,null,null,null,null,null,null,null,null,null,null,null,null,null,null,null,null,null,null,null,null,null,null,null,null,null,null,null,null,null,null,null,null,null,null,null,null,null,null,null,"FORTALECIMIENTO DE LA PRÁCTICA DE ACTIVIDADES FÍSICAS Y DEPORTIVAS"]
[null,null,null,null,null,null,null,null,null,null,null,null,null,null,null,null,null,null,null,null,null,null,null,null,null,null,null,null,null,null,null,null,null,null,null,null,null,null,null,null,null,null,null,null,null,null,null,null,null,null,null,null,null,null,null,null,null,null,null,null,null,null,null,null,null,null,null,null,null,null,null,null,null,null,null,null,null,null,null,null,null,null,null,null,null,null,null,null,null,null,null,null,null,null,null,null,null,null,null,null,null,null,null,null,null,null,null,null,null,null,null,null,null,null,null,null,null,null,null,null,null,null,null,null,null,null,null,null,null,null,null,null,null,null,null,null,null,null,null,null,null,null,null,null,null,null,null,null,null,null,null,null,null,null,null,null,null,null,null,null,null,null,null,null,null,null,null,null,null,null,null,null,null,null,null,null,null,null,null,null,null,null,null,null,null,null,null,null,null,null,null,null,null,null,null,null,null,null,null,null,null,null,null,null,null,null,null,null,null,null,null,null,null,null,null,null,null,null,null,null,null,null,null,null,null,null,null,null,null,null,null,null,null,null,null,null,null,null,null,null,null,null,null,null,null,null,null,null,null,null,null,null,null,null,null,null,null,null,null,null,null,null,null,null,null,null,null,null,null,null,null,null,"INDICADOR","FÓRMULA","2016"]
[null,"DESCRIPCIÓN DEL ALCANCE DEL INDICADOR Y EFECTO SOCIOECONOMICO    (10)",null,null,null,null,null,null,null,null,null,null,null,null,null,null,null,null,null,null,null,null,null,null,null,null,null,null,null,null,null,null,null,null,null,null,null,null,null,null,null,null,null,null,null,null,null,null,null,null,null,null,null,null,null,null,null,null,null,null,null,null,null,null,null,null,null,null,null,null,null,null,null,null,null,null,null,null,null,null,null,null,null,null,null,null,null,null,null,null,null,null,null,null,null,null,null,null,null,null,null,null,null,null,null,null,null,null,null,null,null,null,null,null,null,null,null,null,null,null,null,null,null,null,null,null,null,null,null,null,null,null,null,null,null,null,null,null,null,null,null,null,null,null,null,null,null,null,null,null,null,null,null,null,null,null,null,null,null,null,null,null,null,null,null,null,null,null,null,null,null,null,null,null,null,null,null,null,null,null,null,null,null,null,null,null,null,null,null,null,null,null,null,null,null,null,null,null,null,null,null,null,null,null,null,null,null,null,null,null,null,null,null,null,null,null,null,null,null,null,null,null,null,null,null,null,null,null,null,null,null,null,null,null,null,null,null,null,null,null,null,null,null,null,null,null,null,null,null,null,null,null,null,null,null,null,null,null,null,null,null,null,null,null,null,null,null,null,null,null,null,null,"Torneos deportivos","Número de torneos deportivos anuales internos y externos en los que participará la institución","Torneos",1960]
[null,null,null,null,null,null,null,null,null,null,null,null,null,null,null,null,null,null,null,null,null,null,null,null,null,null,null,null,null,null,null,null,null,null,null,null,null,null,null,null,null,null,null,null,null,null,null,null,null,null,null,null,null,null,null,null,null,null,null,null,null,null,null,null,null,null,null,null,null,null,null,null,null,null,null,null,null,null,null,null,null,null,null,null,null,null,null,null,null,null,null,null,null,null,null,null,null,null,null,null,null,null,null,null,null,null,null,null,null,null,null,null,null,null,null,null,null,null,null,null,null,null,null,null,null,null,null,null,null,null,null,null,null,null,null,null,null,null,null,null,null,null,null,null,null,null,null,null,null,null,null,null,null,null,null,null,null,null,null,null,null,null,null,null,null,null,null,null,null,null,null,null,null,null,null,null,null,null,null,null,null,null,null,null,null,null,null,null,null,null,null,null,null,null,null,null,null,null,null,null,null,null,null,null,null,null,null,null,null,null,null,null,null,null,null,null,null,null,null,null,null,null,null,null,null,null,null,null,null,null,null,null,null,null,null,null,null,null,null,null,null,null,null,null,null,null,null,null,null,null,null,null,null,null,null,null,null,null,null,null,null,null,null,null,null,null,null,null,null,null,null,null,"Participantes en torneos deportivos","Número de alumnos que participarán en los torneos internos y externos en los que participará la institución/ total de alumnos *100","Alumnos",69292]
[null,null,null,null,null,null,null,null,null,null,null,null,null,null,null,null,null,null,null,null,null,null,null,null,null,null,null,null,null,null,null,null,null,null,null,null,null,null,null,null,null,null,null,null,null,null,null,null,null,null,null,null,null,null,null,null,null,null,null,null,null,null,null,null,null,null,null,null,null,null,null,null,null,null,null,null,null,null,null,null,null,null,null,null,null,null,null,null,null,null,null,null,null,null,null,null,null,null,null,null,null,null,null,null,null,null,null,null,null,null,null,null,null,null,null,null,null,null,null,null,null,null,null,null,null,null,null,null,null,null,null,null,null,null,null,null,null,null,null,null,null,null,null,null,null,null,null,null,null,null,null,null,null,null,null,null,null,null,null,null,null,null,null,null,null,null,null,null,null,null,null,null,null,null,null,null,null,null,null,null,null,null,null,null,null,null,null,null,null,null,null,null,null,null,null,null,null,null,null,null,null,null,null,null,null,null,null,null,null,null,null,null,null,null,null,null,null,null,null,null,null,null,null,null,null,null,null,null,null,null,null,null,null,null,null,null,null,null,null,null,null,null,null,null,null,null,null,null,null,null,null,null,null,null,null,null,null,null,null,null,null,null,null,null,null,null,null,null,null,null,null,null,"TIPO DE  PROCESO"]
[null,null,null,null,null,null,null,null,null,null,null,null,null,null,null,null,null,null,null,null,null,null,null,null,null,null,null,null,null,null,null,null,null,null,null,null,null,null,null,null,null,null,null,null,null,null,null,null,null,null,null,null,null,null,null,null,null,null,null,null,null,null,null,null,null,null,null,null,null,null,null,null,null,null,null,null,null,null,null,null,null,null,null,null,null,null,null,null,null,null,null,null,null,null,null,null,null,null,null,null,null,null,null,null,null,null,null,null,null,null,null,null,null,null,null,null,null,null,null,null,null,null,null,null,null,null,null,null,null,null,null,null,null,null,null,null,null,null,null,null,null,null,null,null,null,null,null,null,null,null,null,null,null,null,null,null,null,null,null,null,null,null,null,null,null,null,null,null,null,null,null,null,null,null,null,null,null,null,null,null,null,null,null,null,null,null,null,null,null,null,null,null,null,null,null,null,null,null,null,null,null,null,null,null,null,null,null,null,null,null,null,null,null,null,null,null,null,null,null,null,null,null,null,null,null,null,null,null,null,null,null,null,null,null,null,null,null,null,null,null,null,null,null,null,null,null,null,null,null,null,null,null,null,null,null,null,null,null,null,null,null,null,null,null,null,null,null,null,null,null,null,null,"Eficiencia"]
[null,"NOMBRE Y FIRMA DEL/LA RECTOR(A)",null,null,null,null,null,null,null,null,null,null,null,null,null,null,"NOMBRE Y FIRMA DE LA PERSONA RESPONSABLE DEL PROCESO",null,null,null,null,null,null,null,null,null,null,null,null,null,null,null,null,null,null,null,null,null,null,null,null,null,null,null,null,null,null,null,null,null,null,null,null,null,null,null,null,null,null,null,null,null,null,null,null,null,null,null,null,null,null,null,null,null,null,null,null,null,null,null,null,null,null,null,null,null,null,null,null,null,null,null,null,null,null,null,null,null,null,null,null,null,null,null,null,null,null,null,null,null,null,null,null,null,null,null,null,null,null,null,null,null,null,null,null,null,null,null,null,null,null,null,null,null,null,null,null,null,null,null,null,null,null,null,null,null,null,null,null,null,null,null,null,null,null,null,null,null,null,null,null,null,null,null,null,null,null,null,null,null,null,null,null,null,null,null,null,null,null,null,null,null,null,null,null,null,null,null,null,null,null,null,null,null,null,null,null,null,null,null,null,null,null,null,null,null,null,null,null,null,null,null,null,null,null,null,null,null,null,null,null,null,null,null,null,null,null,null,null,null,null,null,null,null,null,null,null,null,null,null,null,null,null,null,null,null,null,null,null,null,null,null,null,null,null,null,null,null,null,null,null,null,null,null,null,null,null,null,null,null,null,null,"Eficacia"]
[null,null,null,null,null,null,null,null,null,null,null,null,null,null,null,null,null,null,null,null,null,null,null,null,null,null,null,null,null,null,null,null,null,null,null,null,null,null,null,null,null,null,null,null,null,null,null,null,null,null,null,null,null,null,null,null,null,null,null,null,null,null,null,null,null,null,null,null,null,null,null,null,null,null,null,null,null,null,null,null,null,null,null,null,null,null,null,null,null,null,null,null,null,null,null,null,null,null,null,null,null,null,null,null,null,null,null,null,null,null,null,null,null,null,null,null,null,null,null,null,null,null,null,null,null,null,null,null,null,null,null,null,null,null,null,null,null,null,null,null,null,null,null,null,null,null,null,null,null,null,null,null,null,null,null,null,null,null,null,null,null,null,null,null,null,null,null,null,null,null,null,null,null,null,null,null,null,null,null,null,null,null,null,null,null,null,null,null,null,null,null,null,null,null,null,null,null,null,null,null,null,null,null,null,null,null,null,null,null,null,null,null,null,null,null,null,null,null,null,null,null,null,null,null,null,null,null,null,null,null,null,null,null,null,null,null,null,null,null,null,null,null,null,null,null,null,null,null,null,null,null,null,null,null,null,null,null,null,null,null,null,null,null,null,null,null,null,null,null,null,null,null,"Pertinencia"]
[null,null,null,null,null,null,null,null,null,null,null,null,null,null,null,null,null,null,null,null,null,null,null,null,null,null,null,null,null,null,null,null,null,null,null,null,null,null,null,null,null,null,null,null,null,null,null,null,null,null,null,null,null,null,null,null,null,null,null,null,null,null,null,null,null,null,null,null,null,null,null,null,null,null,null,null,null,null,null,null,null,null,null,null,null,null,null,null,null,null,null,null,null,null,null,null,null,null,null,null,null,null,null,null,null,null,null,null,null,null,null,null,null,null,null,null,null,null,null,null,null,null,null,null,null,null,null,null,null,null,null,null,null,null,null,null,null,null,null,null,null,null,null,null,null,null,null,null,null,null,null,null,null,null,null,null,null,null,null,null,null,null,null,null,null,null,null,null,null,null,null,null,null,null,null,null,null,null,null,null,null,null,null,null,null,null,null,null,null,null,null,null,null,null,null,null,null,null,null,null,null,null,null,null,null,null,null,null,null,null,null,null,null,null,null,null,null,null,null,null,null,null,null,null,null,null,null,null,null,null,null,null,null,null,null,null,null,null,null,null,null,null,null,null,null,null,null,null,null,null,null,null,null,null,null,null,null,null,null,null,null,null,null,null,null,null,null,null,null,null,null,null,"Vinculación"]
[null,null,null,null,null,null,null,null,null,null,null,null,null,null,null,null,null,null,null,null,null,null,null,null,null,null,null,null,null,null,null,null,null,null,null,null,null,null,null,null,null,null,null,null,null,null,null,null,null,null,null,null,null,null,null,null,null,null,null,null,null,null,null,null,null,null,null,null,null,null,null,null,null,null,null,null,null,null,null,null,null,null,null,null,null,null,null,null,null,null,null,null,null,null,null,null,null,null,null,null,null,null,null,null,null,null,null,null,null,null,null,null,null,null,null,null,null,null,null,null,null,null,null,null,null,null,null,null,null,null,null,null,null,null,null,null,null,null,null,null,null,null,null,null,null,null,null,null,null,null,null,null,null,null,null,null,null,null,null,null,null,null,null,null,null,null,null,null,null,null,null,null,null,null,null,null,null,null,null,null,null,null,null,null,null,null,null,null,null,null,null,null,null,null,null,null,null,null,null,null,null,null,null,null,null,null,null,null,null,null,null,null,null,null,null,null,null,null,null,null,null,null,null,null,null,null,null,null,null,null,null,null,null,null,null,null,null,null,null,null,null,null,null,null,null,null,null,null,null,null,null,null,null,null,null,null,null,null,null,null,null,null,null,null,null,null,null,null,null,null,null,null,"Equidad de Género"]
[]
[null,"PROGRAMA OPERATIVO ANUAL  2022"]
[]
[null,"FORMATO 01 \"DESARROLLO DE PROCESOS\""]
[]
[null,"UNIVERSIDAD: _____________________________________"]
[]
[null,"DENOMINACIÓN DEL PROCESO:\n    \nVINCULACIÓN (1)",null,null,null,null,null,null,null,null,null,null,null,null,null,null,"NUM. DE PROCESO",null,null,null,null,null,null,null,"TIPO DE PROCESO (3)               "]
[]
[null,null,null,null,null,null,null,null,null,null,null,null,null,null,null,null,"1      (2)",null,null,null,null,null,null,null,"Pertinencia"]
[]
[null,"ÁREA RESPONSABLE( 4 )"]
[]
[]
[null,"INDICADORES  ( 5 )"]
[null,"NOMBRE DEL INDICADOR (5.1)","FÓRMULA","UNIDAD DE MEDIDA","META INSTITUCIONAL A 2024 \nPROGRAMA INSTITUCIONAL DE DESARROLLO DE LA UNIVERSIDAD",null,null,null,null,"CONTEXTO ACTUAL Y A FUTURO DEL INDICADOR (5.2)",null,null,null,null,null,null,null,null,null,null,null,"Total alcanzado (Se reporta en el tercer cuatrimestre) (5.3)"]
[null,"Número de estudiantes extranjeros inscritos en programas de intercambio en nuestras instituciones",{"$f":"(IF(B59=\"Número de estudiantes inscritos en programas de intercambio o movilidad  en instituciones extranjeras\",JN22,\nIF(B59=\"Número de estudiantes extranjeros inscritos en programas de intercambio en nuestras instituciones\",JN23,\nIF(B59=\"Número de profesores extranjeros en programas de intercambio en instituciones nacionales\",JN24,\nIF(B59=\"Número de profesores en programas de intercambio en instituciones internacionales\",JN25,\nIF(B59=\"Número de programas de lengua extranjera que se imparten en la institución\",JN26,\nIF(B59=\"Porcentaje de profesores que imparten una lengua extranjera y que están certificados\",JN27,\nIF(B59=\"Número de convenios firmados con Universidades extranjeras para la movilidad estudiantil\",JN28,IF(B59=\"Participación de la institución como U-BIS\",#REF!)))))))))","v":"Número de estudiantes extranjeros inscritos en programas de intercambio en nuestras instituciones."},{"$f":"(IF(B59=\"Número de estudiantes inscritos en programas de intercambio o movilidad  en instituciones extranjeras\",JO22,\nIF(B59=\"Número de estudiantes extranjeros inscritos en programas de intercambio en nuestras instituciones\",JO23,\nIF(B59=\"Número de profesores extranjeros en programas de intercambio en instituciones nacionales\",JO24,\nIF(B59=\"Número de profesores en programas de intercambio en instituciones internacionales\",JO25,\nIF(B59=\"Número de programas de lengua extranjera que se imparten en la institución\",JO26,\nIF(B59=\"Porcentaje de profesores que imparten una lengua extranjera y que están certificados\",JO27,\nIF(B59=\"Número de convenios firmados con Universidades extranjeras para la movilidad estudiantil\",JO28,IF(B59=\"Participación de la institución como U-BIS\",#REF!)))))))))","v":"Estudiantes"},null,null,null,null,null,2021,null,null,null,null,null,2022]
[null,null,null,null,null,null,null,null,null,"Número actual",null,null,"Porcentaje actual",null,null,"Número a lograr",null,null,"Porcentaje a lograr",null,null,"Número alcanzado ",null,null,"Porcentaje alcanzado"]
[]
[null,"NOMBRE DEL INDICADOR (5.1)","FÓRMULA","UNIDAD DE MEDIDA","META INSTITUCIONAL A 2024 \nPROGRAMA INSTITUCIONAL DE DESARROLLO DE LA UNIVERSIDAD",null,null,null,null,"CONTEXTO ACTUAL Y A FUTURO DEL INDICADOR (5.2)",null,null,null,null,null,null,null,null,null,null,null,"Total alcanzado (Se reporta en el tercer cuatrimestre) (5.3)"]
[null,"Número de estudiantes inscritos en programas de intercambio o movilidad  en instituciones extranjeras",{"$f":"(IF(B63=\"Número de estudiantes inscritos en programas de intercambio o movilidad  en instituciones extranjeras\",JN22,\nIF(B63=\"Número de estudiantes extranjeros inscritos en programas de intercambio en nuestras instituciones\",JN23,\nIF(B63=\"Número de profesores extranjeros en programas de intercambio en instituciones nacionales\",JN24,\nIF(B63=\"Número de profesores en programas de intercambio en instituciones internacionales\",JN25,\nIF(B63=\"Número de programas de lengua extranjera que se imparten en la institución\",JN26,\nIF(B63=\"Porcentaje de profesores que imparten una lengua extranjera y que están certificados\",JN27,\nIF(B63=\"Número de convenios firmados con Universidades extranjeras para la movilidad estudiantil\",JN28,IF(B63=\"Participación de la institución como U-BIS\",#REF!)))))))))","v":"Número de estudiantes inscritos en programas de intercambio o movilidad  en instituciones extranjeras"},{"$f":"(IF(B63=\"Número de estudiantes inscritos en programas de intercambio o movilidad  en instituciones extranjeras\",JO22,\nIF(B63=\"Número de estudiantes extranjeros inscritos en programas de intercambio en nuestras instituciones\",JO23,\nIF(B63=\"Número de profesores extranjeros en programas de intercambio en instituciones nacionales\",JO24,\nIF(B63=\"Número de profesores en programas de intercambio en instituciones internacionales\",JO25,\nIF(B63=\"Número de programas de lengua extranjera que se imparten en la institución\",JO26,\nIF(B63=\"Porcentaje de profesores que imparten una lengua extranjera y que están certificados\",JO27,\nIF(B63=\"Número de convenios firmados con Universidades extranjeras para la movilidad estudiantil\",JO28,IF(B63=\"Participación de la institución como U-BIS\",#REF!)))))))))","v":"Estudiantes"},null,null,null,null,null,2021,null,null,null,null,null,2022]
[null,null,null,null,null,null,null,null,null,"Número actual",null,null,"Porcentaje actual",null,null,"Número a lograr",null,null,"Porcentaje a lograr",null,null,"Número alcanzado ",null,null,"Porcentaje alcanzado"]
[]
[null,"OBJETIVO AL QUE ATIENDE DE ACUERDO AL PSE 2020-2024    (6)"]
[null,"CALENDARIZACIÓN Y SEGUIMIENTO DE LAS PRINCIPALES ACTIVIDADES  (7)"]
[null,"ACTIVIDADES",null,"UNIDAD DE MEDIDA","META  ANUAL",null,"CALENDARIO 2022                                CUATRIMESTRAL",null,null,null,null,null,null,null,null,null,null,null,"JUSTIFICACIÓN DE LAS DESVIACIONES POSITIVAS O NEGATIVAS (8)",null,null,null,null,null,null,"ÁREA\nEJECUTORA (9)"]
[null,null,null,null,null,null,1,null,null,null,2,null,null,null,3]
[null,null,null,null,null,null,"PROG",null,"ALC",null,"PROG",null,"ALC",null,"PROG",null,"ALC"]
[null,null,null,null,null,null,"#","%","#","%","#","%","#","%","#","%","#","%"]
[]
[]
[]
[]
[]
[null,"DESCRIPCIÓN DEL ALCANCE DEL INDICADOR Y EFECTO SOCIOECONOMICO    (10)"]
[]
[]
[]
[null,"NOMBRE Y FIRMA DEL/LA RECTOR(A)",null,null,null,null,null,null,null,null,null,null,null,null,null,null,"NOMBRE Y FIRMA DE LA PERSONA RESPONSABLE DEL PROCESO"]
[]
[]
[]
[]
[null,"PROGRAMA OPERATIVO ANUAL  2022"]
[]
[null,"FORMATO 01 \"DESARROLLO DE PROCESOS\""]
[]
[null,"UNIVERSIDAD: _____________________________________"]
[]
[null,"DENOMINACIÓN DEL PROCESO:\n    \nVINCULACIÓN   (1)",null,null,null,null,null,null,null,null,null,null,null,null,null,null,"NUM. DE PRCESO",null,null,null,null,null,null,null,"TIPO DE PROCESO (3)               "]
[]
[null,null,null,null,null,null,null,null,null,null,null,null,null,null,null,null,"1      (2)",null,null,null,null,null,null,null,"Pertinencia"]
[]
[null,"ÁREA RESPONSABLE ( 4 )"]
[]
[]
[null,"INDICADORES  ( 5 )"]
[null,"NOMBRE DEL INDICADOR (5.1)","FÓRMULA","UNIDAD DE MEDIDA","META INSTITUCIONAL A 2024 \nPROGRAMA INSTITUCIONAL DE DESARROLLO DE LA UNIVERSIDAD",null,null,null,null,"CONTEXTO ACTUAL Y A FUTURO DEL INDICADOR (5.2)",null,null,null,null,null,null,null,null,null,null,null,"Total alcanzado (Se reporta en el tercer cuatrimestre) (5.3)"]
[null,"Alumnos que participan en actividades culturales y artísticas",{"$f":"(IF(B101=\"Presentaciones artísticas y culturales\",JN31,\nIF(B101=\"Alumnos que participan en actividades culturales y artísticas\",JN32)))","v":"Número de alumnos que participan en actividades culturales y artísticas/ total de alumnos*100"},{"$f":"(IF(B101=\"Presentaciones artísticas y culturales\",JO31,\nIF(B101=\"Alumnos que participan en actividades culturales y artísticas\",JO32)))","v":"Alumnos"},null,null,null,null,null,2021,null,null,null,null,null,2022]
[null,null,null,null,null,null,null,null,null,"Número actual",null,null,"Porcentaje actual",null,null,"Número a lograr",null,null,"Porcentaje a lograr",null,null,"Número alcanzado ",null,null,"Porcentaje alcanzado"]
[]
[null,"NOMBRE DEL INDICADOR (5.1)","FÓRMULA","UNIDAD DE MEDIDA","META INSTITUCIONAL A 2024 \nPROGRAMA INSTITUCIONAL DE DESARROLLO DE LA UNIVERSIDAD",null,null,null,null,"CONTEXTO ACTUAL Y A FUTURO DEL INDICADOR (5.2)",null,null,null,null,null,null,null,null,null,null,null,"Total alcanzado (Se reporta en el tercer cuatrimestre) (5.3)"]
[null,"Presentaciones artísticas y culturales",{"$f":"(IF(B105=\"Presentaciones artísticas y culturales\",JN31,\nIF(B105=\"Alumnos que participan en actividades culturales y artísticas\",JN32)))","v":"Número de presentaciones anuales de danza, múscia, teatro, festivales, entre otros"},{"$f":"(IF(B105=\"Presentaciones artísticas y culturales\",JO31,\nIF(B105=\"Alumnos que participan en actividades culturales y artísticas\",JO32)))","v":"Presentaciones"},null,null,null,null,null,2021,null,null,null,null,null,2022]
[null,null,null,null,null,null,null,null,null,"Número actual",null,null,"Porcentaje actual",null,null,"Número a lograr",null,null,"Porcentaje a lograr",null,null,"Número alcanzado ",null,null,"Porcentaje alcanzado"]
[]
[null,"OBJETIVO AL QUE ATIENDE DE ACUERDO AL PSE 2020-2024    (6)"]
[null,"CALENDARIZACIÓN Y SEGUIMIENTO DE LAS PRINCIPALES ACTIVIDADES  (7)"]
[null,"ACTIVIDADES",null,"UNIDAD DE MEDIDA","META  ANUAL",null,"CALENDARIO 2022                                      CUATRIMESTRAL",null,null,null,null,null,null,null,null,null,null,null,"JUSTIFICACIÓN DE LAS DESVIACIONES POSITIVAS O NEGATIVAS (8)",null,null,null,null,null,null,"ÁREA\nEJECUTORA (9)"]
[null,null,null,null,null,null,1,null,null,null,2,null,null,null,3]
[null,null,null,null,null,null,"PROG",null,"ALC",null,"PROG",null,"ALC",null,"PROG",null,"ALC"]
[null,null,null,null,null,null,"#","%","#","%","#","%","#","%","#","%","#","%"]
[]
[]
[]
[]
[]
[null,"DESCRIPCIÓN DEL ALCANCE DEL INDICADOR Y EFECTO SOCIOECONOMICO    (10)"]
[]
[]
[]
[]
[null,"NOMBRE Y FIRMA DEL/LA RECTOR(A)",null,null,null,null,null,null,null,null,null,null,null,null,null,null,"NOMBRE Y FIRMA DE LA PERSONA RESPONSABLE DEL PROCESO"]
[]
[]
[]
[]
[null,"PROGRAMA OPERATIVO ANUAL  2022"]
[]
[null,"FORMATO 01 \"DESARROLLO DE PROCESOS\""]
[]
[null,"UNIVERSIDAD: _____________________________________"]
[]
[null,"DENOMINACIÓN DEL PROCESO:\n    \nVINCULACIÓN   (1)",null,null,null,null,null,null,null,null,null,null,null,null,null,null,"NUM. DE PROCESO",null,null,null,null,null,null,null,"TIPO DE PROCESO (3)               "]
[]
[null,null,null,null,null,null,null,null,null,null,null,null,null,null,null,null,"1      (2)",null,null,null,null,null,null,null,"Pertinencia"]
[]
[null,"ÁREA RESPONSABLE ( 4 )"]
[]
[]
[null,"INDICADORES  ( 5 )"]
[null,"NOMBRE DEL INDICADOR (5.1)","FÓRMULA","UNIDAD DE MEDIDA","META INSTITUCIONAL A 2024 \nPROGRAMA INSTITUCIONAL DE DESARROLLO DE LA UNIVERSIDAD",null,null,null,null,"CONTEXTO ACTUAL Y A FUTURO DEL INDICADOR (5.2)",null,null,null,null,null,null,null,null,null,null,null,"Total alcanzado (Se reporta en el tercer cuatrimestre) (5.3)"]
[null,"Torneos deportivos",{"$f":"(IF(B144=\"Torneos deportivos\",JN35,\nIF(B144=\"Participantes en torneos deportivos\",JN36)))","v":"Número de torneos deportivos anuales internos y externos en los que participará la institución"},{"$f":"(IF(B144=\"Torneos deportivos\",JO35,\nIF(B144=\"Participantes en torneos deportivos\",JO36)))","v":"Torneos"},null,null,null,null,null,2021,null,null,null,null,null,2022]
[null,null,null,null,null,null,null,null,null,"Número actual",null,null,"Porcentaje actual",null,null,"Número a lograr",null,null,"Porcentaje a lograr",null,null,"Número alcanzado ",null,null,"Porcentaje alcanzado"]
[]
[null,"NOMBRE DEL INDICADOR (5.1)","FÓRMULA","UNIDAD DE MEDIDA","META INSTITUCIONAL A 2024 \nPROGRAMA INSTITUCIONAL DE DESARROLLO DE LA UNIVERSIDAD",null,null,null,null,"CONTEXTO ACTUAL Y A FUTURO DEL INDICADOR (5.2)",null,null,null,null,null,null,null,null,null,null,null,"Total alcanzado (Se reporta en el tercer cuatrimestre) (5.3)"]
[null,"Torneos deportivos",{"$f":"(IF(B148=\"Torneos deportivos\",JN35,\nIF(B148=\"Participantes en torneos deportivos\",JN36)))","v":"Número de torneos deportivos anuales internos y externos en los que participará la institución"},{"$f":"(IF(B148=\"Torneos deportivos\",JO35,\nIF(B148=\"Participantes en torneos deportivos\",JO36)))","v":"Torneos"},null,null,null,null,null,2021,null,null,null,null,null,2022]
[null,null,null,null,null,null,null,null,null,"Número actual",null,null,"Porcentaje actual",null,null,"Número a lograr",null,null,"Porcentaje a lograr",null,null,"Número alcanzado ",null,null,"Porcentaje alcanzado"]
[]
[null,"OBJETIVO AL QUE ATIENDE DE ACUERDO AL PSE 2020-2024    (6)"]
[null,"CALENDARIZACIÓN Y SEGUIMIENTO DE LAS PRINCIPALES ACTIVIDADES  (7)"]
[null,"ACTIVIDADES",null,"UNIDAD DE MEDIDA","META  ANUAL",null,"CALENDARIO 2022                                     CUATRIMESTRAL",null,null,null,null,null,null,null,null,null,null,null,"JUSTIFICACIÓN DE LAS DESVIACIONES POSITIVAS O NEGATIVAS (8)",null,null,null,null,null,null,"ÁREA\nEJECUTORA (9)"]
[null,null,null,null,null,null,1,null,null,null,2,null,null,null,3]
[null,null,null,null,null,null,"PROG",null,"ALC",null,"PROG",null,"ALC",null,"PROG",null,"ALC"]
[null,null,null,null,null,null,"#","%","#","%","#","%","#","%","#","%","#","%"]
[]
[]
[]
[]
[]
[null,"DESCRIPCIÓN DEL ALCANCE DEL INDICADOR Y EFECTO SOCIOECONOMICO    (10)"]
[]
[]
[]
[]
[null,"NOMBRE Y FIRMA DEL/LA RECTOR(A)",null,null,null,null,null,null,null,null,null,null,null,null,null,null,"NOMBRE Y FIRMA DE LA PERSONA RESPONSABLE DEL PROCESO"]

{"sheet":"CEDULA -gestión","index":3,"n_rows":81,"n_cols":157,"rows_kept":81,"cut":false,"hidden":false,"merged":[[29,25,29,27],[30,1,30,2],[30,4,30,5],[30,18,30,24],[43,1,43,27],[28,4,28,5],[22,1,22,2],[22,3,22,27],[15,1,17,1],[15,2,17,2],[16,24,16,27],[17,24,17,27],[15,3,17,3],[15,9,15,14],[15,15,15,20],[16,9,16,11],[16,12,16,14],[16,15,16,17],[16,18,16,20],[23,1,23,27],[17,18,17,20],[17,21,17,23],[24,18,26,24],[28,1,28,2],[59,24,59,27],[60,9,60,11],[60,12,60,14],[60,15,60,17],[65,1,65,2],[65,3,65,27],[60,21,60,23],[60,24,60,27],[53,1,54,27],[63,24,63,27],[64,9,64,11],[64,12,64,14],[64,15,64,17],[64,18,64,20],[64,21,64,23],[64,24,64,27],[61,4,61,8],[61,9,61,20],[61,21,62,27],[62,1,64,1],[62,2,64,2],[62,3,64,3],[62,4,64,8],[62,9,62,14],[51,24,52,27],[69,14,69,15],[69,16,69,17],[66,1,66,27],[67,1,69,2],[67,3,69,3],[67,4,69,5],[67,6,67,17],[30,25,30,27],[58,1,60,1],[58,2,60,2],[58,3,60,3],[58,9,58,14],[58,15,58,20],[59,9,59,11],[59,12,59,14],[59,15,59,17],[59,18,59,20],[59,21,59,23],[60,18,60,20],[57,4,57,8],[58,4,60,8],[57,9,57,20],[57,21,58,27],[0,1,0,27],[2,1,2,27],[4,1,4,27],[6,1,9,15],[6,16,7,23],[6,24,7,27],[8,16,9,23],[8,24,9,27],[14,4,14,8],[14,9,14,20],[14,21,15,27],[15,4,17,8],[10,1,11,27],[12,1,12,27],[13,1,13,27],[16,21,16,23],[17,9,17,11],[17,12,17,14],[17,15,17,17],[24,25,26,27],[24,4,26,5],[24,3,26,3],[24,1,26,2],[55,1,55,27],[56,1,56,27],[28,18,28,24],[28,25,28,27],[45,1,45,27],[47,1,47,27],[49,1,52,15],[49,16,50,23],[49,24,50,27],[51,16,52,23],[24,6,24,17],[25,6,25,9],[25,10,25,13],[25,14,25,17],[26,6,26,7],[26,8,26,9],[26,10,26,11],[26,12,26,13],[26,14,26,15],[26,16,26,17],[62,15,62,20],[63,9,63,11],[63,12,63,14],[63,15,63,17],[63,18,63,20],[63,21,63,23],[71,18,71,24],[67,18,69,24],[68,6,68,9],[68,10,68,13],[71,25,71,27],[75,1,75,2],[75,4,75,5],[71,1,71,2],[71,4,71,5],[70,1,70,2],[70,4,70,5],[70,18,70,24],[70,25,70,27],[67,25,69,27],[68,14,68,17],[69,6,69,7],[69,8,69,9],[69,10,69,11],[69,12,69,13],[76,1,76,27],[77,1,77,27],[80,1,80,4],[80,16,80,27],[72,1,72,2],[72,4,72,5],[73,1,73,2],[73,4,73,5],[74,1,74,2],[74,4,74,5],[73,18,73,24],[74,18,74,24],[75,18,75,24],[73,25,73,27],[74,25,74,27],[75,25,75,27],[72,18,72,24],[72,25,72,27],[12,153,12,154],[32,1,32,2],[32,4,32,5],[33,1,33,27],[38,16,38,27],[38,1,38,4],[34,1,35,27],[31,1,31,2],[31,4,31,5],[31,18,31,24],[31,25,31,27],[32,18,32,24],[32,25,32,27],[29,1,29,2],[29,4,29,5],[29,18,29,24],[18,4,18,8],[18,9,18,20],[18,21,19,27],[19,1,21,1],[19,2,21,2],[19,3,21,3],[19,4,21,8],[19,9,19,14],[19,15,19,20],[20,9,20,11],[20,12,20,14],[20,15,20,17],[20,18,20,20],[20,21,20,23],[20,24,20,27],[21,9,21,11],[21,12,21,14],[21,15,21,17],[21,18,21,20],[21,21,21,23],[21,24,21,27]]}
[null,"PROGRAMA OPERATIVO ANUAL 2022"]
[]
[null,"FORMATO 01 \"DESARROLLO DE PROCESOS\""]
[]
[null,"UNIVERSIDAD: _____________________________________"]
[null,null,null,null,null,null,null,null,null,null,null,null,null,null,null,null,null,null,null,null,null,null,null,null,null,null,null,null,null,null,null,null,null,null,null,null,null,null,null,null,null,null,null,null,null,null,null,null,null,null,null,null,null,null,null,null,null,null,null,null,null,null,null,null,null,null,null,null,null,null,null,null,null,null,null,null,null,null,null,null,null,null,null,null,null,null,null,null,null,null,null,null,null,null,null,null,null,null,null,null,null,null,null,null,null,null,null,null,null,null,null,null,null,null,null,null,null,null,null,null,null,null,null,null,null,null,null,null,null,null,null,null,null,null,null,null,null,null,null,null,null,null,null,null,null,null,null,null,null,null,null,null,null,"GESTIÓN: APROVECHAMIENTO DE LAS TIC´S"]
[null,"DENOMINACIÓN DEL PROCESO:\n    \nGESTIÓN  (1)",null,null,null,null,null,null,null,null,null,null,null,null,null,null,"NUM. DE PROCESO",null,null,null,null,null,null,null,"TIPO DE PROCESO (3)               ",null,null,null,null,null,null,null,null,null,null,null,null,null,null,null,null,null,null,null,null,null,null,null,null,null,null,null,null,null,null,null,null,null,null,null,null,null,null,null,null,null,null,null,null,null,null,null,null,null,null,null,null,null,null,null,null,null,null,null,null,null,null,null,null,null,null,null,null,null,null,null,null,null,null,null,null,null,null,null,null,null,null,null,null,null,null,null,null,null,null,null,null,null,null,null,null,null,null,null,null,null,null,null,null,null,null,null,null,null,null,null,null,null,null,null,null,null,null,null,null,null,null,null,null,null,null,null,null,"INDICADOR","FÓRMULA"]
[null,null,null,null,null,null,null,null,null,null,null,null,null,null,null,null,null,null,null,null,null,null,null,null,null,null,null,null,null,null,null,null,null,null,null,null,null,null,null,null,null,null,null,null,null,null,null,null,null,null,null,null,null,null,null,null,null,null,null,null,null,null,null,null,null,null,null,null,null,null,null,null,null,null,null,null,null,null,null,null,null,null,null,null,null,null,null,null,null,null,null,null,null,null,null,null,null,null,null,null,null,null,null,null,null,null,null,null,null,null,null,null,null,null,null,null,null,null,null,null,null,null,null,null,null,null,null,null,null,null,null,null,null,null,null,null,null,null,null,null,null,null,null,null,null,null,null,null,null,null,null,null,null,"Cobertura en red inalámbrica y conexión a internet","Porcentaje de cobertura en red inalámbrica y conexión a internet en la institución","Cobertura de red inalámbrica e internet",95]
[null,null,null,null,null,null,null,null,null,null,null,null,null,null,null,null,"1      (2)",null,null,null,null,null,null,null,"Eficacia",null,null,null,null,null,null,null,null,null,null,null,null,null,null,null,null,null,null,null,null,null,null,null,null,null,null,null,null,null,null,null,null,null,null,null,null,null,null,null,null,null,null,null,null,null,null,null,null,null,null,null,null,null,null,null,null,null,null,null,null,null,null,null,null,null,null,null,null,null,null,null,null,null,null,null,null,null,null,null,null,null,null,null,null,null,null,null,null,null,null,null,null,null,null,null,null,null,null,null,null,null,null,null,null,null,null,null,null,null,null,null,null,null,null,null,null,null,null,null,null,null,null,null,null,null,null,null,null,"Equipos de cómputo","Número de equipos de cómputo anuales necesarios para mantener actualizados los programas educativos (reportar los adquiridos durante el periodo)","equipos de cómputo",44365]
[null,null,null,null,null,null,null,null,null,null,null,null,null,null,null,null,null,null,null,null,null,null,null,null,null,null,null,null,null,null,null,null,null,null,null,null,null,null,null,null,null,null,null,null,null,null,null,null,null,null,null,null,null,null,null,null,null,null,null,null,null,null,null,null,null,null,null,null,null,null,null,null,null,null,null,null,null,null,null,null,null,null,null,null,null,null,null,null,null,null,null,null,null,null,null,null,null,null,null,null,null,null,null,null,null,null,null,null,null,null,null,null,null,null,null,null,null,null,null,null,null,null,null,null,null,null,null,null,null,null,null,null,null,null,null,null,null,null,null,null,null,null,null,null,null,null,null,null,null,null,null,null,null,"Software","Número de softwares anuales necesarios para mantener actualizados los programas educativos (reportar los adquiridos durante el periodo)","Software",10968]
[null,"ÁREA RESPONSABLE( 4 )",null,null,null,null,null,null,null,null,null,null,null,null,null,null,null,null,null,null,null,null,null,null,null,null,null,null,null,null,null,null,null,null,null,null,null,null,null,null,null,null,null,null,null,null,null,null,null,null,null,null,null,null,null,null,null,null,null,null,null,null,null,null,null,null,null,null,null,null,null,null,null,null,null,null,null,null,null,null,null,null,null,null,null,null,null,null,null,null,null,null,null,null,null,null,null,null,null,null,null,null,null,null,null,null,null,null,null,null,null,null,null,null,null,null,null,null,null,null,null,null,null,null,null,null,null,null,null,null,null,null,null,null,null,null,null,null,null,null,null,null,null,null,null,null,null,null,null,null,null,null,null,"Bibliotecas virtuales","Suscripción a bibliotecas virtuales. \nNOTA: Poner sí o no únicamente","Suscripción",107]
[null,null,null,null,null,null,null,null,null,null,null,null,null,null,null,null,null,null,null,null,null,null,null,null,null,null,null,null,null,null,null,null,null,null,null,null,null,null,null,null,null,null,null,null,null,null,null,null,null,null,null,null,null,null,null,null,null,null,null,null,null,null,null,null,null,null,null,null,null,null,null,null,null,null,null,null,null,null,null,null,null,null,null,null,null,null,null,null,null,null,null,null,null,null,null,null,null,null,null,null,null,null,null,null,null,null,null,null,null,null,null,null,null,null,null,null,null,null,null,null,null,null,null,null,null,null,null,null,null,null,null,null,null,null,null,null,null,null,null,null,null,null,null,null,null,null,null,null,null,null,null,null,null,"Aulas inteligentes","Número de  aulas inteligentes anuales establecida en la institución (reportar los adquiridos durante el periodo)","Aulas inteligentes",1525]
[null,null,null,null,null,null,null,null,null,null,null,null,null,null,null,null,null,null,null,null,null,null,null,null,null,null,null,null,null,null,null,null,null,null,null,null,null,null,null,null,null,null,null,null,null,null,null,null,null,null,null,null,null,null,null,null,null,null,null,null,null,null,null,null,null,null,null,null,null,null,null,null,null,null,null,null,null,null,null,null,null,null,null,null,null,null,null,null,null,null,null,null,null,null,null,null,null,null,null,null,null,null,null,null,null,null,null,null,null,null,null,null,null,null,null,null,null,null,null,null,null,null,null,null,null,null,null,null,null,null,null,null,null,null,null,null,null,null,null,null,null,null,null,null,null,null,null,null,null,null,null,null,null,"GESTIÓN: AMPLIACIÓN Y MEJORAMIENTO DE LA INFRAESTRUCTURA DE LA EDUCACIÓN SUPERIOR "]
[null,"INDICADORES  ( 5 )",null,null,null,null,null,null,null,null,null,null,null,null,null,null,null,null,null,null,null,null,null,null,null,null,null,null,null,null,null,null,null,null,null,null,null,null,null,null,null,null,null,null,null,null,null,null,null,null,null,null,null,null,null,null,null,null,null,null,null,null,null,null,null,null,null,null,null,null,null,null,null,null,null,null,null,null,null,null,null,null,null,null,null,null,null,null,null,null,null,null,null,null,null,null,null,null,null,null,null,null,null,null,null,null,null,null,null,null,null,null,null,null,null,null,null,null,null,null,null,null,null,null,null,null,null,null,null,null,null,null,null,null,null,null,null,null,null,null,null,null,null,null,null,null,null,null,null,null,null,null,null,"Edificios de docencia de dos niveles","Número de edificios de docencia de dos niveles, sin tomar en cuenta los ya existentes, necesarios para alojar el aumento de la matrícula\nNota: el número de edificios de docencia de dos niveles tendrá que ser consistente con la proyección de crecimiento de matrícula de la universidad (reportar los construidos durante el periodo de análisis)","Edificios",48]
[null,"NOMBRE DEL INDICADOR (5.1)","FÓRMULA","UNIDAD DE MEDIDA","META INSTITUCIONAL A 2024 \nPROGRAMA INSTITUCIONAL DE DESARROLLO DE LA UNIVERSIDAD",null,null,null,null,"CONTEXTO ACTUAL Y A FUTURO DEL INDICADOR (5.2)",null,null,null,null,null,null,null,null,null,null,null,"Total alcanzado (Se reporta en el tercer cuatrimestre) (5.3)",null,null,null,null,null,null,null,null,null,null,null,null,null,null,null,null,null,null,null,null,null,null,null,null,null,null,null,null,null,null,null,null,null,null,null,null,null,null,null,null,null,null,null,null,null,null,null,null,null,null,null,null,null,null,null,null,null,null,null,null,null,null,null,null,null,null,null,null,null,null,null,null,null,null,null,null,null,null,null,null,null,null,null,null,null,null,null,null,null,null,null,null,null,null,null,null,null,null,null,null,null,null,null,null,null,null,null,null,null,null,null,null,null,null,null,null,null,null,null,null,null,null,null,null,null,null,null,null,null,null,null,"Edificios de docencia de un nivel","Número de edificios de docencia de un nivel, sin tomar en cuenta los ya existentes, necesarios para alojar el aumento de la matrícula\nNota: el número de edificios de docencia de un nivel tendrá que ser consistente con la proyección de crecimiento de matrícula de la universidad (reportar los construidos durante el periodo de análisis)","Edificios",16]
[null,"Software",{"$f":"(IF(B16=\"Cobertura en red inalámbrica y conexión a internet\",EY8,\nIF(B16=\"Equipos de cómputo\",EY9,IF(B16=\"Software\",EY10,IF(B16=\"Bibliotecas virtuales\",EY11,IF(B16=\"Aulas inteligentes\",EY12))))))","v":"Número de softwares anuales necesarios para mantener actualizados los programas educativos (reportar los adquiridos durante el periodo)"},{"$f":"(IF(B16=\"Cobertura en red inalámbrica y conexión a internet\",EZ8,\nIF(B16=\"Equipos de cómputo\",EZ9,IF(B16=\"Software\",EZ10,IF(B16=\"Bibliotecas virtuales\",EZ11,IF(B16=\"Aulas inteligentes\",EZ12))))))","v":"Software"},null,null,null,null,null,2021,null,null,null,null,null,2022,null,null,null,null,null,null,null,null,null,null,null,null,null,null,null,null,null,null,null,null,null,null,null,null,null,null,null,null,null,null,null,null,null,null,null,null,null,null,null,null,null,null,null,null,null,null,null,null,null,null,null,null,null,null,null,null,null,null,null,null,null,null,null,null,null,null,null,null,null,null,null,null,null,null,null,null,null,null,null,null,null,null,null,null,null,null,null,null,null,null,null,null,null,null,null,null,null,null,null,null,null,null,null,null,null,null,null,null,null,null,null,null,null,null,null,null,null,null,null,null,null,null,null,null,null,null,null,null,null,null,null,null,null,null,null,null,null,"Edificios de laboratorios y talleres","Número de edificios de laboratorios y talleres, sin tomar en cuenta los ya existentes, necesarios para alojar el aumento de la matrícula\nNota: el número de edificios de laboratorios y talleres tendrá que ser consistente con la proyección de crecimiento de matrícula de la universidad (reportar los construidos durante el periodo de análisis)","Edificios",57]
[null,null,null,null,null,null,null,null,null,"Número actual",null,null,"Porcentaje actual",null,null,"Número a lograr",null,null,"Porcentaje a lograr",null,null,"Número alcanzado ",null,null,"Porcentaje alcanzado",null,null,null,null,null,null,null,null,null,null,null,null,null,null,null,null,null,null,null,null,null,null,null,null,null,null,null,null,null,null,null,null,null,null,null,null,null,null,null,null,null,null,null,null,null,null,null,null,null,null,null,null,null,null,null,null,null,null,null,null,null,null,null,null,null,null,null,null,null,null,null,null,null,null,null,null,null,null,null,null,null,null,null,null,null,null,null,null,null,null,null,null,null,null,null,null,null,null,null,null,null,null,null,null,null,null,null,null,null,null,null,null,null,null,null,null,null,null,null,null,null,null,null,null,null,null,null,null,"Bibliotecas","Número de edificios de biblioteca, sin tomar en cuenta los ya existentes, necesarios debido al aumento de matrícula para ofertar un servicio educativo de calidad.\nNota: el número de edificios de biblioteca tendrá que ser consistente con la proyección de crecimiento de matrícula de la universidad (reportar los construidos durante el periodo de análisis)","Edificios",14]
[null,null,null,null,null,null,null,null,null,null,null,null,null,null,null,null,null,null,null,null,null,null,null,null,null,null,null,null,null,null,null,null,null,null,null,null,null,null,null,null,null,null,null,null,null,null,null,null,null,null,null,null,null,null,null,null,null,null,null,null,null,null,null,null,null,null,null,null,null,null,null,null,null,null,null,null,null,null,null,null,null,null,null,null,null,null,null,null,null,null,null,null,null,null,null,null,null,null,null,null,null,null,null,null,null,null,null,null,null,null,null,null,null,null,null,null,null,null,null,null,null,null,null,null,null,null,null,null,null,null,null,null,null,null,null,null,null,null,null,null,null,null,null,null,null,null,null,null,null,null,null,null,null,"Número de cafeterías","Número de edificios de cafetería, sin tomar en cuenta los ya existentes, necesarios debido al aumento de matrícula para ofertar un servicio educativo de calidad.\nNota: el número de edificios de cafetería tendrá que ser consistente con la proyección de crecimiento de matrícula de la universidad (reportar los construidos durante el periodo de análisis)","Cafeterías",16]
[null,"NOMBRE DEL INDICADOR (5.1)","FÓRMULA","UNIDAD DE MEDIDA","META INSTITUCIONAL A 2024 \nPROGRAMA INSTITUCIONAL DE DESARROLLO DE LA UNIVERSIDAD",null,null,null,null,"CONTEXTO ACTUAL Y A FUTURO DEL INDICADOR (5.2)",null,null,null,null,null,null,null,null,null,null,null,"Total alcanzado (Se reporta en el tercer cuatrimestre) (5.3)",null,null,null,null,null,null,null,null,null,null,null,null,null,null,null,null,null,null,null,null,null,null,null,null,null,null,null,null,null,null,null,null,null,null,null,null,null,null,null,null,null,null,null,null,null,null,null,null,null,null,null,null,null,null,null,null,null,null,null,null,null,null,null,null,null,null,null,null,null,null,null,null,null,null,null,null,null,null,null,null,null,null,null,null,null,null,null,null,null,null,null,null,null,null,null,null,null,null,null,null,null,null,null,null,null,null,null,null,null,null,null,null,null,null,null,null,null,null,null,null,null,null,null,null,null,null,null,null,null,null,null,"Gimnasios/auditorios","Número de edificios de gimnasio/auditorio, sin tomar en cuenta los ya existentes, necesarios debido al aumento de matrícula para ofertar un servicio educativo de calidad.\nNota: el número de edificios de gimnasio/auditorio tendrá que ser consistente con la proyección de crecimiento de matrícula de la universidad (reportar los construidos durante el periodo de análisis)","Gimnasios/auditorios",27]
[null,"Aulas inteligentes",{"$f":"(IF(B20=\"Cobertura en red inalámbrica y conexión a internet\",EY8,\nIF(B20=\"Equipos de cómputo\",EY9,IF(B20=\"Software\",EY10,IF(B20=\"Bibliotecas virtuales\",EY11,IF(B20=\"Aulas inteligentes\",EY12))))))","v":"Número de  aulas inteligentes anuales establecida en la institución (reportar los adquiridos durante el periodo)"},{"$f":"(IF(B20=\"Cobertura en red inalámbrica y conexión a internet\",EZ8,\nIF(B20=\"Equipos de cómputo\",EZ9,IF(B20=\"Software\",EZ10,IF(B20=\"Bibliotecas virtuales\",EZ11,IF(B20=\"Aulas inteligentes\",EZ12))))))","v":"Aulas inteligentes"},null,null,null,null,null,2021,null,null,null,null,null,2022,null,null,null,null,null,null,null,null,null,null,null,null,null,null,null,null,null,null,null,null,null,null,null,null,null,null,null,null,null,null,null,null,null,null,null,null,null,null,null,null,null,null,null,null,null,null,null,null,null,null,null,null,null,null,null,null,null,null,null,null,null,null,null,null,null,null,null,null,null,null,null,null,null,null,null,null,null,null,null,null,null,null,null,null,null,null,null,null,null,null,null,null,null,null,null,null,null,null,null,null,null,null,null,null,null,null,null,null,null,null,null,null,null,null,null,null,null,null,null,null,null,null,null,null,null,null,null,null,null,null,null,null,null,null,null,null,null,"Edificios de rectoría","Número de edificios de rectoría, sin tomar en cuenta los existentes, necesarios por el aumento de la matrícula para dar servicio de calidad a los alumnos. Nota: el número de edificios de rectoría tendrá que ser consistente con la proyección de crecimiento de matrícula de la universidad","Edificios",20]
[null,null,null,null,null,null,null,null,null,"Número actual",null,null,"Porcentaje actual",null,null,"Número a lograr",null,null,"Porcentaje a lograr",null,null,"Número alcanzado ",null,null,"Porcentaje alcanzado",null,null,null,null,null,null,null,null,null,null,null,null,null,null,null,null,null,null,null,null,null,null,null,null,null,null,null,null,null,null,null,null,null,null,null,null,null,null,null,null,null,null,null,null,null,null,null,null,null,null,null,null,null,null,null,null,null,null,null,null,null,null,null,null,null,null,null,null,null,null,null,null,null,null,null,null,null,null,null,null,null,null,null,null,null,null,null,null,null,null,null,null,null,null,null,null,null,null,null,null,null,null,null,null,null,null,null,null,null,null,null,null,null,null,null,null,null,null,null,null,null,null,null,null,null,null,null,null,"Edificios de vinculación","Número de edificios de vinculación, sin tomar en cuenta los existentes, necesarios para ofertar un servicio de calidad.                                                                                            Nota: el número de edificios de vinculación tendrá que ser consistente con la proyección de crecimiento de matrícula de la universidad (reportar los construidos durante el periodo de análisis)","Edificios",23]
[null,null,null,null,null,null,null,null,null,null,null,null,null,null,null,null,null,null,null,null,null,null,null,null,null,null,null,null,null,null,null,null,null,null,null,null,null,null,null,null,null,null,null,null,null,null,null,null,null,null,null,null,null,null,null,null,null,null,null,null,null,null,null,null,null,null,null,null,null,null,null,null,null,null,null,null,null,null,null,null,null,null,null,null,null,null,null,null,null,null,null,null,null,null,null,null,null,null,null,null,null,null,null,null,null,null,null,null,null,null,null,null,null,null,null,null,null,null,null,null,null,null,null,null,null,null,null,null,null,null,null,null,null,null,null,null,null,null,null,null,null,null,null,null,null,null,null,null,null,null,null,null,null,"Edificios de almacén","Número de edificios de almacén, sin tomar en cuenta los ya existentes, necesarios debido al crecimiento de la infraestructura física de la Universidad.   Nota: el número de edificios de almacén tendrá que ser consistente con la proyección de crecimiento de infraestructura física de la universidad (reportar los construidos durante el periodo de análisis)","Edificios",25]
[null,"OBJETIVO AL QUE ATIENDE DE ACUERDO AL PSE 2020-2024    (6)",null,null,null,null,null,null,null,null,null,null,null,null,null,null,null,null,null,null,null,null,null,null,null,null,null,null,null,null,null,null,null,null,null,null,null,null,null,null,null,null,null,null,null,null,null,null,null,null,null,null,null,null,null,null,null,null,null,null,null,null,null,null,null,null,null,null,null,null,null,null,null,null,null,null,null,null,null,null,null,null,null,null,null,null,null,null,null,null,null,null,null,null,null,null,null,null,null,null,null,null,null,null,null,null,null,null,null,null,null,null,null,null,null,null,null,null,null,null,null,null,null,null,null,null,null,null,null,null,null,null,null,null,null,null,null,null,null,null,null,null,null,null,null,null,null,null,null,null,null,null,null,"Canchas deportivas","Número de canchas deportivas sin tomar en cuenta las ya existentes, necesarias debido al aumento de matrícula para ofertar un servicio educativo de calidad.\nNota: el número de canchas deportivas tendrá que ser consistente con la proyección de crecimiento de matrícula de la universidad (reportar los construidos durante el periodo de análisis)","Canchas",53]
[null,"CALENDARIZACIÓN Y SEGUIMIENTO DE LAS PRINCIPALES ACTIVIDADES  (7)",null,null,null,null,null,null,null,null,null,null,null,null,null,null,null,null,null,null,null,null,null,null,null,null,null,null,null,null,null,null,null,null,null,null,null,null,null,null,null,null,null,null,null,null,null,null,null,null,null,null,null,null,null,null,null,null,null,null,null,null,null,null,null,null,null,null,null,null,null,null,null,null,null,null,null,null,null,null,null,null,null,null,null,null,null,null,null,null,null,null,null,null,null,null,null,null,null,null,null,null,null,null,null,null,null,null,null,null,null,null,null,null,null,null,null,null,null,null,null,null,null,null,null,null,null,null,null,null,null,null,null,null,null,null,null,null,null,null,null,null,null,null,null,null,null,null,null,null,null,null,null,"TIPO DE  PROCESO"]
[null,"ACTIVIDADES",null,"UNIDAD DE MEDIDA","META  ANUAL",null,"CALENDARIO 2022                                    CUATRIMESTRAL",null,null,null,null,null,null,null,null,null,null,null,"JUSTIFICACIÓN DE LAS DESVIACIONES POSITIVAS O NEGATIVAS (8)",null,null,null,null,null,null,"ÁREA\nEJECUTORA (9)",null,null,null,null,null,null,null,null,null,null,null,null,null,null,null,null,null,null,null,null,null,null,null,null,null,null,null,null,null,null,null,null,null,null,null,null,null,null,null,null,null,null,null,null,null,null,null,null,null,null,null,null,null,null,null,null,null,null,null,null,null,null,null,null,null,null,null,null,null,null,null,null,null,null,null,null,null,null,null,null,null,null,null,null,null,null,null,null,null,null,null,null,null,null,null,null,null,null,null,null,null,null,null,null,null,null,null,null,null,null,null,null,null,null,null,null,null,null,null,null,null,null,null,null,null,null,null,"Eficiencia"]
[null,null,null,null,null,null,1,null,null,null,2,null,null,null,3,null,null,null,null,null,null,null,null,null,null,null,null,null,null,null,null,null,null,null,null,null,null,null,null,null,null,null,null,null,null,null,null,null,null,null,null,null,null,null,null,null,null,null,null,null,null,null,null,null,null,null,null,null,null,null,null,null,null,null,null,null,null,null,null,null,null,null,null,null,null,null,null,null,null,null,null,null,null,null,null,null,null,null,null,null,null,null,null,null,null,null,null,null,null,null,null,null,null,null,null,null,null,null,null,null,null,null,null,null,null,null,null,null,null,null,null,null,null,null,null,null,null,null,null,null,null,null,null,null,null,null,null,null,null,null,null,null,null,"Eficacia"]
[null,null,null,null,null,null,"PROG",null,"ALC",null,"PROG",null,"ALC",null,"PROG",null,"ALC",null,null,null,null,null,null,null,null,null,null,null,null,null,null,null,null,null,null,null,null,null,null,null,null,null,null,null,null,null,null,null,null,null,null,null,null,null,null,null,null,null,null,null,null,null,null,null,null,null,null,null,null,null,null,null,null,null,null,null,null,null,null,null,null,null,null,null,null,null,null,null,null,null,null,null,null,null,null,null,null,null,null,null,null,null,null,null,null,null,null,null,null,null,null,null,null,null,null,null,null,null,null,null,null,null,null,null,null,null,null,null,null,null,null,null,null,null,null,null,null,null,null,null,null,null,null,null,null,null,null,null,null,null,null,null,null,"Pertinencia"]
[null,null,null,null,null,null,"#","%","#","%","#","%","#","%","#","%","#","%",null,null,null,null,null,null,null,null,null,null,null,null,null,null,null,null,null,null,null,null,null,null,null,null,null,null,null,null,null,null,null,null,null,null,null,null,null,null,null,null,null,null,null,null,null,null,null,null,null,null,null,null,null,null,null,null,null,null,null,null,null,null,null,null,null,null,null,null,null,null,null,null,null,null,null,null,null,null,null,null,null,null,null,null,null,null,null,null,null,null,null,null,null,null,null,null,null,null,null,null,null,null,null,null,null,null,null,null,null,null,null,null,null,null,null,null,null,null,null,null,null,null,null,null,null,null,null,null,null,null,null,null,null,null,null,"Vinculación"]
[null,null,null,null,null,null,null,null,null,null,null,null,null,null,null,null,null,null,null,null,null,null,null,null,null,null,null,null,null,null,null,null,null,null,null,null,null,null,null,null,null,null,null,null,null,null,null,null,null,null,null,null,null,null,null,null,null,null,null,null,null,null,null,null,null,null,null,null,null,null,null,null,null,null,null,null,null,null,null,null,null,null,null,null,null,null,null,null,null,null,null,null,null,null,null,null,null,null,null,null,null,null,null,null,null,null,null,null,null,null,null,null,null,null,null,null,null,null,null,null,null,null,null,null,null,null,null,null,null,null,null,null,null,null,null,null,null,null,null,null,null,null,null,null,null,null,null,null,null,null,null,null,null,"Equidad de Género"]
[]
[]
[]
[]
[null,"DESCRIPCIÓN DEL ALCANCE DEL INDICADOR Y EFECTO SOCIOECONOMICO    (10)"]
[]
[]
[]
[]
[null,"NOMBRE Y FIRMA DEL/LA RECTOR(A)",null,null,null,null,null,null,null,null,null,null,null,null,null,null,"NOMBRE Y FIRMA DE LA PERSONA RESPONSABLE DEL PROCESO"]
[]
[]
[]
[]
[null,"PROGRAMA OPERATIVO ANUAL  2022"]
[]
[null,"FORMATO 01 \"DESARROLLO DE PROCESOS\""]
[]
[null,"UNIVERSIDAD: _____________________________________"]
[]
[null,"DENOMINACIÓN DEL PROCESO:\n    \nGESTIÓN   (1)",null,null,null,null,null,null,null,null,null,null,null,null,null,null,"NUM. DE PROCESO",null,null,null,null,null,null,null,"TIPO DE PROCESO  (3)              "]
[]
[null,null,null,null,null,null,null,null,null,null,null,null,null,null,null,null,"1      (2)",null,null,null,null,null,null,null,"Eficacia"]
[]
[null,"ÁREA RESPONSABLE ( 4 )"]
[]
[]
[null,"INDICADORES  ( 5 )"]
[null,"NOMBRE DEL INDICADOR (5.1)","FÓRMULA","UNIDAD DE MEDIDA","META INSTITUCIONAL A 2024 \nPROGRAMA INSTITUCIONAL DE DESARROLLO DE LA UNIVERSIDAD",null,null,null,null,"CONTEXTO ACTUAL Y A FUTURO DEL INDICADOR (5.2)",null,null,null,null,null,null,null,null,null,null,null,"Total alcanzado (Se reporta en el tercer cuatrimestre) (5.3)"]
[null,"Canchas deportivas",{"$f":"(IF(B59=\"Porcentaje de utilización de la infraestructura\",#REF!,\nIF(B59=\"Edificios de docencia de dos niveles\",EY14,IF(B59=\"Edificios de docencia de un nivel\",EY15,IF(B59=\"Edificios de laboratorios y talleres\",EY16,IF(B59=\"Bibliotecas\",EY17,IF(B59=\"Número de cafeterías\",EY18,IF(B59=\"Gimnasios/auditorios\",EY19,IF(B59=\"Edificios de rectoría\",EY20,IF(B59=\"Edificios de vinculación\",EY21,IF(B59=\"Edificios de almacén\",EY22,IF(B59=\"Canchas deportivas\",EY23))))))))))))","v":"Número de canchas deportivas sin tomar en cuenta las ya existentes, necesarias debido al aumento de matrícula para ofertar un servicio educativo de calidad.\nNota: el número de canchas deportivas tendrá que ser consistente con la proyección de crecimiento de matrícula de la universidad (reportar los construidos durante el periodo de análisis)"},{"$f":"(IF(B59=\"Porcentaje de utilización de la infraestructura\",#REF!,\nIF(B59=\"Edificios de docencia de dos niveles\",EZ14,IF(B59=\"Edificios de docencia de un nivel\",EZ15,IF(B59=\"Edificios de laboratorios y talleres\",EZ16,IF(B59=\"Bibliotecas\",EZ17,IF(B59=\"Número de cafeterías\",EZ18,IF(B59=\"Gimnasios/auditorios\",EZ19,IF(B59=\"Edificios de rectoría\",EZ20,IF(B59=\"Edificios de vinculación\",EZ21,IF(B59=\"Edificios de almacén\",EZ22,IF(B59=\"Canchas deportivas\",EZ23))))))))))))","v":"Canchas"},null,null,null,null,null,2021,null,null,null,null,null,2022]
[null,null,null,null,null,null,null,null,null,"Número actual",null,null,"Porcentaje actual",null,null,"Número a lograr",null,null,"Porcentaje a lograr",null,null,"Número alcanzado ",null,null,"Porcentaje alcanzado"]
[]
[null,"NOMBRE DEL INDICADOR (5.1)","FÓRMULA","UNIDAD DE MEDIDA","META INSTITUCIONAL A 2024 \nPROGRAMA INSTITUCIONAL DE DESARROLLO DE LA UNIVERSIDAD",null,null,null,null,"CONTEXTO ACTUAL Y A FUTURO DEL INDICADOR (5.2)",null,null,null,null,null,null,null,null,null,null,null,"Total alcanzado (Se reporta en el tercer cuatrimestre) (5.3)"]
[null,"Canchas deportivas",{"$f":"(IF(B63=\"Porcentaje de utilización de la infraestructura\",#REF!,\nIF(B63=\"Edificios de docencia de dos niveles\",EY14,IF(B63=\"Edificios de docencia de un nivel\",EY15,IF(B63=\"Edificios de laboratorios y talleres\",EY16,IF(B63=\"Bibliotecas\",EY17,IF(B63=\"Número de cafeterías\",EY18,IF(B63=\"Gimnasios/auditorios\",EY19,IF(B63=\"Edificios de rectoría\",EY20,IF(B63=\"Edificios de vinculación\",EY21,IF(B63=\"Edificios de almacén\",EY22,IF(B63=\"Canchas deportivas\",EY23))))))))))))","v":"Número de canchas deportivas sin tomar en cuenta las ya existentes, necesarias debido al aumento de matrícula para ofertar un servicio educativo de calidad.\nNota: el número de canchas deportivas tendrá que ser consistente con la proyección de crecimiento de matrícula de la universidad (reportar los construidos durante el periodo de análisis)"},{"$f":"(IF(B63=\"Porcentaje de utilización de la infraestructura\",#REF!,\nIF(B63=\"Edificios de docencia de dos niveles\",EZ14,IF(B63=\"Edificios de docencia de un nivel\",EZ15,IF(B63=\"Edificios de laboratorios y talleres\",EZ16,IF(B63=\"Bibliotecas\",EZ17,IF(B63=\"Número de cafeterías\",EZ18,IF(B63=\"Gimnasios/auditorios\",EZ19,IF(B63=\"Edificios de rectoría\",EZ20,IF(B63=\"Edificios de vinculación\",EZ21,IF(B63=\"Edificios de almacén\",EZ22,IF(B63=\"Canchas deportivas\",EZ23))))))))))))","v":"Canchas"},null,null,null,null,null,2021,null,null,null,null,null,2022]
[null,null,null,null,null,null,null,null,null,"Número actual",null,null,"Porcentaje actual",null,null,"Número a lograr",null,null,"Porcentaje a lograr",null,null,"Número alcanzado ",null,null,"Porcentaje alcanzado"]
[]
[null,"OBJETIVO AL QUE ATIENDE DE ACUERDO AL PSE 2020-2024    (6)"]
[null,"CALENDARIZACIÓN Y SEGUIMIENTO DE LAS PRINCIPALES ACTIVIDADES  (7)"]
[null,"ACTIVIDADES",null,"UNIDAD DE MEDIDA","META  ANUAL",null,"CALENDARIO 2022                                     CUATRIMESTRAL",null,null,null,null,null,null,null,null,null,null,null,"JUSTIFICACIÓN DE LAS DESVIACIONES POSITIVAS O NEGATIVAS (8)",null,null,null,null,null,null,"ÁREA\nEJECUTORA (9)"]
[null,null,null,null,null,null,1,null,null,null,2,null,null,null,3]
[null,null,null,null,null,null,"PROG",null,"ALC",null,"PROG",null,"ALC",null,"PROG",null,"ALC"]
[null,null,null,null,null,null,"#","%","#","%","#","%","#","%","#","%","#","%"]
[]
[]
[]
[]
[]
[null,"DESCRIPCIÓN DEL ALCANCE DEL INDICADOR Y EFECTO SOCIOECONOMICO    (10)"]
[]
[]
[]
[null,"NOBRE Y FIRMA DEL/LA RECTOR(A)",null,null,null,null,null,null,null,null,null,null,null,null,null,null,"NOMBRE Y FIRMA DE LA PERSONA RESPONSABLE DEL PROCESO"]